{"text_format":"1","workbook":"xlsx","n_sheets":5,"sheets":["CS","コピペ用","クリアボタン","VL用","武器用"],"not_rendered":{"charts":0,"images":0,"macros":1,"external_links":0,"defined_names":12,"comments":0,"pivot_tables":0},"unopened":[],"bounds":{"document_bytes":16777216,"sheet_cells":100000,"rows_first":2000,"rows_last":500,"rows_between":2000,"halvings":0,"cell_chars":16384,"cell_head_chars":4096},"cells_cut":0,"cells_raw":0,"read":"whole","date_system":"1900"}

{"sheet":"CS","index":0,"n_rows":54,"n_cols":81,"rows_kept":54,"cut":false,"hidden":false,"merged":[[14,51,15,55],[16,51,17,55],[14,56,15,59],[17,18,17,20],[17,21,17,24],[17,25,17,27],[17,28,17,31],[17,32,17,34],[17,35,17,38],[15,32,16,34],[15,35,16,38],[15,21,16,29],[15,30,15,31],[16,30,16,31],[14,42,15,46],[14,47,15,50],[18,21,18,38],[18,18,18,20],[16,47,17,50],[41,69,42,79],[27,69,28,79],[29,69,30,79],[27,64,28,65],[27,66,28,68],[29,64,30,65],[29,66,30,68],[27,42,28,42],[29,42,30,42],[29,43,30,49],[29,57,30,58],[31,61,32,63],[36,17,37,18],[21,17,22,22],[18,42,19,46],[16,56,17,59],[23,56,24,67],[25,56,26,67],[23,68,24,79],[25,68,26,79],[21,42,22,55],[27,57,28,58],[27,61,28,63],[27,59,28,60],[49,61,50,63],[31,50,32,51],[35,59,36,60],[35,57,36,58],[29,52,30,53],[29,54,30,56],[29,61,30,63],[29,50,30,51],[49,57,50,58],[33,50,34,51],[49,54,50,56],[31,57,32,58],[31,52,32,53],[33,57,34,58],[31,59,32,60],[35,61,36,63],[33,59,34,60],[29,59,30,60],[33,61,34,63],[27,50,28,51],[27,52,28,53],[53,69,54,79],[47,59,48,60],[47,61,48,63],[37,69,38,79],[47,66,48,68],[45,61,46,63],[45,59,46,60],[35,69,36,79],[51,61,52,63],[53,59,54,60],[53,61,54,63],[53,64,54,65],[53,66,54,68],[37,61,38,63],[37,64,38,65],[37,59,38,60],[39,66,40,68],[51,69,52,79],[49,69,50,79],[49,66,50,68],[35,64,36,65],[47,69,48,79],[43,64,44,65],[47,64,48,65],[39,69,40,79],[39,64,40,65],[35,66,36,68],[45,66,46,68],[45,69,46,79],[43,69,44,79],[31,69,32,79],[31,66,32,68],[31,64,32,65],[33,69,34,79],[33,66,34,68],[33,64,34,65],[51,64,52,65],[37,66,38,68],[43,66,44,68],[41,66,42,68],[45,64,46,65],[41,64,42,65],[51,66,52,68],[41,57,42,58],[39,57,40,58],[49,59,50,60],[47,57,48,58],[39,61,40,63],[43,61,44,63],[37,57,38,58],[39,59,40,60],[45,57,46,58],[51,59,52,60],[43,59,44,60],[41,59,42,60],[41,61,42,63],[49,64,50,65],[39,43,40,49],[39,50,40,51],[51,42,52,42],[51,52,52,53],[51,50,52,51],[41,54,42,56],[45,50,46,51],[45,43,46,49],[53,42,54,42],[41,50,42,51],[51,43,52,49],[43,42,44,42],[49,42,50,42],[47,42,48,42],[45,42,46,42],[45,54,46,56],[47,52,48,53],[47,54,48,56],[39,54,40,56],[35,50,36,51],[37,50,38,51],[35,43,36,49],[33,54,34,56],[27,43,28,49],[31,42,32,42],[53,57,54,58],[43,54,44,56],[51,54,52,56],[43,57,44,58],[53,43,54,49],[53,50,54,51],[53,52,54,53],[53,54,54,56],[51,57,52,58],[49,50,50,51],[43,43,44,49],[43,50,44,51],[49,43,50,49],[49,52,50,53],[41,52,42,53],[47,43,48,49],[45,52,46,53],[43,52,44,53],[23,42,24,55],[25,42,26,55],[37,43,38,49],[33,43,34,49],[47,50,48,51],[37,54,38,56],[37,52,38,53],[42,23,43,27],[42,31,43,33],[32,34,33,37],[32,31,33,33],[38,34,39,37],[34,34,35,37],[27,54,28,56],[31,43,32,49],[37,42,38,42],[39,42,40,42],[41,42,42,42],[33,52,34,53],[31,54,32,56],[39,52,40,53],[35,52,36,53],[33,42,34,42],[35,54,36,56],[32,23,33,27],[32,28,35,29],[34,23,35,27],[36,23,37,27],[38,23,39,27],[40,28,43,29],[36,28,39,29],[36,31,37,33],[38,31,39,33],[24,30,43,30],[34,31,35,33],[53,14,53,16],[53,17,53,18],[53,19,53,20],[53,21,53,22],[48,17,48,18],[46,19,46,20],[48,19,48,20],[53,34,53,37],[52,34,52,37],[52,23,52,27],[53,23,53,27],[47,34,47,37],[49,31,49,33],[46,34,46,37],[50,23,50,27],[51,23,51,27],[48,21,48,22],[49,14,49,16],[49,34,49,37],[47,21,47,22],[52,17,52,18],[52,19,52,20],[52,21,52,22],[49,23,49,27],[40,14,41,16],[41,43,42,49],[36,19,37,20],[38,17,39,18],[44,34,44,37],[46,23,46,27],[42,34,43,37],[45,21,45,22],[40,23,41,27],[40,34,41,37],[46,17,46,18],[46,31,46,33],[40,31,41,33],[38,21,39,22],[42,21,43,22],[40,21,41,22],[46,21,46,22],[44,21,44,22],[35,42,36,42],[34,21,35,22],[36,34,37,37],[24,38,54,38],[42,14,43,16],[52,14,52,16],[50,14,50,16],[50,21,50,22],[49,21,49,22],[51,21,51,22],[51,19,51,20],[50,19,50,20],[50,17,50,18],[49,17,49,18],[51,14,51,16],[51,17,51,18],[49,19,49,20],[47,19,47,20],[51,34,51,37],[48,23,48,27],[48,34,48,37],[44,28,48,29],[44,30,53,30],[44,31,44,33],[45,34,45,37],[45,23,45,27],[44,23,44,27],[45,31,45,33],[47,31,47,33],[53,31,53,33],[50,34,50,37],[50,31,50,33],[48,31,48,33],[47,23,47,27],[51,31,51,33],[52,31,52,33],[49,28,52,29],[38,2,39,4],[38,5,39,7],[45,17,45,18],[44,14,44,16],[45,14,45,16],[40,17,41,18],[48,14,48,16],[38,19,39,20],[40,19,41,20],[40,11,41,13],[48,3,48,4],[47,8,47,10],[42,11,43,13],[44,11,44,13],[42,8,43,10],[44,19,44,20],[46,14,46,16],[42,17,43,18],[42,19,43,20],[45,11,45,13],[45,19,45,20],[47,14,47,16],[47,17,47,18],[44,17,44,18],[36,2,37,4],[36,5,37,7],[36,8,37,10],[42,2,43,4],[44,2,53,2],[46,3,46,4],[46,5,46,7],[42,5,43,7],[51,8,51,10],[47,5,47,7],[53,3,53,4],[53,5,53,7],[53,8,53,10],[44,8,44,10],[40,8,41,10],[44,5,44,7],[44,3,44,4],[48,5,48,7],[48,8,48,10],[45,3,45,4],[45,8,45,10],[45,5,45,7],[52,3,52,4],[52,5,52,7],[49,3,49,4],[49,5,49,7],[49,8,49,10],[49,11,49,13],[53,11,53,13],[47,3,47,4],[46,8,46,10],[50,8,50,10],[51,3,51,4],[51,11,51,13],[52,11,52,13],[51,5,51,7],[46,11,46,13],[50,11,50,13],[48,11,48,13],[52,8,52,10],[50,3,50,4],[50,5,50,7],[47,11,47,13],[36,11,37,13],[24,31,25,33],[24,34,25,37],[32,19,33,20],[32,17,33,18],[32,21,33,22],[34,19,35,20],[36,14,37,16],[30,34,31,37],[24,23,25,27],[34,11,35,13],[34,17,35,18],[36,21,37,22],[26,31,27,33],[24,28,27,29],[26,23,27,27],[26,21,27,22],[24,21,25,22],[28,31,29,33],[30,19,31,20],[30,21,31,22],[30,23,31,27],[30,31,31,33],[28,34,29,37],[21,1,52,1],[21,2,23,4],[21,5,22,7],[21,8,22,10],[21,11,23,13],[21,14,23,16],[40,2,41,4],[40,5,41,7],[38,8,39,10],[38,11,39,13],[38,14,39,16],[34,14,35,16],[32,2,33,4],[32,5,33,7],[32,8,33,10],[32,11,33,13],[32,14,33,16],[34,2,35,4],[34,5,35,7],[34,8,35,10],[28,2,29,4],[28,5,29,7],[28,8,29,10],[30,2,31,4],[23,21,23,22],[24,5,25,7],[26,2,27,4],[26,5,27,7],[26,8,27,10],[26,11,27,13],[26,14,27,16],[26,17,27,18],[26,19,27,20],[23,5,23,7],[23,8,23,10],[23,17,23,18],[23,19,23,20],[24,8,25,10],[24,11,25,13],[24,14,25,16],[24,17,25,18],[24,19,25,20],[17,13,18,15],[18,47,19,50],[18,51,19,55],[19,1,20,38],[20,42,20,79],[18,56,19,58],[18,59,19,59],[16,42,17,46],[30,5,31,7],[30,8,31,10],[30,11,31,13],[30,17,31,18],[30,14,31,16],[21,23,23,27],[21,28,23,38],[24,2,25,4],[26,34,27,37],[28,11,29,13],[28,14,29,16],[28,17,29,18],[28,19,29,20],[28,21,29,22],[28,23,29,27],[28,28,31,29],[9,1,10,7],[9,16,10,17],[9,18,10,20],[9,21,10,24],[9,25,10,29],[9,30,9,33],[16,1,16,3],[16,4,16,6],[16,7,16,9],[16,10,16,12],[16,13,16,15],[13,16,18,17],[13,18,14,38],[14,1,15,3],[14,4,15,6],[14,7,15,9],[14,10,15,12],[14,13,15,15],[15,18,16,20],[13,1,13,15],[17,1,18,3],[17,4,18,6],[17,7,18,9],[17,10,18,12],[11,1,12,7],[11,8,12,13],[11,14,12,14],[11,15,12,20],[11,21,12,24],[11,25,12,29],[11,57,11,79],[12,42,13,46],[12,47,13,50],[12,51,13,55],[12,56,13,59],[9,34,10,38],[9,42,9,55],[9,8,10,12],[9,13,9,15],[10,13,10,15],[5,57,6,60],[5,61,6,71],[7,9,8,12],[7,21,8,24],[7,25,8,29],[7,30,7,33],[7,34,8,38],[7,42,8,45],[7,46,8,56],[7,57,8,60],[7,61,8,71],[8,30,8,33],[9,56,11,56],[9,57,10,60],[9,61,10,71],[10,30,10,33],[10,42,11,55],[11,30,12,33],[11,34,12,38],[1,1,4,2],[1,3,4,10],[1,14,4,16],[1,21,1,38],[1,42,2,56],[1,57,2,71],[1,72,10,79],[2,21,2,29],[2,30,2,38],[3,17,4,20],[3,21,4,29],[3,30,4,38],[3,42,4,45],[3,46,4,56],[3,57,4,60],[3,61,4,71],[5,1,5,2],[5,3,8,4],[5,13,6,16],[5,17,8,19],[5,21,6,29],[5,30,6,38],[5,42,6,45],[5,46,6,56],[21,56,22,73],[12,62,12,79],[13,62,13,79],[14,62,14,79],[15,62,15,79],[17,62,17,70],[18,62,18,70],[19,62,19,70],[17,71,17,79],[18,71,18,79],[19,71,19,79],[16,62,16,65],[16,74,16,78],[16,69,16,73],[21,74,22,79]]}
[]
[null,null,null,null,null,null,null,null,null,null,null,null,null,null,null,null,null,null,null,null,null,null,null,null,null,null,null,null,null,null,null,null,null,null,null,null,null,null,null,null,null,null,"Lifepath",null,null,null,null,null,null,null,null,null,null,null,null,null,null,"Equipment's name",null,null,null,null,null,null,null,null,null,null,null,null,null,null,"Illust"]
[null,null,null,null,null,null,null,null,null,null,null,null,null,null,null,null,null,null,null,null,null,"Character's name",null,null,null,null,null,null,null,null,"Player's name"]
[null,null,null,null,null,null,null,null,null,null,null,null,null,null,null,null,null,null,null,null,null,null,null,null,null,null,null,null,null,null,null,null,null,null,null,null,null,null,null,null,null,null,"理由",null,null,null,null,null,null,null,null,null,null,null,null,null,null,"防具",null,null,null,"一般服"]
[]
[null,null,null,null,null,null,null,null,null,null,null,null,null,null,null,null,null,null,null,null,null,"Experience Points",null,null,null,null,null,null,null,null,null,null,null,null,null,null,null,null,null,null,null,null,"職業",null,null,null,null,null,null,null,null,null,null,null,null,null,null,"アクセA",null,null,null,"なし"]
[]
[null,null,null,null,null,null,null,null,null,null,null,null,null,null,null,null,null,null,null,null,null,"Age",null,null,null,null,null,null,null,null,"Hair",null,null,null,null,null,null,null,null,null,null,null,"宝物",null,null,null,null,null,null,null,null,null,null,null,null,null,null,"アクセB",null,null,null,"なし"]
[null,null,null,null,null,null,null,null,null,null,null,null,null,null,null,null,null,null,null,null,null,null,null,null,null,null,null,null,null,null,"Color"]
[null,"Species",null,null,null,null,null,null,"人間",null,null,null,null,null,null,null,"CL",null,1,null,null,"Height",null,null,null,null,null,null,null,null,"Eye",null,null,null,null,null,null,null,null,null,null,null,null,null,null,null,null,null,null,null,null,null,null,null,null,null,null,"アクセC",null,null,null,"なし"]
[null,null,null,null,null,null,null,null,null,null,null,null,null,null,null,null,null,null,null,null,null,null,null,null,null,null,null,null,null,null,"Color",null,null,null,null,null,null,null,null,null,null,null,"Other Data"]
[null,"Class",null,null,null,null,null,null,"DB",null,null,null,null,null,"/","DB",null,null,null,null,null,"Weight",null,null,null,null,null,null,null,null,"Complexion"]
[null,null,null,null,null,null,null,null,null,null,null,null,null,null,null,null,null,null,null,null,null,null,null,null,null,null,null,null,null,null,null,null,null,null,null,null,null,null,null,null,null,null,"命中C値",null,null,null,null,18,null,null,null,"命中F値",null,null,null,null,5]
[null,"基本能力値",null,null,null,null,null,null,null,null,null,null,null,null,null,null,null,null,"武器性能"]
[null,"肉体",null,null,"集中",null,null,"反射",null,null,"知識",null,null,"幸運",null,null,null,null,null,null,null,null,null,null,null,null,null,null,null,null,null,null,null,null,null,null,null,null,null,null,null,null,"回避C値",null,null,null,null,18,null,null,null,"回避F値",null,null,null,null,5]
[null,null,null,null,null,null,null,null,null,null,null,null,null,null,null,null,null,null,"名称",null,null,"黎明の聖剣：近",null,null,null,null,null,null,null,null,"SL",null,"種別",null,null,{"$f":"VLOOKUP(武器名,武器用!B2:AD188,24,FALSE)","v":"近接"}]
[null,{"$f":"VLOOKUP(種族名,VL用!$A$2:$F$23,2,FALSE)+S10-1","v":6},null,null,{"$f":"VLOOKUP(種族名,VL用!$A$2:$F$23,3,FALSE)+S10-1","v":12},null,null,{"$f":"VLOOKUP(種族名,VL用!$A$2:$F$23,4,FALSE)+S10-1","v":7},null,null,{"$f":"VLOOKUP(種族名,VL用!$A$2:$F$23,5,FALSE)+S10-1","v":8},null,null,{"$f":"VLOOKUP(種族名,VL用!$A$2:$F$23,6,FALSE)+S10-1","v":8},null,null,null,null,null,null,null,null,null,null,null,null,null,null,null,null,null,null,null,null,null,null,null,null,null,null,null,null,"調査C値",null,null,null,null,18,null,null,null,"調査F値",null,null,null,null,5,null,null,null,null,null,"所持品",null,null,null,null,null,null,"所持金→",null,null,null,null,null,null,null,null,null,"ND"]
[null,null,null,null,null,null,null,null,null,null,null,null,null,null,null,null,null,null,"射程",null,null,{"$f":"VLOOKUP(武器名,武器用!B2:AD188,25,FALSE)","v":"0-1"},null,null,null,"コスト",null,null,{"$f":"VLOOKUP(武器名,武器用!B2:AD188,27,FALSE)","v":9},null,null,null,"属性",null,null,{"$f":"VLOOKUP(武器名,武器用!B2:AD188,26,FALSE)","v":"光"}]
[null,null,null,null,null,null,null,null,null,null,null,null,null,null,null,null,null,null,"効果",null,null,{"$f":"VLOOKUP(武器名,武器用!B2:AD188,28,FALSE)","v":"DB専用。ｻﾌﾞで射・魔に変形可能 (ｻﾌﾞ消費なし)"},null,null,null,null,null,null,null,null,null,null,null,null,null,null,null,null,null,null,null,null,"移動ｺｽﾄ",null,null,null,null,"3/8",null,null,null,"消費額",null,null,null,null,{"$f":"VLOOKUP(武器名,VL用!$AM$51:$BN$525,28,FALSE)+VLOOKUP(防具名,VL用!$BO$51:$CL$502,24,FALSE)+VLOOKUP(アクセA,VL用!$CM$51:$DJ$503,24,FALSE)+VLOOKUP(アクセB,VL用!$CM$51:$DJ$503,24,FALSE)+VLOOKUP(アクセC,VL用!$CM$51:$DJ$503,24,FALSE)","v":60},null,null,"ND"]
[null,"Status               　　                     　"]
[]
[null,null,null,null,null,"種族",null,null,"ｸﾗｽ",null,null,"武器",null,null,"防具",null,null,"ｱｸｾｻﾘｰ",null,null,null,null,null,"他修正",null,null,null,null,"Total status",null,null,null,null,null,null,null,null,null,null,null,null,null,"Skill            ",null,null,null,null,null,null,null,null,null,null,null,null,null,"現在のSL合計/SL合計上限",null,null,null,null,null,null,null,null,null,null,null,null,null,null,null,null,null,{"$f":"SUM($AY$31:$AZ$55)&\"/\"&S10*5+15","v":"0/20"}]
[]
[null,null,null,null,null,"Bonus",null,null,"Bonus",null,null,null,null,null,null,null,null,"A",null,"B",null,"C",null,null,null,null,null,null,null,null,null,null,null,null,null,null,null,null,null,null,null,null,"種族特典",null,null,null,null,null,null,null,null,null,null,null,null,null,"クラス特典A",null,null,null,null,null,null,null,null,null,null,null,"クラス特典B"]
[null,null,"近接",null,null,{"$f":"IF($S$10=1,VLOOKUP(種族名,VL用!$F$25:$Z$47,VL用!$B25,FALSE),IF($S$10=2,VLOOKUP(種族名,VL用!$AA$25:$AU47,VL用!$B25,FALSE),IF($S$10=3,VLOOKUP(種族名,VL用!$AV$25:$BP$47,VL用!$B25,FALSE),IF($S$10=4,VLOOKUP(種族名,VL用!$BQ$25:$CK$47,VL用!$B25,FALSE),IF($S$10=5,VLOOKUP(種族名,VL用!$CL$25:$DF$47,VL用!$B25,FALSE),IF($S$10=6,VLOOKUP(種族名,VL用!$DG$25:$EA$47,VL用!$B25,FALSE),IF($S$10=7,VLOOKUP(種族名,VL用!$EB$25:$EV$47,VL用!$B25,FALSE),IF($S$10=8,VLOOKUP(種族名,VL用!$EW$25:$FQ$47,VL用!$B25,FALSE),IF($S$10=9,VLOOKUP(種族名,VL用!$FR$25:$GL$47,VL用!$B25,FALSE),IF($S$10=10,VLOOKUP(種族名,VL用!$GM$25:$HG$47,VL用!$B25,FALSE)))))))))))","v":5},null,null,{"$f":"VLOOKUP(クラスA,VL用!$F$50:$P$96,VL用!$B25,FALSE)+VLOOKUP(クラスB,VL用!$F$50:$P$96,VL用!$B25,FALSE)","v":4},null,null,{"$f":"IF(VLOOKUP(武器名,VL用!$AM$51:$BM$234,VL用!$DK50,FALSE)&\"\"=\"\",\"\",VALUE(VLOOKUP(武器名,VL用!$AM$51:$BM$234,VL用!$DK50,FALSE)))","v":""},null,null,{"$f":"IF(VLOOKUP(防具名,VL用!$BO$51:$CK$164,VL用!$DK50,FALSE)&\"\"=\"\",\"\",VALUE(VLOOKUP(防具名,VL用!$BO$51:$CK$164,VL用!$DK50,FALSE)))","v":""},null,null,{"$f":"IF(VLOOKUP(アクセA,VL用!$CM$51:$DI$266,VL用!$DK50,FALSE)&\"\"=\"\",\"\",VALUE(VLOOKUP(アクセA,VL用!$CM$51:$DI$266,VL用!$DK50,FALSE)))","v":""},null,{"$f":"IF(VLOOKUP(アクセB,VL用!$CM$51:$DI$266,VL用!$DK50,FALSE)&\"\"=\"\",\"\",VALUE(VLOOKUP(アクセB,VL用!$CM$51:$DI$266,VL用!$DK50,FALSE)))","v":""},null,{"$f":"IF(VLOOKUP(アクセC,VL用!$CM$51:$DI$266,VL用!$DK50,FALSE)&\"\"=\"\",\"\",VALUE(VLOOKUP(アクセC,VL用!$CM$51:$DI$266,VL用!$DK50,FALSE)))","v":""},null,null,null,null,null,null,null,null,null,"近接",null,null,{"$f":"SUM(F25:AB26)","v":9}]
[null,null,null,null,null,null,null,null,null,null,null,null,null,null,null,null,null,null,null,null,null,null,null,null,null,null,null,null,null,null,null,null,null,null,null,null,null,null,null,null,null,null,{"$f":"VLOOKUP(種族名,VL用!$A$2:$G$23,7,FALSE)","v":"常時C値-1(下限値16) & 集中判定を1度振り直せる。"},null,null,null,null,null,null,null,null,null,null,null,null,null,{"$f":"VLOOKUP(クラスA,VL用!$F$50:$AA$89,22,FALSE)","v":"自身と同ﾏｽｷｬﾗが攻撃Dを与えた場合、【HP】+[与D/10](↓)"},null,null,null,null,null,null,null,null,null,null,null,{"$f":"IF(クラスA=クラスB,\"なし\",VLOOKUP(クラスB,VL用!$F$50:$AA$89,22,FALSE))","v":"なし"}]
[null,null,"射撃",null,null,{"$f":"IF($S$10=1,VLOOKUP(種族名,VL用!$F$25:$Z$47,VL用!$B27,FALSE),IF($S$10=2,VLOOKUP(種族名,VL用!$AA$25:$AU49,VL用!$B27,FALSE),IF($S$10=3,VLOOKUP(種族名,VL用!$AV$25:$BP$47,VL用!$B27,FALSE),IF($S$10=4,VLOOKUP(種族名,VL用!$BQ$25:$CK$47,VL用!$B27,FALSE),IF($S$10=5,VLOOKUP(種族名,VL用!$CL$25:$DF$47,VL用!$B27,FALSE),IF($S$10=6,VLOOKUP(種族名,VL用!$DG$25:$EA$47,VL用!$B27,FALSE),IF($S$10=7,VLOOKUP(種族名,VL用!$EB$25:$EV$47,VL用!$B27,FALSE),IF($S$10=8,VLOOKUP(種族名,VL用!$EW$25:$FQ$47,VL用!$B27,FALSE),IF($S$10=9,VLOOKUP(種族名,VL用!$FR$25:$GL$47,VL用!$B27,FALSE),IF($S$10=10,VLOOKUP(種族名,VL用!$GM$25:$HG$47,VL用!$B27,FALSE)))))))))))","v":5},null,null,{"$f":"VLOOKUP(クラスA,VL用!$F$50:$P$96,VL用!$B27,FALSE)+VLOOKUP(クラスB,VL用!$F$50:$P$96,VL用!$B27,FALSE)","v":2},null,null,{"$f":"IF(VLOOKUP(武器名,VL用!$AM$51:$BM$234,VL用!$DK52,FALSE)&\"\"=\"\",\"\",VALUE(VLOOKUP(武器名,VL用!$AM$51:$BM$234,VL用!$DK52,FALSE)))","v":""},null,null,{"$f":"IF(VLOOKUP(防具名,VL用!$BO$51:$CK$164,VL用!$DK52,FALSE)&\"\"=\"\",\"\",VALUE(VLOOKUP(防具名,VL用!$BO$51:$CK$164,VL用!$DK52,FALSE)))","v":""},null,null,{"$f":"IF(VLOOKUP(アクセA,VL用!$CM$51:$DI$266,VL用!$DK52,FALSE)&\"\"=\"\",\"\",VALUE(VLOOKUP(アクセA,VL用!$CM$51:$DI$266,VL用!$DK52,FALSE)))","v":""},null,{"$f":"IF(VLOOKUP(アクセB,VL用!$CM$51:$DI$266,VL用!$DK52,FALSE)&\"\"=\"\",\"\",VALUE(VLOOKUP(アクセB,VL用!$CM$51:$DI$266,VL用!$DK52,FALSE)))","v":""},null,{"$f":"IF(VLOOKUP(アクセC,VL用!$CM$51:$DI$266,VL用!$DK52,FALSE)&\"\"=\"\",\"\",VALUE(VLOOKUP(アクセC,VL用!$CM$51:$DI$266,VL用!$DK52,FALSE)))","v":""},null,null,null,null,null,null,null,null,null,"射撃",null,null,{"$f":"SUM(F27:AB28)","v":7}]
[null,null,null,null,null,null,null,null,null,null,null,null,null,null,null,null,null,null,null,null,null,null,null,null,null,null,null,null,null,null,null,null,null,null,null,null,null,null,null,null,null,null,null,"名称",null,null,null,null,null,null,"SL",null,"種別",null,"ﾀｲﾐﾝｸﾞ",null,null,"対象",null,"射程",null,"判定値",null,null,"代償",null,"コスト",null,null,"効果"]
[null,null,"回避",null,null,{"$f":"IF($S$10=1,VLOOKUP(種族名,VL用!$F$25:$Z$47,VL用!$B29,FALSE),IF($S$10=2,VLOOKUP(種族名,VL用!$AA$25:$AU51,VL用!$B29,FALSE),IF($S$10=3,VLOOKUP(種族名,VL用!$AV$25:$BP$47,VL用!$B29,FALSE),IF($S$10=4,VLOOKUP(種族名,VL用!$BQ$25:$CK$47,VL用!$B29,FALSE),IF($S$10=5,VLOOKUP(種族名,VL用!$CL$25:$DF$47,VL用!$B29,FALSE),IF($S$10=6,VLOOKUP(種族名,VL用!$DG$25:$EA$47,VL用!$B29,FALSE),IF($S$10=7,VLOOKUP(種族名,VL用!$EB$25:$EV$47,VL用!$B29,FALSE),IF($S$10=8,VLOOKUP(種族名,VL用!$EW$25:$FQ$47,VL用!$B29,FALSE),IF($S$10=9,VLOOKUP(種族名,VL用!$FR$25:$GL$47,VL用!$B29,FALSE),IF($S$10=10,VLOOKUP(種族名,VL用!$GM$25:$HG$47,VL用!$B29,FALSE)))))))))))","v":3},null,null,{"$f":"VLOOKUP(クラスA,VL用!$F$50:$P$96,VL用!$B29,FALSE)+VLOOKUP(クラスB,VL用!$F$50:$P$96,VL用!$B29,FALSE)","v":6},null,null,{"$f":"IF(VLOOKUP(武器名,VL用!$AM$51:$BM$234,VL用!$DK54,FALSE)&\"\"=\"\",\"\",VALUE(VLOOKUP(武器名,VL用!$AM$51:$BM$234,VL用!$DK54,FALSE)))","v":1},null,null,{"$f":"IF(VLOOKUP(防具名,VL用!$BO$51:$CK$164,VL用!$DK54,FALSE)&\"\"=\"\",\"\",VALUE(VLOOKUP(防具名,VL用!$BO$51:$CK$164,VL用!$DK54,FALSE)))","v":""},null,null,{"$f":"IF(VLOOKUP(アクセA,VL用!$CM$51:$DI$266,VL用!$DK54,FALSE)&\"\"=\"\",\"\",VALUE(VLOOKUP(アクセA,VL用!$CM$51:$DI$266,VL用!$DK54,FALSE)))","v":""},null,{"$f":"IF(VLOOKUP(アクセB,VL用!$CM$51:$DI$266,VL用!$DK54,FALSE)&\"\"=\"\",\"\",VALUE(VLOOKUP(アクセB,VL用!$CM$51:$DI$266,VL用!$DK54,FALSE)))","v":""},null,{"$f":"IF(VLOOKUP(アクセC,VL用!$CM$51:$DI$266,VL用!$DK54,FALSE)&\"\"=\"\",\"\",VALUE(VLOOKUP(アクセC,VL用!$CM$51:$DI$266,VL用!$DK54,FALSE)))","v":""},null,null,null,null,null,null,null,null,null,"回避",null,null,{"$f":"SUM(F29:AB30)","v":10}]
[null,null,null,null,null,null,null,null,null,null,null,null,null,null,null,null,null,null,null,null,null,null,null,null,null,null,null,null,null,null,null,null,null,null,null,null,null,null,null,null,null,null,"自",{"$f":"VLOOKUP(種族名,VL用!$A$2:$AN$23,17,FALSE)","v":"起死回生"},null,null,null,null,null,null,{"$f":"VLOOKUP(種族名,VL用!$A$2:$AN$23,20,FALSE)","v":"★"},null,{"$f":"VLOOKUP(種族名,VL用!$A$2:$AN$23,21,FALSE)","v":"自"},null,{"$f":"VLOOKUP(種族名,VL用!$A$2:$AN$23,22,FALSE)","v":"ｵｰﾄ"},null,null,{"$f":"VLOOKUP(種族名,VL用!$A$2:$AN$23,23,FALSE)","v":"自"},null,{"$f":"VLOOKUP(種族名,VL用!$A$2:$AN$23,24,FALSE)","v":"なし"},null,{"$f":"VLOOKUP(種族名,VL用!$A$2:$AN$23,25,FALSE)","v":"自動"},null,null,{"$f":"VLOOKUP(種族名,VL用!$A$2:$AN$23,26,FALSE)","v":"6BP"},null,{"$f":"VLOOKUP(種族名,VL用!$A$2:$AN$23,27,FALSE)","v":0},null,null,{"$f":"VLOOKUP(種族名,VL用!$A$2:$AN$23,28,FALSE)","v":"判定直後ダイス目を両方9にする。対抗判定のC値が20固定。戦闘外では-2BP。"}]
[null,null,"魔術",null,null,{"$f":"IF($S$10=1,VLOOKUP(種族名,VL用!$F$25:$Z$47,VL用!$B31,FALSE),IF($S$10=2,VLOOKUP(種族名,VL用!$AA$25:$AU53,VL用!$B31,FALSE),IF($S$10=3,VLOOKUP(種族名,VL用!$AV$25:$BP$47,VL用!$B31,FALSE),IF($S$10=4,VLOOKUP(種族名,VL用!$BQ$25:$CK$47,VL用!$B31,FALSE),IF($S$10=5,VLOOKUP(種族名,VL用!$CL$25:$DF$47,VL用!$B31,FALSE),IF($S$10=6,VLOOKUP(種族名,VL用!$DG$25:$EA$47,VL用!$B31,FALSE),IF($S$10=7,VLOOKUP(種族名,VL用!$EB$25:$EV$47,VL用!$B31,FALSE),IF($S$10=8,VLOOKUP(種族名,VL用!$EW$25:$FQ$47,VL用!$B31,FALSE),IF($S$10=9,VLOOKUP(種族名,VL用!$FR$25:$GL$47,VL用!$B31,FALSE),IF($S$10=10,VLOOKUP(種族名,VL用!$GM$25:$HG$47,VL用!$B31,FALSE)))))))))))","v":4},null,null,{"$f":"VLOOKUP(クラスA,VL用!$F$50:$P$96,VL用!$B31,FALSE)+VLOOKUP(クラスB,VL用!$F$50:$P$96,VL用!$B31,FALSE)","v":4},null,null,{"$f":"IF(VLOOKUP(武器名,VL用!$AM$51:$BM$234,VL用!$DK56,FALSE)&\"\"=\"\",\"\",VALUE(VLOOKUP(武器名,VL用!$AM$51:$BM$234,VL用!$DK56,FALSE)))","v":""},null,null,{"$f":"IF(VLOOKUP(防具名,VL用!$BO$51:$CK$164,VL用!$DK56,FALSE)&\"\"=\"\",\"\",VALUE(VLOOKUP(防具名,VL用!$BO$51:$CK$164,VL用!$DK56,FALSE)))","v":""},null,null,{"$f":"IF(VLOOKUP(アクセA,VL用!$CM$51:$DI$266,VL用!$DK56,FALSE)&\"\"=\"\",\"\",VALUE(VLOOKUP(アクセA,VL用!$CM$51:$DI$266,VL用!$DK56,FALSE)))","v":""},null,{"$f":"IF(VLOOKUP(アクセB,VL用!$CM$51:$DI$266,VL用!$DK56,FALSE)&\"\"=\"\",\"\",VALUE(VLOOKUP(アクセB,VL用!$CM$51:$DI$266,VL用!$DK56,FALSE)))","v":""},null,{"$f":"IF(VLOOKUP(アクセC,VL用!$CM$51:$DI$266,VL用!$DK56,FALSE)&\"\"=\"\",\"\",VALUE(VLOOKUP(アクセC,VL用!$CM$51:$DI$266,VL用!$DK56,FALSE)))","v":""},null,null,null,null,null,null,null,null,null,"魔術",null,null,{"$f":"SUM(F31:AB32)","v":8}]
[null,null,null,null,null,null,null,null,null,null,null,null,null,null,null,null,null,null,null,null,null,null,null,null,null,null,null,null,null,null,null,null,null,null,null,null,null,null,null,null,null,null,1]
[null,null,"抵抗",null,null,{"$f":"IF($S$10=1,VLOOKUP(種族名,VL用!$F$25:$Z$47,VL用!$B33,FALSE),IF($S$10=2,VLOOKUP(種族名,VL用!$AA$25:$AU55,VL用!$B33,FALSE),IF($S$10=3,VLOOKUP(種族名,VL用!$AV$25:$BP$47,VL用!$B33,FALSE),IF($S$10=4,VLOOKUP(種族名,VL用!$BQ$25:$CK$47,VL用!$B33,FALSE),IF($S$10=5,VLOOKUP(種族名,VL用!$CL$25:$DF$47,VL用!$B33,FALSE),IF($S$10=6,VLOOKUP(種族名,VL用!$DG$25:$EA$47,VL用!$B33,FALSE),IF($S$10=7,VLOOKUP(種族名,VL用!$EB$25:$EV$47,VL用!$B33,FALSE),IF($S$10=8,VLOOKUP(種族名,VL用!$EW$25:$FQ$47,VL用!$B33,FALSE),IF($S$10=9,VLOOKUP(種族名,VL用!$FR$25:$GL$47,VL用!$B33,FALSE),IF($S$10=10,VLOOKUP(種族名,VL用!$GM$25:$HG$47,VL用!$B33,FALSE)))))))))))","v":3},null,null,{"$f":"VLOOKUP(クラスA,VL用!$F$50:$P$96,VL用!$B33,FALSE)+VLOOKUP(クラスB,VL用!$F$50:$P$96,VL用!$B33,FALSE)","v":6},null,null,{"$f":"IF(VLOOKUP(武器名,VL用!$AM$51:$BM$234,VL用!$DK58,FALSE)&\"\"=\"\",\"\",VALUE(VLOOKUP(武器名,VL用!$AM$51:$BM$234,VL用!$DK58,FALSE)))","v":1},null,null,{"$f":"IF(VLOOKUP(防具名,VL用!$BO$51:$CK$164,VL用!$DK58,FALSE)&\"\"=\"\",\"\",VALUE(VLOOKUP(防具名,VL用!$BO$51:$CK$164,VL用!$DK58,FALSE)))","v":""},null,null,{"$f":"IF(VLOOKUP(アクセA,VL用!$CM$51:$DI$266,VL用!$DK58,FALSE)&\"\"=\"\",\"\",VALUE(VLOOKUP(アクセA,VL用!$CM$51:$DI$266,VL用!$DK58,FALSE)))","v":""},null,{"$f":"IF(VLOOKUP(アクセB,VL用!$CM$51:$DI$266,VL用!$DK58,FALSE)&\"\"=\"\",\"\",VALUE(VLOOKUP(アクセB,VL用!$CM$51:$DI$266,VL用!$DK58,FALSE)))","v":""},null,{"$f":"IF(VLOOKUP(アクセC,VL用!$CM$51:$DI$266,VL用!$DK58,FALSE)&\"\"=\"\",\"\",VALUE(VLOOKUP(アクセC,VL用!$CM$51:$DI$266,VL用!$DK58,FALSE)))","v":""},null,null,null,null,null,null,null,null,null,"抵抗",null,null,{"$f":"SUM(F33:AB34)","v":10}]
[null,null,null,null,null,null,null,null,null,null,null,null,null,null,null,null,null,null,null,null,null,null,null,null,null,null,null,null,null,null,null,null,null,null,null,null,null,null,null,null,null,null,1,null,null,null,null,null,null,null,null,null,null,null,null,null,null,null,null,null,null,null,null,null,null,null,null,null,null,null,null,null,null,null,null,null,null,null,null,null," "]
[null,null,"敏捷",null,null,{"$f":"IF($S$10=1,VLOOKUP(種族名,VL用!$F$25:$Z$47,VL用!$B35,FALSE),IF($S$10=2,VLOOKUP(種族名,VL用!$AA$25:$AU57,VL用!$B35,FALSE),IF($S$10=3,VLOOKUP(種族名,VL用!$AV$25:$BP$47,VL用!$B35,FALSE),IF($S$10=4,VLOOKUP(種族名,VL用!$BQ$25:$CK$47,VL用!$B35,FALSE),IF($S$10=5,VLOOKUP(種族名,VL用!$CL$25:$DF$47,VL用!$B35,FALSE),IF($S$10=6,VLOOKUP(種族名,VL用!$DG$25:$EA$47,VL用!$B35,FALSE),IF($S$10=7,VLOOKUP(種族名,VL用!$EB$25:$EV$47,VL用!$B35,FALSE),IF($S$10=8,VLOOKUP(種族名,VL用!$EW$25:$FQ$47,VL用!$B35,FALSE),IF($S$10=9,VLOOKUP(種族名,VL用!$FR$25:$GL$47,VL用!$B35,FALSE),IF($S$10=10,VLOOKUP(種族名,VL用!$GM$25:$HG$47,VL用!$B35,FALSE)))))))))))","v":4},null,null,{"$f":"VLOOKUP(クラスA,VL用!$F$50:$P$96,VL用!$B35,FALSE)+VLOOKUP(クラスB,VL用!$F$50:$P$96,VL用!$B35,FALSE)+IF(クラスA=\"WR\",IF(S10<=5,S10,5),0)+IF(クラスB=\"WR\",IF(S10<=5,S10,5),0)-IF(AND(クラスA=\"WR\",クラスB=\"WR\"),IF(S10<=5,S10,5),0)","v":8},null,null,{"$f":"IF(VLOOKUP(武器名,VL用!$AM$51:$BM$234,VL用!$DK60,FALSE)&\"\"=\"\",\"\",VALUE(VLOOKUP(武器名,VL用!$AM$51:$BM$234,VL用!$DK60,FALSE)))","v":""},null,null,{"$f":"IF(VLOOKUP(防具名,VL用!$BO$51:$CK$164,VL用!$DK60,FALSE)&\"\"=\"\",\"\",VALUE(VLOOKUP(防具名,VL用!$BO$51:$CK$164,VL用!$DK60,FALSE)))","v":""},null,null,{"$f":"IF(VLOOKUP(アクセA,VL用!$CM$51:$DI$266,VL用!$DK60,FALSE)&\"\"=\"\",\"\",VALUE(VLOOKUP(アクセA,VL用!$CM$51:$DI$266,VL用!$DK60,FALSE)))","v":""},null,{"$f":"IF(VLOOKUP(アクセB,VL用!$CM$51:$DI$266,VL用!$DK60,FALSE)&\"\"=\"\",\"\",VALUE(VLOOKUP(アクセB,VL用!$CM$51:$DI$266,VL用!$DK60,FALSE)))","v":""},null,{"$f":"IF(VLOOKUP(アクセC,VL用!$CM$51:$DI$266,VL用!$DK60,FALSE)&\"\"=\"\",\"\",VALUE(VLOOKUP(アクセC,VL用!$CM$51:$DI$266,VL用!$DK60,FALSE)))","v":""},null,null,null,null,null,null,null,null,null,"敏捷",null,null,{"$f":"SUM(F35:AB36)","v":12}]
[null,null,null,null,null,null,null,null,null,null,null,null,null,null,null,null,null,null,null,null,null,null,null,null,null,null,null,null,null,null,null,null,null,null,null,null,null,null,null,null,null,null,1]
[null,null,"物攻",null,null,{"$f":"IF($S$10=1,VLOOKUP(種族名,VL用!$F$25:$Z$47,VL用!$B37,FALSE),IF($S$10=2,VLOOKUP(種族名,VL用!$AA$25:$AU59,VL用!$B37,FALSE),IF($S$10=3,VLOOKUP(種族名,VL用!$AV$25:$BP$47,VL用!$B37,FALSE),IF($S$10=4,VLOOKUP(種族名,VL用!$BQ$25:$CK$47,VL用!$B37,FALSE),IF($S$10=5,VLOOKUP(種族名,VL用!$CL$25:$DF$47,VL用!$B37,FALSE),IF($S$10=6,VLOOKUP(種族名,VL用!$DG$25:$EA$47,VL用!$B37,FALSE),IF($S$10=7,VLOOKUP(種族名,VL用!$EB$25:$EV$47,VL用!$B37,FALSE),IF($S$10=8,VLOOKUP(種族名,VL用!$EW$25:$FQ$47,VL用!$B37,FALSE),IF($S$10=9,VLOOKUP(種族名,VL用!$FR$25:$GL$47,VL用!$B37,FALSE),IF($S$10=10,VLOOKUP(種族名,VL用!$GM$25:$HG$47,VL用!$B37,FALSE)))))))))))","v":10},null,null,{"$f":"VLOOKUP(クラスA,VL用!$F$50:$P$96,VL用!$B37,FALSE)+VLOOKUP(クラスB,VL用!$F$50:$P$96,VL用!$B37,FALSE)","v":8},null,null,{"$f":"IF(VLOOKUP(武器名,VL用!$AM$51:$BM$234,VL用!$DK62,FALSE)&\"\"=\"\",\"\",VALUE(VLOOKUP(武器名,VL用!$AM$51:$BM$234,VL用!$DK62,FALSE)))","v":30},null,null,{"$f":"IF(VLOOKUP(防具名,VL用!$BO$51:$CK$164,VL用!$DK62,FALSE)&\"\"=\"\",\"\",VALUE(VLOOKUP(防具名,VL用!$BO$51:$CK$164,VL用!$DK62,FALSE)))","v":""},null,null,{"$f":"IF(VLOOKUP(アクセA,VL用!$CM$51:$DI$266,VL用!$DK62,FALSE)&\"\"=\"\",\"\",VALUE(VLOOKUP(アクセA,VL用!$CM$51:$DI$266,VL用!$DK62,FALSE)))","v":""},null,{"$f":"IF(VLOOKUP(アクセB,VL用!$CM$51:$DI$266,VL用!$DK62,FALSE)&\"\"=\"\",\"\",VALUE(VLOOKUP(アクセB,VL用!$CM$51:$DI$266,VL用!$DK62,FALSE)))","v":""},null,{"$f":"IF(VLOOKUP(アクセC,VL用!$CM$51:$DI$266,VL用!$DK62,FALSE)&\"\"=\"\",\"\",VALUE(VLOOKUP(アクセC,VL用!$CM$51:$DI$266,VL用!$DK62,FALSE)))","v":""},null,null,null,null,null,null,null,null,null,"物攻",null,null,{"$f":"SUM(F37:AB38)","v":48}]
[null,null,null,null,null,null,null,null,null,null,null,null,null,null,null,null,null,null,null,null,null,null,null,null,null,null,null,null,null,null,null,null,null,null,null,null,null,null,null,null,null,null,1]
[null,null,"魔攻",null,null,{"$f":"IF($S$10=1,VLOOKUP(種族名,VL用!$F$25:$Z$47,VL用!$B39,FALSE),IF($S$10=2,VLOOKUP(種族名,VL用!$AA$25:$AU61,VL用!$B39,FALSE),IF($S$10=3,VLOOKUP(種族名,VL用!$AV$25:$BP$47,VL用!$B39,FALSE),IF($S$10=4,VLOOKUP(種族名,VL用!$BQ$25:$CK$47,VL用!$B39,FALSE),IF($S$10=5,VLOOKUP(種族名,VL用!$CL$25:$DF$47,VL用!$B39,FALSE),IF($S$10=6,VLOOKUP(種族名,VL用!$DG$25:$EA$47,VL用!$B39,FALSE),IF($S$10=7,VLOOKUP(種族名,VL用!$EB$25:$EV$47,VL用!$B39,FALSE),IF($S$10=8,VLOOKUP(種族名,VL用!$EW$25:$FQ$47,VL用!$B39,FALSE),IF($S$10=9,VLOOKUP(種族名,VL用!$FR$25:$GL$47,VL用!$B39,FALSE),IF($S$10=10,VLOOKUP(種族名,VL用!$GM$25:$HG$47,VL用!$B39,FALSE)))))))))))","v":10},null,null,{"$f":"VLOOKUP(クラスA,VL用!$F$50:$P$96,VL用!$B39,FALSE)+VLOOKUP(クラスB,VL用!$F$50:$P$96,VL用!$B39,FALSE)","v":8},null,null,{"$f":"IF(VLOOKUP(武器名,VL用!$AM$51:$BM$234,VL用!$DK64,FALSE)&\"\"=\"\",\"\",VALUE(VLOOKUP(武器名,VL用!$AM$51:$BM$234,VL用!$DK64,FALSE)))","v":""},null,null,{"$f":"IF(VLOOKUP(防具名,VL用!$BO$51:$CK$164,VL用!$DK64,FALSE)&\"\"=\"\",\"\",VALUE(VLOOKUP(防具名,VL用!$BO$51:$CK$164,VL用!$DK64,FALSE)))","v":""},null,null,{"$f":"IF(VLOOKUP(アクセA,VL用!$CM$51:$DI$266,VL用!$DK64,FALSE)&\"\"=\"\",\"\",VALUE(VLOOKUP(アクセA,VL用!$CM$51:$DI$266,VL用!$DK64,FALSE)))","v":""},null,{"$f":"IF(VLOOKUP(アクセB,VL用!$CM$51:$DI$266,VL用!$DK64,FALSE)&\"\"=\"\",\"\",VALUE(VLOOKUP(アクセB,VL用!$CM$51:$DI$266,VL用!$DK64,FALSE)))","v":""},null,{"$f":"IF(VLOOKUP(アクセC,VL用!$CM$51:$DI$266,VL用!$DK64,FALSE)&\"\"=\"\",\"\",VALUE(VLOOKUP(アクセC,VL用!$CM$51:$DI$266,VL用!$DK64,FALSE)))","v":""},null,null,null,null,null,null,null,null,null,"魔攻",null,null,{"$f":"SUM(F39:AB40)","v":18}]
[null,null,null,null,null,null,null,null,null,null,null,null,null,null,null,null,null,null,null,null,null,null,null,null,null,null,null,null,null,null,null,null,null,null,null,null,null,null,null,null,null,null,1]
[null,null,"耐久",null,null,{"$f":"IF($S$10=1,VLOOKUP(種族名,VL用!$F$25:$Z$47,VL用!$B41,FALSE),IF($S$10=2,VLOOKUP(種族名,VL用!$AA$25:$AU63,VL用!$B41,FALSE),IF($S$10=3,VLOOKUP(種族名,VL用!$AV$25:$BP$47,VL用!$B41,FALSE),IF($S$10=4,VLOOKUP(種族名,VL用!$BQ$25:$CK$47,VL用!$B41,FALSE),IF($S$10=5,VLOOKUP(種族名,VL用!$CL$25:$DF$47,VL用!$B41,FALSE),IF($S$10=6,VLOOKUP(種族名,VL用!$DG$25:$EA$47,VL用!$B41,FALSE),IF($S$10=7,VLOOKUP(種族名,VL用!$EB$25:$EV$47,VL用!$B41,FALSE),IF($S$10=8,VLOOKUP(種族名,VL用!$EW$25:$FQ$47,VL用!$B41,FALSE),IF($S$10=9,VLOOKUP(種族名,VL用!$FR$25:$GL$47,VL用!$B41,FALSE),IF($S$10=10,VLOOKUP(種族名,VL用!$GM$25:$HG$47,VL用!$B41,FALSE)))))))))))","v":100},null,null,{"$f":"VLOOKUP(クラスA,VL用!$F$50:$P$96,VL用!$B41,FALSE)+VLOOKUP(クラスB,VL用!$F$50:$P$96,VL用!$B41,FALSE)+IF(クラスA=\"BS\",S10*5,0)+IF(クラスA=\"AB\",S10*3,0)+IF(クラスA=\"FM\",(CL+1)*-10)+IF(クラスB=\"BS\",S10*5,0)+IF(クラスB=\"AB\",S10*3,0)+IF(クラスB=\"FM\",(CL+1)*-10)-IF(AND(クラスA=\"BS\",クラスB=\"BS\"),S10*5,0)-IF(AND(クラスA=\"AB\",クラスB=\"AB\"),S10*3,0)-IF(AND(クラスA=\"FM\",クラスB=\"FM\"),(CL+1)*-10)","v":46},null,null,{"$f":"IF(VLOOKUP(武器名,VL用!$AM$51:$BM$234,VL用!$DK66,FALSE)&\"\"=\"\",\"\",VALUE(VLOOKUP(武器名,VL用!$AM$51:$BM$234,VL用!$DK66,FALSE)))","v":-10},null,null,{"$f":"IF(VLOOKUP(防具名,VL用!$BO$51:$CK$164,VL用!$DK66,FALSE)&\"\"=\"\",\"\",VALUE(VLOOKUP(防具名,VL用!$BO$51:$CK$164,VL用!$DK66,FALSE)))","v":""},null,null,{"$f":"IF(VLOOKUP(アクセA,VL用!$CM$51:$DI$266,VL用!$DK66,FALSE)&\"\"=\"\",\"\",VALUE(VLOOKUP(アクセA,VL用!$CM$51:$DI$266,VL用!$DK66,FALSE)))","v":""},null,{"$f":"IF(VLOOKUP(アクセB,VL用!$CM$51:$DI$266,VL用!$DK66,FALSE)&\"\"=\"\",\"\",VALUE(VLOOKUP(アクセB,VL用!$CM$51:$DI$266,VL用!$DK66,FALSE)))","v":""},null,{"$f":"IF(VLOOKUP(アクセC,VL用!$CM$51:$DI$266,VL用!$DK66,FALSE)&\"\"=\"\",\"\",VALUE(VLOOKUP(アクセC,VL用!$CM$51:$DI$266,VL用!$DK66,FALSE)))","v":""},null,null,null,null,null,null,null,null,null,"耐久",null,null,{"$f":"SUM(F41:AB42)","v":136}]
[null,null,null,null,null,null,null,null,null,null,null,null,null,null,null,null,null,null,null,null,null,null,null,null,null,null,null,null,null,null,null,null,null,null,null,null,null,null,null,null,null,null,1]
[null,null,"精神",null,null,{"$f":"IF($S$10=1,VLOOKUP(種族名,VL用!$F$25:$Z$47,VL用!$B43,FALSE),IF($S$10=2,VLOOKUP(種族名,VL用!$AA$25:$AU65,VL用!$B43,FALSE),IF($S$10=3,VLOOKUP(種族名,VL用!$AV$25:$BP$47,VL用!$B43,FALSE),IF($S$10=4,VLOOKUP(種族名,VL用!$BQ$25:$CK$47,VL用!$B43,FALSE),IF($S$10=5,VLOOKUP(種族名,VL用!$CL$25:$DF$47,VL用!$B43,FALSE),IF($S$10=6,VLOOKUP(種族名,VL用!$DG$25:$EA$47,VL用!$B43,FALSE),IF($S$10=7,VLOOKUP(種族名,VL用!$EB$25:$EV$47,VL用!$B43,FALSE),IF($S$10=8,VLOOKUP(種族名,VL用!$EW$25:$FQ$47,VL用!$B43,FALSE),IF($S$10=9,VLOOKUP(種族名,VL用!$FR$25:$GL$47,VL用!$B43,FALSE),IF($S$10=10,VLOOKUP(種族名,VL用!$GM$25:$HG$47,VL用!$B43,FALSE)))))))))))","v":30},null,null,{"$f":"VLOOKUP(クラスA,VL用!$F$50:$P$96,VL用!$B43,FALSE)+VLOOKUP(クラスB,VL用!$F$50:$P$96,VL用!$B43,FALSE)+IF(クラスA=\"VC\",S10*2,0)+IF(クラスA=\"AB\",S10)+IF(クラスB=\"VC\",S10*2,0)+IF(クラスB=\"AB\",S10)-IF(AND(クラスA=\"VC\",クラスB=\"VC\"),S10*2,0)-IF(AND(クラスA=\"AB\",クラスB=\"AB\"),S10)","v":18},null,null,{"$f":"IF(VLOOKUP(武器名,VL用!$AM$51:$BM$234,VL用!$DK68,FALSE)&\"\"=\"\",\"\",VALUE(VLOOKUP(武器名,VL用!$AM$51:$BM$234,VL用!$DK68,FALSE)))","v":""},null,null,{"$f":"IF(VLOOKUP(防具名,VL用!$BO$51:$CK$164,VL用!$DK68,FALSE)&\"\"=\"\",\"\",VALUE(VLOOKUP(防具名,VL用!$BO$51:$CK$164,VL用!$DK68,FALSE)))","v":""},null,null,{"$f":"IF(VLOOKUP(アクセA,VL用!$CM$51:$DI$266,VL用!$DK68,FALSE)&\"\"=\"\",\"\",VALUE(VLOOKUP(アクセA,VL用!$CM$51:$DI$266,VL用!$DK68,FALSE)))","v":""},null,{"$f":"IF(VLOOKUP(アクセB,VL用!$CM$51:$DI$266,VL用!$DK68,FALSE)&\"\"=\"\",\"\",VALUE(VLOOKUP(アクセB,VL用!$CM$51:$DI$266,VL用!$DK68,FALSE)))","v":""},null,{"$f":"IF(VLOOKUP(アクセC,VL用!$CM$51:$DI$266,VL用!$DK68,FALSE)&\"\"=\"\",\"\",VALUE(VLOOKUP(アクセC,VL用!$CM$51:$DI$266,VL用!$DK68,FALSE)))","v":""},null,null,null,null,null,null,null,null,null,"精神",null,null,{"$f":"SUM(F43:AB44)","v":48}]
[null,null,null,null,null,null,null,null,null,null,null,null,null,null,null,null,null,null,null,null,null,null,null,null,null,null,null,null,null,null,null,null,null,null,null,null,null,null,null,null,null,null,2]
[null,null,"耐性","近",null,{"$f":"IF($S$10=1,VLOOKUP(種族名,VL用!$F$25:$Z$47,VL用!$B44,FALSE),IF($S$10=2,VLOOKUP(種族名,VL用!$AA$25:$AU65,VL用!$B44,FALSE),IF($S$10=3,VLOOKUP(種族名,VL用!$AV$25:$BP$47,VL用!$B44,FALSE),IF($S$10=4,VLOOKUP(種族名,VL用!$BQ$25:$CK$47,VL用!$B44,FALSE),IF($S$10=5,VLOOKUP(種族名,VL用!$CL$25:$DF$47,VL用!$B44,FALSE),IF($S$10=6,VLOOKUP(種族名,VL用!$DG$25:$EA$47,VL用!$B44,FALSE),IF($S$10=7,VLOOKUP(種族名,VL用!$EB$25:$EV$47,VL用!$B44,FALSE),IF($S$10=8,VLOOKUP(種族名,VL用!$EW$25:$FQ$47,VL用!$B44,FALSE),IF($S$10=9,VLOOKUP(種族名,VL用!$FR$25:$GL$47,VL用!$B44,FALSE),IF($S$10=10,VLOOKUP(種族名,VL用!$GM$25:$HG$47,VL用!$B44,FALSE)))))))))))","v":10},null,null,{"$f":"IF(VL用!AS2=0,\"\",VL用!AS2)","v":""},null,null,{"$f":"IF(VLOOKUP(武器名,VL用!$AM$51:$BM$234,VL用!$DK69,FALSE)&\"\"=\"\",\"\",VALUE(VLOOKUP(武器名,VL用!$AM$51:$BM$234,VL用!$DK69,FALSE)))","v":2},null,null,{"$f":"IF(VLOOKUP(防具名,VL用!$BO$51:$CK$164,VL用!$DK69,FALSE)&\"\"=\"\",\"\",VALUE(VLOOKUP(防具名,VL用!$BO$51:$CK$164,VL用!$DK69,FALSE)))","v":-10},null,null,{"$f":"IF(VLOOKUP(アクセA,VL用!$CM$51:$DI$266,VL用!$DK69,FALSE)&\"\"=\"\",\"\",VALUE(VLOOKUP(アクセA,VL用!$CM$51:$DI$266,VL用!$DK69,FALSE)))","v":""},null,{"$f":"IF(VLOOKUP(アクセB,VL用!$CM$51:$DI$266,VL用!$DK69,FALSE)&\"\"=\"\",\"\",VALUE(VLOOKUP(アクセB,VL用!$CM$51:$DI$266,VL用!$DK69,FALSE)))","v":""},null,{"$f":"IF(VLOOKUP(アクセC,VL用!$CM$51:$DI$266,VL用!$DK69,FALSE)&\"\"=\"\",\"\",VALUE(VLOOKUP(アクセC,VL用!$CM$51:$DI$266,VL用!$DK69,FALSE)))","v":""},null,null,null,null,null,null,2,null,"耐性","近",null,null,{"$f":"SUM(F45:AB45)","v":2}]
[null,null,null,"遠",null,{"$f":"IF($S$10=1,VLOOKUP(種族名,VL用!$F$25:$Z$47,VL用!$B45,FALSE),IF($S$10=2,VLOOKUP(種族名,VL用!$AA$25:$AU66,VL用!$B45,FALSE),IF($S$10=3,VLOOKUP(種族名,VL用!$AV$25:$BP$47,VL用!$B45,FALSE),IF($S$10=4,VLOOKUP(種族名,VL用!$BQ$25:$CK$47,VL用!$B45,FALSE),IF($S$10=5,VLOOKUP(種族名,VL用!$CL$25:$DF$47,VL用!$B45,FALSE),IF($S$10=6,VLOOKUP(種族名,VL用!$DG$25:$EA$47,VL用!$B45,FALSE),IF($S$10=7,VLOOKUP(種族名,VL用!$EB$25:$EV$47,VL用!$B45,FALSE),IF($S$10=8,VLOOKUP(種族名,VL用!$EW$25:$FQ$47,VL用!$B45,FALSE),IF($S$10=9,VLOOKUP(種族名,VL用!$FR$25:$GL$47,VL用!$B45,FALSE),IF($S$10=10,VLOOKUP(種族名,VL用!$GM$25:$HG$47,VL用!$B45,FALSE)))))))))))","v":10},null,null,{"$f":"IF(VL用!AS3=0,\"\",VL用!AS3)","v":""},null,null,{"$f":"IF(VLOOKUP(武器名,VL用!$AM$51:$BM$234,VL用!$DK70,FALSE)&\"\"=\"\",\"\",VALUE(VLOOKUP(武器名,VL用!$AM$51:$BM$234,VL用!$DK70,FALSE)))","v":""},null,null,{"$f":"IF(VLOOKUP(防具名,VL用!$BO$51:$CK$164,VL用!$DK70,FALSE)&\"\"=\"\",\"\",VALUE(VLOOKUP(防具名,VL用!$BO$51:$CK$164,VL用!$DK70,FALSE)))","v":-10},null,null,{"$f":"IF(VLOOKUP(アクセA,VL用!$CM$51:$DI$266,VL用!$DK70,FALSE)&\"\"=\"\",\"\",VALUE(VLOOKUP(アクセA,VL用!$CM$51:$DI$266,VL用!$DK70,FALSE)))","v":""},null,{"$f":"IF(VLOOKUP(アクセB,VL用!$CM$51:$DI$266,VL用!$DK70,FALSE)&\"\"=\"\",\"\",VALUE(VLOOKUP(アクセB,VL用!$CM$51:$DI$266,VL用!$DK70,FALSE)))","v":""},null,{"$f":"IF(VLOOKUP(アクセC,VL用!$CM$51:$DI$266,VL用!$DK70,FALSE)&\"\"=\"\",\"\",VALUE(VLOOKUP(アクセC,VL用!$CM$51:$DI$266,VL用!$DK70,FALSE)))","v":""},null,null,null,null,null,null,null,null,null,"遠",null,null,{"$f":"SUM(F46:AB46)","v":0},null,null,null,null,null,null,null,3,null,null,null,null,null,null,null,null,null,null,null,null,null,null,null,null,null,null,null,null,null,null,null,null,null,null,null,null,null,null,null,null,null,null,null,null,null," "]
[null,null,null,"炎",null,{"$f":"IF($S$10=1,VLOOKUP(種族名,VL用!$F$25:$Z$47,VL用!$B46,FALSE),IF($S$10=2,VLOOKUP(種族名,VL用!$AA$25:$AU67,VL用!$B46,FALSE),IF($S$10=3,VLOOKUP(種族名,VL用!$AV$25:$BP$47,VL用!$B46,FALSE),IF($S$10=4,VLOOKUP(種族名,VL用!$BQ$25:$CK$47,VL用!$B46,FALSE),IF($S$10=5,VLOOKUP(種族名,VL用!$CL$25:$DF$47,VL用!$B46,FALSE),IF($S$10=6,VLOOKUP(種族名,VL用!$DG$25:$EA$47,VL用!$B46,FALSE),IF($S$10=7,VLOOKUP(種族名,VL用!$EB$25:$EV$47,VL用!$B46,FALSE),IF($S$10=8,VLOOKUP(種族名,VL用!$EW$25:$FQ$47,VL用!$B46,FALSE),IF($S$10=9,VLOOKUP(種族名,VL用!$FR$25:$GL$47,VL用!$B46,FALSE),IF($S$10=10,VLOOKUP(種族名,VL用!$GM$25:$HG$47,VL用!$B46,FALSE)))))))))))+IF(種族名=\"キメラ忌\",CL*2+5,0)","v":0},null,null,{"$f":"IF(VL用!AS4=0,\"\",VL用!AS4)","v":""},null,null,{"$f":"IF(VLOOKUP(武器名,VL用!$AM$51:$BM$234,VL用!$DK71,FALSE)&\"\"=\"\",\"\",VALUE(VLOOKUP(武器名,VL用!$AM$51:$BM$234,VL用!$DK71,FALSE)))","v":-5},null,null,{"$f":"IF(VLOOKUP(防具名,VL用!$BO$51:$CK$164,VL用!$DK71,FALSE)&\"\"=\"\",\"\",VALUE(VLOOKUP(防具名,VL用!$BO$51:$CK$164,VL用!$DK71,FALSE)))","v":-10},null,null,{"$f":"IF(VLOOKUP(アクセA,VL用!$CM$51:$DI$266,VL用!$DK71,FALSE)&\"\"=\"\",\"\",VALUE(VLOOKUP(アクセA,VL用!$CM$51:$DI$266,VL用!$DK71,FALSE)))","v":""},null,{"$f":"IF(VLOOKUP(アクセB,VL用!$CM$51:$DI$266,VL用!$DK71,FALSE)&\"\"=\"\",\"\",VALUE(VLOOKUP(アクセB,VL用!$CM$51:$DI$266,VL用!$DK71,FALSE)))","v":""},null,{"$f":"IF(VLOOKUP(アクセC,VL用!$CM$51:$DI$266,VL用!$DK71,FALSE)&\"\"=\"\",\"\",VALUE(VLOOKUP(アクセC,VL用!$CM$51:$DI$266,VL用!$DK71,FALSE)))","v":""},null,null,null,null,null,null,null,null,null,"炎",null,null,-15]
[null,null,null,"氷",null,{"$f":"IF($S$10=1,VLOOKUP(種族名,VL用!$F$25:$Z$47,VL用!$B47,FALSE),IF($S$10=2,VLOOKUP(種族名,VL用!$AA$25:$AU68,VL用!$B47,FALSE),IF($S$10=3,VLOOKUP(種族名,VL用!$AV$25:$BP$47,VL用!$B47,FALSE),IF($S$10=4,VLOOKUP(種族名,VL用!$BQ$25:$CK$47,VL用!$B47,FALSE),IF($S$10=5,VLOOKUP(種族名,VL用!$CL$25:$DF$47,VL用!$B47,FALSE),IF($S$10=6,VLOOKUP(種族名,VL用!$DG$25:$EA$47,VL用!$B47,FALSE),IF($S$10=7,VLOOKUP(種族名,VL用!$EB$25:$EV$47,VL用!$B47,FALSE),IF($S$10=8,VLOOKUP(種族名,VL用!$EW$25:$FQ$47,VL用!$B47,FALSE),IF($S$10=9,VLOOKUP(種族名,VL用!$FR$25:$GL$47,VL用!$B47,FALSE),IF($S$10=10,VLOOKUP(種族名,VL用!$GM$25:$HG$47,VL用!$B47,FALSE)))))))))))+IF(種族名=\"キメラ忌\",CL*2+5,0)","v":0},null,null,{"$f":"IF(VL用!AS5=0,\"\",VL用!AS5)","v":""},null,null,{"$f":"IF(VLOOKUP(武器名,VL用!$AM$51:$BM$234,VL用!$DK72,FALSE)&\"\"=\"\",\"\",VALUE(VLOOKUP(武器名,VL用!$AM$51:$BM$234,VL用!$DK72,FALSE)))","v":""},null,null,{"$f":"IF(VLOOKUP(防具名,VL用!$BO$51:$CK$164,VL用!$DK72,FALSE)&\"\"=\"\",\"\",VALUE(VLOOKUP(防具名,VL用!$BO$51:$CK$164,VL用!$DK72,FALSE)))","v":-10},null,null,{"$f":"IF(VLOOKUP(アクセA,VL用!$CM$51:$DI$266,VL用!$DK72,FALSE)&\"\"=\"\",\"\",VALUE(VLOOKUP(アクセA,VL用!$CM$51:$DI$266,VL用!$DK72,FALSE)))","v":""},null,{"$f":"IF(VLOOKUP(アクセB,VL用!$CM$51:$DI$266,VL用!$DK72,FALSE)&\"\"=\"\",\"\",VALUE(VLOOKUP(アクセB,VL用!$CM$51:$DI$266,VL用!$DK72,FALSE)))","v":""},null,{"$f":"IF(VLOOKUP(アクセC,VL用!$CM$51:$DI$266,VL用!$DK72,FALSE)&\"\"=\"\",\"\",VALUE(VLOOKUP(アクセC,VL用!$CM$51:$DI$266,VL用!$DK72,FALSE)))","v":""},null,null,null,null,null,null,null,null,null,"氷",null,null,-10,null,null,null,null,null,null,null,4]
[null,null,null,"水",null,{"$f":"IF($S$10=1,VLOOKUP(種族名,VL用!$F$25:$Z$47,VL用!$B48,FALSE),IF($S$10=2,VLOOKUP(種族名,VL用!$AA$25:$AU69,VL用!$B48,FALSE),IF($S$10=3,VLOOKUP(種族名,VL用!$AV$25:$BP$47,VL用!$B48,FALSE),IF($S$10=4,VLOOKUP(種族名,VL用!$BQ$25:$CK$47,VL用!$B48,FALSE),IF($S$10=5,VLOOKUP(種族名,VL用!$CL$25:$DF$47,VL用!$B48,FALSE),IF($S$10=6,VLOOKUP(種族名,VL用!$DG$25:$EA$47,VL用!$B48,FALSE),IF($S$10=7,VLOOKUP(種族名,VL用!$EB$25:$EV$47,VL用!$B48,FALSE),IF($S$10=8,VLOOKUP(種族名,VL用!$EW$25:$FQ$47,VL用!$B48,FALSE),IF($S$10=9,VLOOKUP(種族名,VL用!$FR$25:$GL$47,VL用!$B48,FALSE),IF($S$10=10,VLOOKUP(種族名,VL用!$GM$25:$HG$47,VL用!$B48,FALSE)))))))))))+IF(種族名=\"キメラ忌\",CL*2+5,0)","v":-5},null,null,{"$f":"IF(VL用!AS6=0,\"\",VL用!AS6)","v":""},null,null,{"$f":"IF(VLOOKUP(武器名,VL用!$AM$51:$BM$234,VL用!$DK73,FALSE)&\"\"=\"\",\"\",VALUE(VLOOKUP(武器名,VL用!$AM$51:$BM$234,VL用!$DK73,FALSE)))","v":2},null,null,{"$f":"IF(VLOOKUP(防具名,VL用!$BO$51:$CK$164,VL用!$DK73,FALSE)&\"\"=\"\",\"\",VALUE(VLOOKUP(防具名,VL用!$BO$51:$CK$164,VL用!$DK73,FALSE)))","v":-10},null,null,{"$f":"IF(VLOOKUP(アクセA,VL用!$CM$51:$DI$266,VL用!$DK73,FALSE)&\"\"=\"\",\"\",VALUE(VLOOKUP(アクセA,VL用!$CM$51:$DI$266,VL用!$DK73,FALSE)))","v":""},null,{"$f":"IF(VLOOKUP(アクセB,VL用!$CM$51:$DI$266,VL用!$DK73,FALSE)&\"\"=\"\",\"\",VALUE(VLOOKUP(アクセB,VL用!$CM$51:$DI$266,VL用!$DK73,FALSE)))","v":""},null,{"$f":"IF(VLOOKUP(アクセC,VL用!$CM$51:$DI$266,VL用!$DK73,FALSE)&\"\"=\"\",\"\",VALUE(VLOOKUP(アクセC,VL用!$CM$51:$DI$266,VL用!$DK73,FALSE)))","v":""},null,null,null,null,null,null,null,null,null,"水",null,null,-13]
[null,null,null,"雷",null,{"$f":"IF($S$10=1,VLOOKUP(種族名,VL用!$F$25:$Z$47,VL用!$B49,FALSE),IF($S$10=2,VLOOKUP(種族名,VL用!$AA$25:$AU70,VL用!$B49,FALSE),IF($S$10=3,VLOOKUP(種族名,VL用!$AV$25:$BP$47,VL用!$B49,FALSE),IF($S$10=4,VLOOKUP(種族名,VL用!$BQ$25:$CK$47,VL用!$B49,FALSE),IF($S$10=5,VLOOKUP(種族名,VL用!$CL$25:$DF$47,VL用!$B49,FALSE),IF($S$10=6,VLOOKUP(種族名,VL用!$DG$25:$EA$47,VL用!$B49,FALSE),IF($S$10=7,VLOOKUP(種族名,VL用!$EB$25:$EV$47,VL用!$B49,FALSE),IF($S$10=8,VLOOKUP(種族名,VL用!$EW$25:$FQ$47,VL用!$B49,FALSE),IF($S$10=9,VLOOKUP(種族名,VL用!$FR$25:$GL$47,VL用!$B49,FALSE),IF($S$10=10,VLOOKUP(種族名,VL用!$GM$25:$HG$47,VL用!$B49,FALSE)))))))))))+IF(種族名=\"キメラ忌\",CL*2+5,0)","v":0},null,null,{"$f":"IF(VL用!AS7=0,\"\",VL用!AS7)","v":""},null,null,{"$f":"IF(VLOOKUP(武器名,VL用!$AM$51:$BM$234,VL用!$DK74,FALSE)&\"\"=\"\",\"\",VALUE(VLOOKUP(武器名,VL用!$AM$51:$BM$234,VL用!$DK74,FALSE)))","v":2},null,null,{"$f":"IF(VLOOKUP(防具名,VL用!$BO$51:$CK$164,VL用!$DK74,FALSE)&\"\"=\"\",\"\",VALUE(VLOOKUP(防具名,VL用!$BO$51:$CK$164,VL用!$DK74,FALSE)))","v":-10},null,null,{"$f":"IF(VLOOKUP(アクセA,VL用!$CM$51:$DI$266,VL用!$DK74,FALSE)&\"\"=\"\",\"\",VALUE(VLOOKUP(アクセA,VL用!$CM$51:$DI$266,VL用!$DK74,FALSE)))","v":""},null,{"$f":"IF(VLOOKUP(アクセB,VL用!$CM$51:$DI$266,VL用!$DK74,FALSE)&\"\"=\"\",\"\",VALUE(VLOOKUP(アクセB,VL用!$CM$51:$DI$266,VL用!$DK74,FALSE)))","v":""},null,{"$f":"IF(VLOOKUP(アクセC,VL用!$CM$51:$DI$266,VL用!$DK74,FALSE)&\"\"=\"\",\"\",VALUE(VLOOKUP(アクセC,VL用!$CM$51:$DI$266,VL用!$DK74,FALSE)))","v":""},null,null,null,null,null,null,1,null,null,"雷",null,null,{"$f":"SUM(F50:AB50)","v":-8},null,null,null,null,null,null,null,5]
[null,null,null,"風",null,{"$f":"IF($S$10=1,VLOOKUP(種族名,VL用!$F$25:$Z$47,VL用!$B50,FALSE),IF($S$10=2,VLOOKUP(種族名,VL用!$AA$25:$AU71,VL用!$B50,FALSE),IF($S$10=3,VLOOKUP(種族名,VL用!$AV$25:$BP$47,VL用!$B50,FALSE),IF($S$10=4,VLOOKUP(種族名,VL用!$BQ$25:$CK$47,VL用!$B50,FALSE),IF($S$10=5,VLOOKUP(種族名,VL用!$CL$25:$DF$47,VL用!$B50,FALSE),IF($S$10=6,VLOOKUP(種族名,VL用!$DG$25:$EA$47,VL用!$B50,FALSE),IF($S$10=7,VLOOKUP(種族名,VL用!$EB$25:$EV$47,VL用!$B50,FALSE),IF($S$10=8,VLOOKUP(種族名,VL用!$EW$25:$FQ$47,VL用!$B50,FALSE),IF($S$10=9,VLOOKUP(種族名,VL用!$FR$25:$GL$47,VL用!$B50,FALSE),IF($S$10=10,VLOOKUP(種族名,VL用!$GM$25:$HG$47,VL用!$B50,FALSE)))))))))))+IF(種族名=\"キメラ忌\",CL*2+5,0)","v":5},null,null,{"$f":"IF(VL用!AS8=0,\"\",VL用!AS8)","v":""},null,null,{"$f":"IF(VLOOKUP(武器名,VL用!$AM$51:$BM$234,VL用!$DK75,FALSE)&\"\"=\"\",\"\",VALUE(VLOOKUP(武器名,VL用!$AM$51:$BM$234,VL用!$DK75,FALSE)))","v":2},null,null,{"$f":"IF(VLOOKUP(防具名,VL用!$BO$51:$CK$164,VL用!$DK75,FALSE)&\"\"=\"\",\"\",VALUE(VLOOKUP(防具名,VL用!$BO$51:$CK$164,VL用!$DK75,FALSE)))","v":-10},null,null,{"$f":"IF(VLOOKUP(アクセA,VL用!$CM$51:$DI$266,VL用!$DK75,FALSE)&\"\"=\"\",\"\",VALUE(VLOOKUP(アクセA,VL用!$CM$51:$DI$266,VL用!$DK75,FALSE)))","v":""},null,{"$f":"IF(VLOOKUP(アクセB,VL用!$CM$51:$DI$266,VL用!$DK75,FALSE)&\"\"=\"\",\"\",VALUE(VLOOKUP(アクセB,VL用!$CM$51:$DI$266,VL用!$DK75,FALSE)))","v":""},null,{"$f":"IF(VLOOKUP(アクセC,VL用!$CM$51:$DI$266,VL用!$DK75,FALSE)&\"\"=\"\",\"\",VALUE(VLOOKUP(アクセC,VL用!$CM$51:$DI$266,VL用!$DK75,FALSE)))","v":""},null,null,null,null,null,null,null,null,null,"風",null,null,-3]
[null,null,null,"土",null,{"$f":"IF($S$10=1,VLOOKUP(種族名,VL用!$F$25:$Z$47,VL用!$B51,FALSE),IF($S$10=2,VLOOKUP(種族名,VL用!$AA$25:$AU72,VL用!$B51,FALSE),IF($S$10=3,VLOOKUP(種族名,VL用!$AV$25:$BP$47,VL用!$B51,FALSE),IF($S$10=4,VLOOKUP(種族名,VL用!$BQ$25:$CK$47,VL用!$B51,FALSE),IF($S$10=5,VLOOKUP(種族名,VL用!$CL$25:$DF$47,VL用!$B51,FALSE),IF($S$10=6,VLOOKUP(種族名,VL用!$DG$25:$EA$47,VL用!$B51,FALSE),IF($S$10=7,VLOOKUP(種族名,VL用!$EB$25:$EV$47,VL用!$B51,FALSE),IF($S$10=8,VLOOKUP(種族名,VL用!$EW$25:$FQ$47,VL用!$B51,FALSE),IF($S$10=9,VLOOKUP(種族名,VL用!$FR$25:$GL$47,VL用!$B51,FALSE),IF($S$10=10,VLOOKUP(種族名,VL用!$GM$25:$HG$47,VL用!$B51,FALSE)))))))))))+IF(種族名=\"キメラ忌\",CL*2+5,0)","v":2},null,null,{"$f":"IF(VL用!AS9=0,\"\",VL用!AS9)","v":""},null,null,{"$f":"IF(VLOOKUP(武器名,VL用!$AM$51:$BM$234,VL用!$DK76,FALSE)&\"\"=\"\",\"\",VALUE(VLOOKUP(武器名,VL用!$AM$51:$BM$234,VL用!$DK76,FALSE)))","v":""},null,null,{"$f":"IF(VLOOKUP(防具名,VL用!$BO$51:$CK$164,VL用!$DK76,FALSE)&\"\"=\"\",\"\",VALUE(VLOOKUP(防具名,VL用!$BO$51:$CK$164,VL用!$DK76,FALSE)))","v":-10},null,null,{"$f":"IF(VLOOKUP(アクセA,VL用!$CM$51:$DI$266,VL用!$DK76,FALSE)&\"\"=\"\",\"\",VALUE(VLOOKUP(アクセA,VL用!$CM$51:$DI$266,VL用!$DK76,FALSE)))","v":""},null,{"$f":"IF(VLOOKUP(アクセB,VL用!$CM$51:$DI$266,VL用!$DK76,FALSE)&\"\"=\"\",\"\",VALUE(VLOOKUP(アクセB,VL用!$CM$51:$DI$266,VL用!$DK76,FALSE)))","v":""},null,{"$f":"IF(VLOOKUP(アクセC,VL用!$CM$51:$DI$266,VL用!$DK76,FALSE)&\"\"=\"\",\"\",VALUE(VLOOKUP(アクセC,VL用!$CM$51:$DI$266,VL用!$DK76,FALSE)))","v":""},null,null,null,null,null,null,null,null,null,"土",null,null,-8,null,null,null,null,null,null,null,7]
[null,null,null,"光",null,{"$f":"IF($S$10=1,VLOOKUP(種族名,VL用!$F$25:$Z$47,VL用!$B52,FALSE),IF($S$10=2,VLOOKUP(種族名,VL用!$AA$25:$AU73,VL用!$B52,FALSE),IF($S$10=3,VLOOKUP(種族名,VL用!$AV$25:$BP$47,VL用!$B52,FALSE),IF($S$10=4,VLOOKUP(種族名,VL用!$BQ$25:$CK$47,VL用!$B52,FALSE),IF($S$10=5,VLOOKUP(種族名,VL用!$CL$25:$DF$47,VL用!$B52,FALSE),IF($S$10=6,VLOOKUP(種族名,VL用!$DG$25:$EA$47,VL用!$B52,FALSE),IF($S$10=7,VLOOKUP(種族名,VL用!$EB$25:$EV$47,VL用!$B52,FALSE),IF($S$10=8,VLOOKUP(種族名,VL用!$EW$25:$FQ$47,VL用!$B52,FALSE),IF($S$10=9,VLOOKUP(種族名,VL用!$FR$25:$GL$47,VL用!$B52,FALSE),IF($S$10=10,VLOOKUP(種族名,VL用!$GM$25:$HG$47,VL用!$B52,FALSE)))))))))))+IF(種族名=\"キメラ忌\",CL*2+5,0)","v":4},null,null,{"$f":"IF(VL用!AS10=0,\"\",VL用!AS10)","v":""},null,null,{"$f":"IF(VLOOKUP(武器名,VL用!$AM$51:$BM$234,VL用!$DK77,FALSE)&\"\"=\"\",\"\",VALUE(VLOOKUP(武器名,VL用!$AM$51:$BM$234,VL用!$DK77,FALSE)))","v":5},null,null,{"$f":"IF(VLOOKUP(防具名,VL用!$BO$51:$CK$164,VL用!$DK77,FALSE)&\"\"=\"\",\"\",VALUE(VLOOKUP(防具名,VL用!$BO$51:$CK$164,VL用!$DK77,FALSE)))","v":-10},null,null,{"$f":"IF(VLOOKUP(アクセA,VL用!$CM$51:$DI$266,VL用!$DK77,FALSE)&\"\"=\"\",\"\",VALUE(VLOOKUP(アクセA,VL用!$CM$51:$DI$266,VL用!$DK77,FALSE)))","v":""},null,{"$f":"IF(VLOOKUP(アクセB,VL用!$CM$51:$DI$266,VL用!$DK77,FALSE)&\"\"=\"\",\"\",VALUE(VLOOKUP(アクセB,VL用!$CM$51:$DI$266,VL用!$DK77,FALSE)))","v":""},null,{"$f":"IF(VLOOKUP(アクセC,VL用!$CM$51:$DI$266,VL用!$DK77,FALSE)&\"\"=\"\",\"\",VALUE(VLOOKUP(アクセC,VL用!$CM$51:$DI$266,VL用!$DK77,FALSE)))","v":""},null,null,null,null,null,null,null,null,null,"光",null,null,-1]
[null,null,null,"闇",null,{"$f":"IF($S$10=1,VLOOKUP(種族名,VL用!$F$25:$Z$47,VL用!$B53,FALSE),IF($S$10=2,VLOOKUP(種族名,VL用!$AA$25:$AU74,VL用!$B53,FALSE),IF($S$10=3,VLOOKUP(種族名,VL用!$AV$25:$BP$47,VL用!$B53,FALSE),IF($S$10=4,VLOOKUP(種族名,VL用!$BQ$25:$CK$47,VL用!$B53,FALSE),IF($S$10=5,VLOOKUP(種族名,VL用!$CL$25:$DF$47,VL用!$B53,FALSE),IF($S$10=6,VLOOKUP(種族名,VL用!$DG$25:$EA$47,VL用!$B53,FALSE),IF($S$10=7,VLOOKUP(種族名,VL用!$EB$25:$EV$47,VL用!$B53,FALSE),IF($S$10=8,VLOOKUP(種族名,VL用!$EW$25:$FQ$47,VL用!$B53,FALSE),IF($S$10=9,VLOOKUP(種族名,VL用!$FR$25:$GL$47,VL用!$B53,FALSE),IF($S$10=10,VLOOKUP(種族名,VL用!$GM$25:$HG$47,VL用!$B53,FALSE)))))))))))+IF(種族名=\"キメラ忌\",CL*2+5,0)","v":3},null,null,{"$f":"IF(VL用!AS11=0,\"\",VL用!AS11)","v":""},null,null,{"$f":"IF(VLOOKUP(武器名,VL用!$AM$51:$BM$234,VL用!$DK78,FALSE)&\"\"=\"\",\"\",VALUE(VLOOKUP(武器名,VL用!$AM$51:$BM$234,VL用!$DK78,FALSE)))","v":5},null,null,{"$f":"IF(VLOOKUP(防具名,VL用!$BO$51:$CK$164,VL用!$DK78,FALSE)&\"\"=\"\",\"\",VALUE(VLOOKUP(防具名,VL用!$BO$51:$CK$164,VL用!$DK78,FALSE)))","v":-10},null,null,{"$f":"IF(VLOOKUP(アクセA,VL用!$CM$51:$DI$266,VL用!$DK78,FALSE)&\"\"=\"\",\"\",VALUE(VLOOKUP(アクセA,VL用!$CM$51:$DI$266,VL用!$DK78,FALSE)))","v":""},null,{"$f":"IF(VLOOKUP(アクセB,VL用!$CM$51:$DI$266,VL用!$DK78,FALSE)&\"\"=\"\",\"\",VALUE(VLOOKUP(アクセB,VL用!$CM$51:$DI$266,VL用!$DK78,FALSE)))","v":""},null,{"$f":"IF(VLOOKUP(アクセC,VL用!$CM$51:$DI$266,VL用!$DK78,FALSE)&\"\"=\"\",\"\",VALUE(VLOOKUP(アクセC,VL用!$CM$51:$DI$266,VL用!$DK78,FALSE)))","v":""},null,null,null,null,null,null,null,null,null,"闇",null,null,-2,null,null,null,null,null,null,null,9]

{"sheet":"コピペ用","index":1,"n_rows":40,"n_cols":65,"rows_kept":40,"cut":false,"hidden":false,"merged":[[23,38,24,44],[23,45,24,46],[23,47,24,48],[23,49,24,51],[23,52,24,53],[23,54,24,55],[23,56,24,58],[23,59,24,60],[21,47,22,48],[21,49,22,51],[21,52,22,53],[21,54,22,55],[21,56,22,58],[21,59,22,60],[23,61,24,63],[23,64,24,74],[21,61,22,63],[21,64,22,74],[25,61,26,63],[25,64,26,74],[17,38,18,44],[17,45,18,46],[17,47,18,48],[17,49,18,51],[17,52,18,53],[17,54,18,55],[17,56,18,58],[17,59,18,60],[25,47,26,48],[25,49,26,51],[25,52,26,53],[25,54,26,55],[25,56,26,58],[25,59,26,60],[19,56,20,58],[19,59,20,60],[19,61,20,63],[19,64,20,74],[17,61,18,63],[17,64,18,74],[21,38,22,44],[21,45,22,46],[39,27,40,37],[25,38,26,44],[25,45,26,46],[37,19,38,21],[37,22,38,23],[37,24,38,26],[37,27,38,37],[35,27,36,37],[33,19,34,21],[33,22,34,23],[33,24,34,26],[33,27,34,37],[31,19,32,21],[31,22,32,23],[31,24,32,26],[31,27,32,37],[29,27,30,37],[33,38,34,44],[33,45,34,46],[35,56,36,58],[39,1,40,7],[39,8,40,9],[39,10,40,11],[39,12,40,14],[39,15,40,16],[39,17,40,18],[35,19,36,21],[35,22,36,23],[35,24,36,26],[37,1,38,7],[37,8,38,9],[37,10,38,11],[37,12,38,14],[37,15,38,16],[37,17,38,18],[35,1,36,7],[35,8,36,9],[35,10,36,11],[35,12,36,14],[35,15,36,16],[35,17,36,18],[39,19,40,21],[39,22,40,23],[39,24,40,26],[27,64,28,74],[33,1,34,7],[33,8,34,9],[33,10,34,11],[33,12,34,14],[33,15,34,16],[33,17,34,18],[29,19,30,21],[29,22,30,23],[29,24,30,26],[31,1,32,7],[31,8,32,9],[31,10,32,11],[31,12,32,14],[31,15,32,16],[31,17,32,18],[29,1,30,7],[29,8,30,9],[29,10,30,11],[29,12,30,14],[29,15,30,16],[29,17,30,18],[33,47,34,48],[33,49,34,51],[33,52,34,53],[33,54,34,55],[35,59,36,60],[35,61,36,63],[35,64,36,74],[19,38,20,44],[19,45,20,46],[19,47,20,48],[19,49,20,51],[19,52,20,53],[19,54,20,55],[33,56,34,58],[33,59,34,60],[33,61,34,63],[33,64,34,74],[35,38,36,44],[35,45,36,46],[35,47,36,48],[35,49,36,51],[35,52,36,53],[35,54,36,55],[31,56,32,58],[29,56,30,58],[29,59,30,60],[29,61,30,63],[29,64,30,74],[31,38,32,44],[31,45,32,46],[31,47,32,48],[31,49,32,51],[31,52,32,53],[31,54,32,55],[29,38,30,44],[29,45,30,46],[29,47,30,48],[29,49,30,51],[29,52,30,53],[29,54,30,55],[31,59,32,60],[31,61,32,63],[31,64,32,74],[27,38,28,44],[27,45,28,46],[27,47,28,48],[27,49,28,51],[27,52,28,53],[27,54,28,55],[27,56,28,58],[27,59,28,60],[27,61,28,63],[13,64,14,74],[15,38,16,44],[15,45,16,46],[15,47,16,48],[15,49,16,51],[15,52,16,53],[15,54,16,55],[15,56,16,58],[15,59,16,60],[15,61,16,63],[15,64,16,74],[13,38,14,44],[13,45,14,46],[13,47,14,48],[13,49,14,51],[13,52,14,53],[13,54,14,55],[13,56,14,58],[13,59,14,60],[13,61,14,63],[9,64,10,74],[11,38,12,44],[11,45,12,46],[11,47,12,48],[11,49,12,51],[11,52,12,53],[11,54,12,55],[11,56,12,58],[11,59,12,60],[11,61,12,63],[11,64,12,74],[9,38,10,44],[9,45,10,46],[9,47,10,48],[9,49,10,51],[9,52,10,53],[9,54,10,55],[9,56,10,58],[9,59,10,60],[9,61,10,63],[5,61,6,63],[5,64,6,74],[7,38,8,44],[7,45,8,46],[7,47,8,48],[7,49,8,51],[7,52,8,53],[7,54,8,55],[5,38,6,44],[5,45,6,46],[5,47,6,48],[5,49,6,51],[5,52,6,53],[5,54,6,55],[7,56,8,58],[7,59,8,60],[7,61,8,63],[7,64,8,74],[3,52,4,53],[3,54,4,55],[3,56,4,58],[3,59,4,60],[3,61,4,63],[3,64,4,74],[27,17,28,18],[27,19,28,21],[27,22,28,23],[27,24,28,26],[27,27,28,37],[13,22,14,23],[13,24,14,26],[13,27,14,37],[11,17,12,18],[11,19,12,21],[11,22,12,23],[11,24,12,26],[11,27,12,37],[7,27,8,37],[9,27,10,37],[17,27,18,37],[5,56,6,58],[5,59,6,60],[1,38,2,74],[3,38,4,44],[3,45,4,46],[3,47,4,48],[3,49,4,51],[25,17,26,18],[25,19,26,21],[25,22,26,23],[25,24,26,26],[25,27,26,37],[23,27,24,37],[21,17,22,18],[21,19,22,21],[21,22,22,23],[21,24,22,26],[21,27,22,37],[19,17,20,18],[19,19,20,21],[19,22,20,23],[19,24,20,26],[19,27,20,37],[15,27,16,37],[13,17,14,18],[13,19,14,21],[27,1,28,7],[27,8,28,9],[27,10,28,11],[27,12,28,14],[27,15,28,16],[23,17,24,18],[23,19,24,21],[23,22,24,23],[23,24,24,26],[25,1,26,7],[25,8,26,9],[25,10,26,11],[25,12,26,14],[25,15,26,16],[23,1,24,7],[23,8,24,9],[23,10,24,11],[23,12,24,14],[23,15,24,16],[15,17,16,18],[15,19,16,21],[15,22,16,23],[15,24,16,26],[19,1,20,7],[19,8,20,9],[19,10,20,11],[19,12,20,14],[19,15,20,16],[15,1,16,7],[15,8,16,9],[15,10,16,11],[15,12,16,14],[15,15,16,16],[17,17,18,18],[17,19,18,21],[17,22,18,23],[17,24,18,26],[7,8,8,9],[7,10,8,11],[7,12,8,14],[7,15,8,16],[9,1,10,7],[21,1,22,7],[21,8,22,9],[21,10,22,11],[21,12,22,14],[21,15,22,16],[9,15,10,16],[5,17,6,18],[5,19,6,21],[5,22,6,23],[5,24,6,26],[5,27,6,37],[13,1,14,7],[13,8,14,9],[13,10,14,11],[13,12,14,14],[13,15,14,16],[7,17,8,18],[7,19,8,21],[7,22,8,23],[7,24,8,26],[11,1,12,7],[11,8,12,9],[11,10,12,11],[11,12,12,14],[11,15,12,16],[9,17,10,18],[9,19,10,21],[9,22,10,23],[9,24,10,26],[7,1,8,7],[1,1,2,37],[17,1,18,7],[17,8,18,9],[17,10,18,11],[17,12,18,14],[17,15,18,16],[3,1,4,7],[3,8,4,9],[3,10,4,11],[3,12,4,14],[3,15,4,16],[3,17,4,18],[5,1,6,7],[5,8,6,9],[5,10,6,11],[5,12,6,14],[5,15,6,16],[3,19,4,21],[3,22,4,23],[3,24,4,26],[3,27,4,37],[9,8,10,9],[9,10,10,11],[9,12,10,14]]}
[]
[null,"良く使用する汎用スキル1 (コピペ用)",null,null,null,null,null,null,null,null,null,null,null,null,null,null,null,null,null,null,null,null,null,null,null,null,null,null,null,null,null,null,null,null,null,null,null,null,"良く使用する汎用スキル2 (コピペ用)"]
[]
[null,"名称",null,null,null,null,null,null,"SL",null,"種別",null,"ﾀｲﾐﾝｸﾞ",null,null,"対象",null,"射程",null,"判定値",null,null,"代償",null,"コスト",null,null,"効果 (SL参照などは自動計算)",null,null,null,null,null,null,null,null,null,null,"名称",null,null,null,null,null,null,"SL",null,"種別",null,"ﾀｲﾐﾝｸﾞ",null,null,"対象",null,"射程",null,"判定値",null,null,"代償",null,"コスト",null,null,"効果 (SL参照などは自動計算)"]
[]
[null,"アタックフォース",null,null,null,null,null,null,null,null,"なし",null,"常時",null,null,"自身",null,"なし",null,null,null,null,null,null,null,null,null,{"$f":"\"【近接】+\"&QUOTIENT(I6,2)&\" 【物攻】+\"&I6","v":"【近接】+0 【物攻】+"},null,null,null,null,null,null,null,null,null,null,"セカンドチャンス",null,null,null,null,null,null,null,null,"支",null,"オート",null,null,"自身",null,"なし",null,"自動",null,null,"2MP",null,2,null,null,{"$f":"\"振り直し。 戦闘外では使用毎にF値+4 (Max14)　1判定\"&AT6&\"回\"","v":"振り直し。 戦闘外では使用毎にF値+4 (Max14)　1判定回"}]
[]
[null,"ショットフォース",null,null,null,null,null,null,null,null,"なし",null,"常時",null,null,"自身",null,"なし",null,null,null,null,null,null,null,null,null,{"$f":"\"【射撃】+\"&QUOTIENT(I8,2)&\" 【物攻】+\"&I8","v":"【射撃】+0 【物攻】+"},null,null,null,null,null,null,null,null,null,null,"サポートムーブ",null,null,null,null,null,null,null,null,"支",null,"オート",null,null,"単体",null,"0-1",null,"自動",null,null,{"$f":"AT8+5&\"MP\"","v":"5MP"},null,2,null,null,{"$f":"\"判定直後に使用。達成値+\"&AT8&\"\n1ﾒｲﾝｱｸｼｮﾝ1回\"","v":"判定直後に使用。達成値+\n1ﾒｲﾝｱｸｼｮﾝ1回"}]
[]
[null,"マジックフォース",null,null,null,null,null,null,null,null,"なし",null,"常時",null,null,"自身",null,"なし",null,null,null,null,null,null,null,null,null,{"$f":"\"【魔術】+\"&QUOTIENT(I10,2)&\" 【魔攻】+\"&I10","v":"【魔術】+0 【魔攻】+"},null,null,null,null,null,null,null,null,null,null,"ジャミング",null,null,null,null,null,null,null,null,"なし",null,"オート",null,null,"単体",null,"1-3",null,"自動",null,null,{"$f":"AT10+6&\"MP\"","v":"6MP"},null,2,null,null,{"$f":"\"判定直後に使用。達成値-\"&AT10&\"\n1ﾒｲﾝｱｸｼｮﾝ1回\"","v":"判定直後に使用。達成値-\n1ﾒｲﾝｱｸｼｮﾝ1回"}]
[]
[null,"タフネスフォース",null,null,null,null,null,null,null,null,"なし",null,"常時",null,null,"自身",null,"なし",null,null,null,null,null,null,null,null,null,{"$f":"\"【耐久力】+\"&I12*10","v":"【耐久力】+0"},null,null,null,null,null,null,null,null,null,null,"チャージング",null,null,null,null,null,null,null,null,"なし",null,"サブ",null,null,"自身",null,"なし",null,"自動",null,null,"2MP",null,2,null,null,{"$f":"\"次ﾒｲﾝｽｷｯﾌﾟ。 次ｽｷﾙのｺｽﾄ-2\n連続\"&AT12&\"回まで使用可\"","v":"次ﾒｲﾝｽｷｯﾌﾟ。 次ｽｷﾙのｺｽﾄ-2\n連続回まで使用可"}]
[]
[null,"メンタルフォース",null,null,null,null,null,null,null,null,"なし",null,"常時",null,null,"自身",null,"なし",null,null,null,null,null,null,null,null,null,{"$f":"\"【精神力】+\"&I14*3","v":"【精神力】+0"},null,null,null,null,null,null,null,null,null,null,"カバーリング",null,null,null,null,null,null,0,null,"なし",null,"ダメロ",null,null,"単体",null,"0-0",null,"自動",null,null,"2MP",null,1,null,null,"ﾀﾞﾒﾛ前使用。ﾀﾞﾒｰｼﾞを代わりに受ける。1ﾒｲﾝｱｸｼｮﾝ2回"]
[]
[null,"クイックフォース",null,null,null,null,null,null,null,null,"なし",null,"常時",null,null,"自身",null,"なし",null,null,null,null,null,null,null,null,null,{"$f":"\"【敏捷】+\"&I16*2","v":"【敏捷】+0"},null,null,null,null,null,null,null,null,null,null,"ロングレンジカバー",null,null,null,null,null,null,0,null,"なし",null,"ダメロ",null,null,"単体",null,"0-0",null,"自動",null,null,"4MP",null,2,null,null,"ﾀﾞﾒﾛ前使用。ﾀﾞﾒｰｼﾞを代わりに受ける。1ﾒｲﾝｱｸｼｮﾝ2回"]
[]
[null,"ヒールフォース",null,null,null,null,null,null,null,null,"なし",null,"常時",null,null,"自身",null,"なし",null,null,null,null,null,null,null,null,null,{"$f":"IF(CL<5,\"「種別：回」ｽｷﾙの回復量+\"&ROUNDUP(CS!$AI$39/2,0)+I18*3&\"、代償に-\"&QUOTIENT(I18,5)&\"MP (下限値：2MP)\",\"「種別：回」ｽｷﾙの回復量+\"&CS!$AI$39+I18*3&\"、代償に-\"&QUOTIENT(I18,5)&\"MP (下限値：2MP)\")","v":"「種別：回」ｽｷﾙの回復量+9、代償に-0MP (下限値：2MP)"},null,null,null,null,null,null,null,null,null,null,"リフレッシング",null,null,null,null,null,null,null,null,"なし",null,"サブ",null,null,"単体",null,{"$f":"\"0-\"&AT18","v":"0-"},null,"自動",null,null,"10MP",null,3,null,null,{"$f":"IF(AT18<3,\"対象の毒、眠り、恐怖、凍結を解除。\",IF(AT18<5,\"対象の毒、眠り、恐怖、凍結、麻痺、封印、呪いを解除。\",\"対象の全てのﾊﾞｯﾄﾞｽﾃｰﾀｽを解除。\"))","v":"対象の毒、眠り、恐怖、凍結を解除。"}]
[]
[null,"回避ブースト",null,null,null,null,null,null,null,null,"なし",null,"常時",null,null,"自身",null,"なし",null,null,null,null,null,null,null,null,null,{"$f":"\"【回避値】+\"&QUOTIENT(I20,2)","v":"【回避値】+0"},null,null,null,null,null,null,null,null,null,null,"延長化魔術",null,null,null,null,null,null,null,null,"なし",null,"サブ",null,null,"自身",null,"なし",null,"自動",null,null,{"$f":"5-AT20&\"MP\"","v":"5MP"},null,1,null,null,"次ﾒｲﾝでの「種別：魔」ｽｷﾙの最大射程に+1"]
[]
[null,"抵抗ブースト",null,null,null,null,null,null,null,null,"なし",null,"常時",null,null,"自身",null,"なし",null,null,null,null,null,null,null,null,null,{"$f":"\"【抵抗値】+\"&QUOTIENT(I22,2)","v":"【抵抗値】+0"},null,null,null,null,null,null,null,null,null,null,"戦闘集中",null,null,null,null,null,null,null,null,"支",null,"サブ",null,null,"自身",null,"なし",null,"自動",null,null,{"$f":"5-AT22&\"MP\"","v":"5MP"},null,2,null,null,{"$f":"\"次に行う命中達成値+2\n与えるダメージに+\"&ROUNDUP(CS!$E$18/3,0)","v":"次に行う命中達成値+2\n与えるダメージに+0"}]
[]
[null,"ウェポンマスター",null,null,null,null,null,null,null,null,"なし",null,"常時",null,null,"自身",null,"なし",null,null,null,null,null,null,null,null,null,"「近接武器」or「射撃武器」の攻撃の命中C値-1 (下限値：17)",null,null,null,null,null,null,null,null,null,null,"力溜め",null,null,null,null,null,null,null,null,"支",null,"サブ",null,null,"自身",null,"なし",null,"自動",null,null,{"$f":"5-AT24&\"MP\"","v":"5MP"},null,3,null,null,{"$f":"\"次に攻撃で与えるダメージ+\"&CS!$B$18*2&\"\n1戦闘\"&AT24&\"回\"","v":"次に攻撃で与えるダメージ+0\n1戦闘回"}]
[]
[null,"マジックマスター",null,null,null,null,null,null,null,null,"なし",null,"常時",null,null,"自身",null,"なし",null,null,null,null,null,null,null,null,null,"「種別：魔」かつ「対象：単体」の攻撃の命中C値-1 (下限値：17)",null,null,null,null,null,null,null,null,null,null,"至近発動",null,null,null,null,null,null,null,null,"支",null,"サブ",null,null,"自身",null,"なし",null,"自動",null,null,"8MP",null,{"$f":"4-AT26","v":4},null,null,"次ﾒｲﾝでの「種別：魔」単体ｽｷﾙの最低射程を0に。"]
[]
[null,"BS耐性",null,null,null,null,null,null,null,null,"なし",null,"常時",null,null,"自身",null,"なし",null,null,null,null,null,null,null,null,null,"を受けるとき、1D10で3以上で無効。",null,null,null,null,null,null,null,null,null,null,"スペルブレイク",null,null,null,null,null,null,null,null,"なし",null,"オート",null,null,"自身",null,"なし",null,"自動",null,null,"2BP",null,3,null,null,{"$f":"\"25MPでも可。「種別：魔」を3D6 \"&14-AT28&\"以上で〈無〉\"&CL&\"D6点に\"","v":"25MPでも可。「種別：魔」を3D6 14以上で〈無〉1D6点に"}]
[]
[null,"物理障壁",null,null,null,null,null,null,null,null,"なし",null,"常時",null,null,"自身",null,"なし",null,null,null,null,null,null,null,null,null,{"$f":"\"〈近〉〈遠〉耐性+\"&I30*3+3","v":"〈近〉〈遠〉耐性+3"},null,null,null,null,null,null,null,null,null,null,"チャンスブレイク",null,null,null,null,null,null,0,null,"なし",null,"オート",null,null,"単体",null,"0-3",null,"自動",null,null,"2BP",null,0,null,null,"判定振り直し効果を無効。\nその後の振り直し不可。"]
[]
[null,"属性障壁",null,null,null,null,null,null,null,null,"なし",null,"常時",null,null,"自身",null,"なし",null,null,null,null,null,null,null,null,null,{"$f":"\"〈炎〉～〈土〉耐性+\"&I32+1","v":"〈炎〉～〈土〉耐性+1"},null,null,null,null,null,null,null,null,null,null,"スプレッドパワー",null,null,null,null,null,null,0,null,"なし",null,"オート",null,null,"自身",null,"なし",null,"自動",null,null,"5BP",null,0,null,null,"「射程：0-5」「対象：場面(選択)」に変更。1ｾｯｼｮﾝ1回"]
[]
[null,"直感ブースト",null,null,null,null,null,null,null,null,"なし",null,"常時",null,null,"自身",null,"なし",null,null,null,null,null,null,null,null,null,{"$f":"\"調査C値-\"&I34+1&\" (下限値：15)\"","v":"調査C値-1 (下限値：15)"},null,null,null,null,null,null,null,null,null,null,"拡散魔法",null,null,null,null,null,null,null,null,"支",null,"サブ",null,null,"自身",null,"なし",null,"自動",null,null,{"$f":"9-AT34&\"MP\"","v":"9MP"},null,1,null,null,{"$f":"\"「種別：魔」の単体ｽｷﾙを、範囲に変更。 +\"&12-AT34&\"MPで0-3場面化。\"","v":"「種別：魔」の単体ｽｷﾙを、範囲に変更。 +12MPで0-3場面化。"}]
[]
[null,"免許皆伝",null,null,null,null,null,null,null,null,"なし",null,"常時",null,null,"自身",null,"なし",null,null,null,null,null,null,null,null,null,{"$f":"IF(I36<3,\"効果なし\",\"ｸﾗｽｽｷﾙのSL上限+1 & ｸﾗｽｽｷﾙの攻撃によるﾀﾞﾒｰｼﾞ+\"&CL*2)","v":"効果なし"},null,null,null,null,null,null,null,null,null,null,"ガードアシスト",null,null,null,null,null,null,null,null,"防",null,"ダメロ",null,null,"単体",null,"0-1",null,"自動",null,null,"7MP",null,1,null,null,{"$f":"\"対象の被ﾀﾞﾒｰｼﾞを\"&CL&\"D6点軽減。\n1戦闘\"&AT36&\"回\"","v":"対象の被ﾀﾞﾒｰｼﾞを1D6点軽減。\n1戦闘回"}]
[]
[null,"回避能力",null,null,null,null,null,null,null,null,"なし",null,"常時",null,null,"自身",null,"なし",null,null,null,null,null,null,null,null,null,{"$f":"\"【回避値】\"&CL*2+1&\"以下の場合、【回避値】判定達成値に+\"&I38","v":"【回避値】3以下の場合、【回避値】判定達成値に+"}]
[]
[null,"抵抗能力",null,null,null,null,null,null,null,null,"なし",null,"常時",null,null,"自身",null,"なし",null,null,null,null,null,null,null,null,null,{"$f":"\"【抵抗値】\"&CL*2+1&\"以下の場合、【抵抗値】判定達成値に+\"&I40","v":"【抵抗値】3以下の場合、【抵抗値】判定達成値に+"}]

{"sheet":"クリアボタン","index":2,"n_rows":7,"n_cols":8,"rows_kept":7,"cut":false,"hidden":false,"merged":[[1,1,2,6],[3,1,5,4],[6,1,8,4],[1,7,2,9],[3,7,5,9],[6,7,8,9]]}
[]
[null,"クリアボタン(マクロ)",null,null,null,null,null,"ショートカットキー"]
[]
[null,"オールリセット",null,null,null,null,null,"Ctrl+Shift+R"]
[]
[]
[null,"スキル欄オールクリア",null,null,null,null,null,"Ctrl+Shift+S"]

{"sheet":"VL用","index":3,"n_rows":207,"n_cols":215,"rows_kept":207,"cut":false,"hidden":false,"merged":[[180,38,180,40],[178,38,178,40],[179,38,179,40],[86,26,86,35],[186,90,186,92],[187,90,187,92],[188,90,188,92],[202,38,202,40],[203,38,203,40],[182,90,182,92],[173,90,173,92],[174,90,174,92],[175,90,175,92],[176,90,176,92],[177,90,177,92],[178,90,178,92],[179,90,179,92],[180,90,180,92],[181,90,181,92],[191,38,191,40],[190,38,190,40],[200,38,200,40],[201,38,201,40],[197,38,197,40],[198,38,198,40],[199,38,199,40],[195,38,195,40],[139,38,139,40],[140,38,140,40],[126,38,126,40],[127,38,127,40],[119,38,119,40],[120,38,120,40],[146,38,146,40],[165,38,165,40],[176,38,176,40],[162,38,162,40],[171,38,171,40],[169,38,169,40],[170,38,170,40],[168,38,168,40],[172,38,172,40],[151,38,151,40],[154,38,154,40],[155,38,155,40],[156,38,156,40],[150,38,150,40],[166,38,166,40],[167,38,167,40],[173,38,173,40],[174,38,174,40],[153,38,153,40],[149,38,149,40],[158,38,158,40],[102,38,102,40],[189,38,189,40],[183,90,183,92],[184,90,184,92],[185,90,185,92],[164,38,164,40],[144,38,144,40],[145,38,145,40],[121,38,121,40],[122,38,122,40],[123,38,123,40],[159,38,159,40],[147,38,147,40],[124,38,124,40],[125,38,125,40],[143,38,143,40],[157,38,157,40],[142,38,142,40],[128,38,128,40],[137,38,137,40],[138,38,138,40],[131,38,131,40],[132,38,132,40],[104,90,104,92],[103,90,103,92],[69,26,69,35],[70,26,70,35],[148,38,148,40],[160,38,160,40],[79,26,79,35],[141,38,141,40],[72,38,72,40],[73,38,73,40],[74,38,74,40],[75,38,75,40],[69,38,69,40],[70,38,70,40],[71,38,71,40],[80,26,80,35],[81,26,81,35],[82,26,82,35],[83,26,83,35],[84,26,84,35],[85,26,85,35],[152,38,152,40],[100,38,100,40],[101,38,101,40],[116,38,116,40],[117,38,117,40],[118,38,118,40],[115,38,115,40],[111,38,111,40],[112,38,112,40],[113,38,113,40],[114,38,114,40],[106,38,106,40],[107,38,107,40],[108,38,108,40],[109,38,109,40],[110,38,110,40],[152,90,152,92],[145,90,145,92],[146,90,146,92],[148,90,148,92],[149,90,149,92],[151,90,151,92],[103,38,103,40],[104,38,104,40],[105,38,105,40],[105,90,105,92],[120,90,120,92],[121,90,121,92],[122,90,122,92],[123,90,123,92],[119,90,119,92],[111,90,111,92],[133,38,133,40],[134,38,134,40],[135,38,135,40],[136,38,136,40],[106,90,106,92],[107,90,107,92],[129,38,129,40],[130,38,130,40],[109,90,109,92],[108,90,108,92],[131,90,131,92],[129,90,129,92],[130,90,130,92],[124,90,124,92],[125,90,125,92],[126,90,126,92],[127,90,127,92],[128,90,128,92],[157,90,157,92],[110,90,110,92],[112,90,112,92],[113,90,113,92],[114,90,114,92],[154,90,154,92],[155,90,155,92],[156,90,156,92],[153,90,153,92],[132,90,132,92],[133,90,133,92],[134,90,134,92],[135,90,135,92],[136,90,136,92],[140,90,140,92],[141,90,141,92],[143,90,143,92],[137,90,137,92],[138,90,138,92],[139,90,139,92],[144,90,144,92],[147,90,147,92],[142,90,142,92],[150,90,150,92],[102,90,102,92],[83,90,83,92],[84,90,84,92],[78,90,78,92],[75,90,75,92],[76,90,76,92],[172,90,172,92],[85,90,85,92],[86,90,86,92],[87,90,87,92],[88,90,88,92],[89,90,89,92],[90,90,90,92],[92,90,92,92],[93,90,93,92],[94,90,94,92],[95,90,95,92],[96,90,96,92],[97,90,97,92],[98,90,98,92],[115,90,115,92],[116,90,116,92],[117,90,117,92],[118,90,118,92],[100,90,100,92],[101,90,101,92],[91,90,91,92],[71,90,71,92],[72,90,72,92],[73,90,73,92],[74,90,74,92],[64,90,64,92],[66,90,66,92],[67,90,67,92],[68,90,68,92],[69,90,69,92],[70,90,70,92],[65,90,65,92],[89,38,89,40],[94,38,94,40],[63,90,63,92],[77,90,77,92],[79,90,79,92],[80,90,80,92],[81,90,81,92],[82,90,82,92],[99,90,99,92],[76,38,76,40],[77,38,77,40],[78,38,78,40],[79,38,79,40],[80,38,80,40],[81,38,81,40],[82,38,82,40],[83,38,83,40],[84,38,84,40],[96,38,96,40],[97,38,97,40],[98,38,98,40],[99,38,99,40],[90,38,90,40],[91,38,91,40],[92,38,92,40],[93,38,93,40],[95,38,95,40],[85,38,85,40],[86,38,86,40],[87,38,87,40],[88,38,88,40],[68,26,68,35],[64,66,64,68],[65,66,65,68],[81,66,81,68],[66,66,66,68],[67,66,67,68],[68,66,68,68],[69,66,69,68],[70,66,70,68],[64,38,64,40],[65,38,65,40],[66,38,66,40],[76,66,76,68],[79,66,79,68],[73,66,73,68],[77,26,77,35],[74,26,74,35],[76,26,76,35],[80,66,80,68],[54,2,54,4],[63,66,63,68],[75,26,75,35],[56,66,56,68],[57,66,57,68],[58,66,58,68],[59,66,59,68],[60,66,60,68],[61,66,61,68],[62,66,62,68],[65,26,65,35],[60,26,60,35],[63,26,63,35],[72,26,72,35],[73,26,73,35],[71,26,71,35],[74,66,74,68],[75,66,75,68],[71,66,71,68],[72,66,72,68],[64,26,64,35],[62,38,62,40],[67,26,67,35],[78,26,78,35],[49,66,49,68],[50,66,50,68],[51,66,51,68],[52,66,52,68],[53,66,53,68],[54,66,54,68],[55,66,55,68],[52,38,52,40],[53,38,53,40],[54,38,54,40],[55,38,55,40],[50,38,50,40],[66,26,66,35],[61,26,61,35],[63,38,63,40],[67,38,67,40],[68,38,68,40],[62,26,62,35],[61,38,61,40],[60,38,60,40],[77,66,77,68],[78,66,78,68],[49,90,49,92],[52,90,52,92],[53,90,53,92],[54,90,54,92],[55,90,55,92],[50,90,50,92],[61,90,61,92],[62,90,62,92],[56,90,56,92],[57,90,57,92],[58,90,58,92],[59,90,59,92],[60,90,60,92],[51,90,51,92],[47,195,47,214],[47,6,47,25],[47,27,47,46],[47,48,47,67],[47,69,47,88],[47,90,47,109],[47,111,47,130],[47,132,47,151],[47,174,47,193],[12,6,12,15],[58,26,58,35],[59,26,59,35],[16,16,16,18],[16,27,16,39],[19,6,19,15],[19,16,19,18],[19,27,19,39],[49,38,49,40],[51,38,51,40],[56,38,56,40],[57,38,57,40],[58,38,58,40],[59,38,59,40],[52,26,52,35],[53,26,53,35],[56,26,56,35],[57,26,57,35],[55,26,55,35],[20,6,20,15],[20,16,20,18],[20,27,20,39],[12,27,12,39],[54,26,54,35],[7,6,7,15],[21,6,21,15],[8,16,8,18],[47,153,47,172],[10,16,10,18],[11,16,11,18],[21,16,21,18],[13,6,13,15],[13,16,13,18],[13,27,13,39],[17,6,17,15],[14,16,14,18],[14,27,14,39],[17,16,17,18],[17,27,17,39],[18,6,18,15],[18,16,18,18],[18,27,18,39],[22,16,22,18],[10,6,10,15],[11,6,11,15],[22,6,22,15],[8,6,8,15],[9,6,9,15],[9,16,9,18],[0,6,0,15],[1,6,1,15],[2,6,2,15],[3,6,3,15],[4,6,4,15],[0,27,0,39],[5,16,5,18],[6,16,6,18],[7,16,7,18],[1,27,1,39],[2,27,2,39],[3,27,3,39],[4,27,4,39],[5,27,5,39],[6,27,6,39],[7,27,7,39],[0,16,0,18],[1,16,1,18],[2,16,2,18],[3,16,3,18],[4,16,4,18],[5,6,5,15],[6,6,6,15],[14,6,14,15],[16,6,16,15],[8,27,8,39],[15,6,15,15],[15,16,15,18],[15,27,15,39],[204,38,204,40],[205,38,205,40],[206,38,206,40],[163,38,163,40],[161,38,161,40],[196,38,196,40],[194,38,194,40],[192,38,192,40],[193,38,193,40],[49,26,49,35],[50,26,50,35],[51,26,51,35],[9,27,9,39],[10,27,10,39],[11,27,11,39],[21,27,21,39],[22,27,22,39],[12,16,12,18],[170,90,170,92],[171,90,171,92],[188,38,188,40],[185,38,185,40],[186,38,186,40],[160,90,160,92],[158,90,158,92],[159,90,159,92],[169,90,169,92],[183,38,183,40],[184,38,184,40],[167,90,167,92],[168,90,168,92],[166,90,166,92],[164,90,164,92],[165,90,165,92],[161,90,161,92],[162,90,162,92],[163,90,163,92],[181,38,181,40],[182,38,182,40],[177,38,177,40],[175,38,175,40],[187,38,187,40]]}
["種族名","肉体","集中","反射","知識","幸運","種族特典",null,null,null,null,null,null,null,null,null,"名称",null,null,"SL","種別","ﾀｲﾐﾝｸﾞ","対象","射程","判定値","代償","コスト","自動取得"]
["人間",6,12,7,8,8,"常時C値-1(下限値16) & 集中判定を1度振り直せる。",null,null,null,null,null,null,null,null,null,"起死回生",null,null,"★","自","ｵｰﾄ","自","なし","自動","6BP",0,"判定直後ダイス目を両方9にする。対抗判定のC値が20固定。戦闘外では-2BP。",null,null,null,null,null,null,null,null,null,null,null,null,null,null,null,"近",{"$f":"IF(クラスA=\"PD\",CL*2,0)+IF(クラスB=\"PD\",CL*2,0)-IF(AND(クラスA=\"PD\",クラスB=\"PD\"),CL*2,0)","v":0}]
["天使",6,8,7,11,8,{"$f":"\"封印,不動無効。ｸﾘﾃｨｶﾙでMPを\"&(5+CS!S10*2)&\"点回復。\"","v":"封印,不動無効。ｸﾘﾃｨｶﾙでMPを7点回復。"},null,null,null,null,null,null,null,null,null,"祝福",null,null,"★","自","ｵｰﾄ","[単]","0-5","自動","2BP",0,"ｶｳﾝﾄ開始時に使用。対象のスキル使用回数を1回回復する。",null,null,null,null,null,null,null,null,null,null,null,null,null,null,null,"遠",{"$f":"IF(クラスA=\"PD\",CL*2,0)+IF(クラスB=\"PD\",CL*2,0)-IF(AND(クラスA=\"PD\",クラスB=\"PD\"),CL*2,0)","v":0}]
["悪魔",10,6,7,11,6,"種別：魔のスキルのバステ無効 & 通常攻撃のコスト-1",null,null,null,null,null,null,null,null,null,"増幅する苦痛",null,null,"★","自","ｵｰﾄ","単","0-4","自動","7BP",5,"敵(対象)が受けたダメージの半分(↓)を他の敵全てに与える。",null,null,null,null,null,null,null,null,null,null,null,null,null,null,null,"炎",{"$f":"IF(クラスA=\"FS\",CL*3,0)+IF(クラスA=\"TE\",CL*3,0)+IF(クラスA=\"CR\",CL+2)+IF(クラスA=\"AW\",CL*3)+IF(クラスB=\"FS\",CL*3,0)+IF(クラスB=\"TE\",CL*3,0)+IF(クラスB=\"CR\",CL+2)+IF(クラスB=\"AW\",CL*3)-IF(AND(クラスA=\"FS\",クラスB=\"FS\"),CL*3,0)-IF(AND(クラスA=\"TE\",クラスB=\"TE\"),CL*3,0)-IF(AND(クラスA=\"CR\",クラスB=\"CR\"),CL+2)-IF(AND(クラスA=\"AW\",クラスB=\"AW\"),CL*3)","v":0}]
["妖精",7,9,6,8,10,"サブアクションで、サブアクションのスキルを2つ使用できる。",null,null,null,null,null,null,null,null,null,"マナシールド",null,null,"★","自","ｻﾌﾞ","N体","0-2","自動","NBP",0,{"$f":"\"〈近〉〈遠〉以外の属性を[N+2]個指定し、20C間、その属性D-\"&30+CS!S10*8","v":"〈近〉〈遠〉以外の属性を[N+2]個指定し、20C間、その属性D-38"},null,null,null,null,null,null,null,null,null,null,null,null,null,null,null,"氷",{"$f":"IF(クラスA=\"FS\",CL*3,0)+IF(クラスA=\"FC\",CL*2,0)+IF(クラスA=\"CR\",CL+2)+IF(クラスB=\"FS\",CL*3,0)+IF(クラスB=\"FC\",CL*2,0)+IF(クラスB=\"CR\",CL+2)-IF(AND(クラスA=\"FS\",クラスB=\"FS\"),CL*3,0)-IF(AND(クラスA=\"FC\",クラスB=\"FC\"),CL*2,0)-IF(AND(クラスA=\"CR\",クラスB=\"CR\"),CL+2)","v":0}]
["鳥人",9,6,13,6,6,{"$f":"\"行動順決定での敏捷に+\"&(CS!S10*3)&\" & 移動ｺｽﾄ-1\"","v":"行動順決定での敏捷に+3 & 移動ｺｽﾄ-1"},null,null,null,null,null,null,null,null,null,"ソニックムーブ",null,null,"★","自","ｵｰﾄ","自","なし","自動","3BP",0,"ｶｳﾝﾄ開始時に使用。即座に行動手番を迎える。",null,null,null,null,null,null,null,null,null,null,null,null,null,null,null,"水",{"$f":"IF(クラスA=\"FC\",CL*2,0)+IF(クラスA=\"TE\",CL*3,0)+IF(クラスA=\"CR\",CL+2)\n+IF(クラスB=\"FC\",CL*2,0)+IF(クラスB=\"TE\",CL*3,0)+IF(クラスB=\"CR\",CL+2)-IF(AND(クラスA=\"FC\",クラスB=\"FC\"),CL*2,0)-IF(AND(クラスA=\"TE\",クラスB=\"TE\"),CL*3,0)-IF(AND(クラスA=\"CR\",クラスB=\"CR\"),CL+2)","v":0}]
["竜人",13,7,5,10,5,"常時F値+3 & 「BS：KB(X)」を70%で無効。",null,null,null,null,null,null,null,null,null,"ドラゴンフォース",null,null,"★","自","ｽﾀｰﾄ","自","なし","自動","NBP",0,{"$f":"\"戦闘中、与えるダメージに+[N×\"&(1+ROUNDUP(CS!S10/3,0))&\"+\"&CS!S10*2&\"]する。\"","v":"戦闘中、与えるダメージに+[N×2+2]する。"},null,null,null,null,null,null,null,null,null,null,null,null,null,null,null,"雷",{"$f":"IF(クラスA=\"FC\",CL*2,0)+IF(クラスA=\"CR\",CL+2)+IF(クラスA=\"AW\",CL*3)+IF(クラスB=\"FC\",CL*2,0)+IF(クラスB=\"CR\",CL+2)+IF(クラスB=\"AW\",CL*3)-IF(AND(クラスA=\"FC\",クラスB=\"FC\"),CL*2,0)-IF(AND(クラスA=\"CR\",クラスB=\"CR\"),CL+2)-IF(AND(クラスA=\"AW\",クラスB=\"AW\"),CL*3)","v":0}]
["獣人",9,5,14,5,7,"近接攻撃の回避の達成値+2 & 反射判定と回避判定のC値-1 F値3固定。",null,null,null,null,null,null,null,null,null,"ワイルドラッシュ",null,null,"★","自","ｵｰﾄ","自","なし","自動","6BP",0,"行動手番後使用。追加ﾒｲﾝを得て攻撃を行う。そのときのｺｽﾄに-5する。",null,null,null,null,null,null,null,null,null,null,null,null,null,null,null,"風",{"$f":"IF(クラスA=\"FC\",CL*2,0)+IF(クラスA=\"TE\",CL*3,0)+IF(クラスA=\"CR\",CL+2)+IF(クラスB=\"FC\",CL*2,0)+IF(クラスB=\"TE\",CL*3,0)+IF(クラスB=\"CR\",CL+2)-IF(AND(クラスA=\"FC\",クラスB=\"FC\"),CL*2,0)-IF(AND(クラスA=\"TE\",クラスB=\"TE\"),CL*3,0)-IF(AND(クラスA=\"CR\",クラスB=\"CR\"),CL+2)","v":0}]
["吸血鬼",12,5,9,9,5,{"$f":"\"ﾀﾞﾒｰｼﾞを与えた時または10ｶｳﾝﾄ毎に、HPを\"&(CS!S10*3)&\"点回復する。\"","v":"ﾀﾞﾒｰｼﾞを与えた時または10ｶｳﾝﾄ毎に、HPを3点回復する。"},null,null,null,null,null,null,null,null,null,"鮮血の一撃",null,null,"★","自","ﾀﾞﾒﾛ","自","なし","自動","3BP",0,"ダメージロールで振るダイスの目を全て最大値にする。",null,null,null,null,null,null,null,null,null,null,null,null,null,null,null,"土",{"$f":"IF(クラスA=\"FC\",CL*2,0)+IF(クラスA=\"TE\",CL*3,0)+IF(クラスA=\"CR\",CL+2)+IF(クラスB=\"FC\",CL*2,0)+IF(クラスB=\"TE\",CL*3,0)+IF(クラスB=\"CR\",CL+2)-IF(AND(クラスA=\"FC\",クラスB=\"FC\"),CL*2,0)-IF(AND(クラスA=\"TE\",クラスB=\"TE\"),CL*3,0)-IF(AND(クラスA=\"CR\",クラスB=\"CR\"),CL+2)","v":0}]
["偽人",5,7,6,12,10,"人間以外のキメラ不可。",null,null,null,null,null,null,null,null,null,"真姿解放",null,null,"★","自","ｵｰﾄ","自","なし","自動","2BP",0,"いつでも使用可。あなたは[解放状態]となる。",null,null,null,null,null,null,null,null,null,null,null,null,null,null,null,"光",{"$f":"IF(クラスA=\"YM\",CL*2,0)+IF(クラスA=\"CR\",CL+2)+IF(クラスB=\"YM\",CL*2,0)+IF(クラスB=\"CR\",CL+2)-IF(AND(クラスA=\"YM\",クラスB=\"YM\"),CL*2,0)-IF(AND(クラスA=\"CR\",クラスB=\"CR\"),CL+2)","v":0}]
["魔法人形",5,10,5,10,10,{"$f":"\"「種別：魔」の被ﾀﾞﾒ-\"&10+CS!S10*3&\" & 準備期間を-1してコスト+1\"","v":"「種別：魔」の被ﾀﾞﾒ-13 & 準備期間を-1してコスト+1"},null,null,null,null,null,null,null,null,null,"エナジーバースト",null,null,"★","自","ｵｰﾄ","自","なし","自動","5BP",0,"C開始時に使用。次判定達成値+10 与D+[物攻or魔攻] C終了後HP0。",null,null,null,null,null,null,null,null,null,null,null,null,null,null,null,"闇",{"$f":"IF(クラスA=\"YM\",CL*2,0)+IF(クラスA=\"CR\",CL+2)+IF(クラスA=\"AW\",CL*3)+IF(クラスB=\"YM\",CL*2,0)+IF(クラスB=\"CR\",CL+2)+IF(クラスB=\"AW\",CL*3)-IF(AND(クラスA=\"YM\",クラスB=\"YM\"),CL*2,0)-IF(AND(クラスA=\"CR\",クラスB=\"CR\"),CL+2)-IF(AND(クラスA=\"AW\",クラスB=\"AW\"),CL*3)","v":0}]
["死神",11,8,9,7,5,{"$f":"\"攻撃全てに「BS：即死(\"&CS!S10*5&\")」付与。 & ﾀﾞﾒｰｼﾞ+[現ｶｳﾝﾄ/5(↓)」\"","v":"攻撃全てに「BS：即死(5)」付与。 & ﾀﾞﾒｰｼﾞ+[現ｶｳﾝﾄ/5(↓)」"},null,null,null,null,null,null,null,null,null,"死神の鎌",null,null,"★","自","ｻﾌﾞ","自","なし","自動","4BP",3,"35Cの間、武器を「死神の鎌」に変更。"]
["神格",7,8,6,13,6,"攻撃でﾀﾞﾒｰｼﾞを受けた時、与えた対象に「BS：怯み(1)」付与。",null,null,null,null,null,null,null,null,null,"Paranormal Power",null,null,"★","自","ｽﾀｰﾄ","自","なし","自動","1BP",1,{"$f":"\"①全達成値+1 ②ﾀﾞﾒｰｼﾞ+\"&CS!S10+5&\" ③C値-1 のどれかを戦闘中適用。\"","v":"①全達成値+1 ②ﾀﾞﾒｰｼﾞ+6 ③C値-1 のどれかを戦闘中適用。"}]
["妖怪",10,4,8,6,12,"判定の1,2の目1つを3にする。感情の強度の合計値-1。",null,null,null,null,null,null,null,null,null,"妖力波",null,null,"★","自","ｵｰﾄ","単","0-4","自動","2BP",3,"出目17以下の判定の低い方の出目を1にする。その後振り直しなど不可。"]
["花姫",5,12,5,13,5,{"$f":"\"攻撃に「BS：花毒(\"&CS!S10+5&\")」付与。 & ｸﾗｽｽｷﾙのSL上限に+1\"","v":"攻撃に「BS：花毒(6)」付与。 & ｸﾗｽｽｷﾙのSL上限に+1"},null,null,null,null,null,null,null,null,null,"フルブルーム",null,null,"★","自","ｵｰﾄ","自","なし","自動","2BP",0,{"$f":"\"C開始時使用。HP\"&CS!S10*15+90&\"回復。以後ｻﾌﾞｱｸｼｮﾝｽｷﾙでﾌﾗﾜｰC1つ獲得。\"","v":"C開始時使用。HP105回復。以後ｻﾌﾞｱｸｼｮﾝｽｷﾙでﾌﾗﾜｰC1つ獲得。"}]
["虫人",11,5,11,6,7,"DでHP0になる場合、HPを1にする。1/Sce & 「BS：花毒」を60%で無効 ",null,null,null,null,null,null,null,null,null,"タクタイルムーブ",null,null,"★","自","ｵｰﾄ","自","なし","自動","2BP",0,{"$f":"\"回避判定直前使用。達成値+\"&(3+ROUNDUP(CS!S10/3,0))&\"。回避成功の場合,次の命中+\"&(3+ROUNDUP(CS!S10/3,0))","v":"回避判定直前使用。達成値+4。回避成功の場合,次の命中+4"}]
["戦乙女",7,10,8,10,5,"全てのｽｷﾙ代償-1MP。(下限値：3MP) 感情の個数-1",null,null,null,null,null,null,null,null,null,"トゥルーフェイス",null,null,"★","自","ｵｰﾄ","自","なし","自動","4BP",0,{"$f":"\"感情が2つ以下でのみ使用可。全達成値+2 & 与D+\"&(CL*6+20)&\"　1ｾｯｼｮﾝ1回\"","v":"感情が2つ以下でのみ使用可。全達成値+2 & 与D+26　1ｾｯｼｮﾝ1回"}]
["半魚人",7,8,12,8,5,"ﾀﾞﾒｰｼﾞﾛｰﾙで5MP支払って〈水〉に変更できる。 & 全てのｽｷﾙ代償+1MP",null,null,null,null,null,null,null,null,null,"フリーズバインド",null,null,"★","自","ｵｰﾄ","自","なし","自動","1BP",0,"攻撃宣言時に使用。命中C値-2 達成値+1し、回避判定振り直し不可。"]
["魔道士",5,8,8,14,5,{"$f":"\"「種別：魔」かつ「単体」のｽｷﾙが回避されたとき、同属性\"&20+CL*3&\"点ﾀﾞﾒｰｼﾞを与える。\"","v":"「種別：魔」かつ「単体」のｽｷﾙが回避されたとき、同属性23点ﾀﾞﾒｰｼﾞを与える。"},null,null,null,null,null,null,null,null,null,"予備魔力開放",null,null,"★","自","ｵｰﾄ","自","なし","自動","NBP",0,{"$f":"\"①C開始時使用→HP&MP[N*\"&CL+8&\"]点回復。②ﾀﾞﾒﾛ直前使用→与D+[N*\"&CL+10&\"]\"","v":"①C開始時使用→HP&MP[N*9]点回復。②ﾀﾞﾒﾛ直前使用→与D+[N*11]"}]
["付喪神",4,7,8,7,14,"ｶｳﾝﾄ開始時に任意ﾏｽ配置可能 1/Sce & 単体攻撃ｽｷﾙの命中C値-2",null,null,null,null,null,null,null,null,null,"九十九神力",null,null,"★","自","ｵｰﾄ","自","なし","自動","7BP",0,"HPが0になる瞬間に使用可能。HP全回復して、BS全解除。"]
["幽体",0,12,9,11,8,{"$f":"\"10ｶｳﾝﾄ毎に、MP\"&10+ROUNDUP(CL/2,0)&\"点減少 & MP0で戦闘不能 & 常時[感情の強度]+1\"","v":"10ｶｳﾝﾄ毎に、MP11点減少 & MP0で戦闘不能 & 常時[感情の強度]+1"},null,null,null,null,null,null,null,null,null,"ソウルシード",null,null,"★","自","ｵｰﾄ","自","なし","自動","10BP",0,{"$f":"\"C開始時に使用。HP&MP全回復 その後、行動手番毎にMP[\"&CL&\"+1D10]点回復\"","v":"C開始時に使用。HP&MP全回復 その後、行動手番毎にMP[1+1D10]点回復"}]
["キメラ忌",{"$f":"ROUNDUP((VLOOKUP(キメラA,VL用!$A$2:$F$48,B24,FALSE)+VLOOKUP(キメラB,VL用!$A$2:$F$48,B24,FALSE))/2,0)","v":{"$error":"#N/A"}},{"$f":"ROUNDUP((VLOOKUP(キメラA,VL用!$A$2:$F$48,C24,FALSE)+VLOOKUP(キメラB,VL用!$A$2:$F$48,C24,FALSE))/2,0)","v":{"$error":"#N/A"}},{"$f":"ROUNDUP((VLOOKUP(キメラA,VL用!$A$2:$F$48,D24,FALSE)+VLOOKUP(キメラB,VL用!$A$2:$F$48,D24,FALSE))/2,0)","v":{"$error":"#N/A"}},{"$f":"ROUNDUP((VLOOKUP(キメラA,VL用!$A$2:$F$48,E24,FALSE)+VLOOKUP(キメラB,VL用!$A$2:$F$48,E24,FALSE))/2,0)","v":{"$error":"#N/A"}},{"$f":"ROUNDUP((VLOOKUP(キメラA,VL用!$A$2:$F$48,F24,FALSE)+VLOOKUP(キメラB,VL用!$A$2:$F$48,F24,FALSE))/2,0)","v":{"$error":"#N/A"}},{"$f":"VLOOKUP(キメラA,A1:P48,7,FALSE)","v":{"$error":"#N/A"}},null,null,null,null,null,null,null,null,null,"忌み嫌われし存在",null,null,"★","自","常時","自","なし","なし","なし","なし",{"$f":"\"感情強度合計値-4。〈炎〉～〈闇〉耐性+\"&5+CS!S10*2&\" 4MP以上のｽｷﾙ代償-1MP\"","v":"感情強度合計値-4。〈炎〉～〈闇〉耐性+7 4MP以上のｽｷﾙ代償-1MP"}]
["キメラ祝",{"$f":"B22","v":{"$error":"#N/A"}},{"$f":"C22","v":{"$error":"#N/A"}},{"$error":"#N/A"},{"$error":"#N/A"},{"$error":"#N/A"},{"$f":"VLOOKUP(キメラA,A1:P23,7,FALSE)","v":{"$error":"#N/A"}},null,null,null,null,null,null,null,null,null,"祝福されし存在",null,null,"★","自","常時","自","なし","なし","なし","なし","感情強度合計値+3。常時感情ロールの出目+1。"]
[null,2,3,4,5,6,2,3,4,5,6,7,8,9,10,11,12,13,14,15,16,17,18,19,20,21,null,2,3,4,5,6,7,8,9,10,11,12,13,14,15,16,17,18,19,20,21,null,2,3,4,5,6,7,8,9,10,11,12,13,14,15,16,17,18,19,20,21,null,2,3,4,5,6,7,8,9,10,11,12,13,14,15,16,17,18,19,20,21,null,2,3,4,5,6,7,8,9,10,11,12,13,14,15,16,17,18,19,20,21,null,2,3,4,5,6,7,8,9,10,11,12,13,14,15,16,17,18,19,20,21,null,2,3,4,5,6,7,8,9,10,11,12,13,14,15,16,17,18,19,20,21,null,2,3,4,5,6,7,8,9,10,11,12,13,14,15,16,17,18,19,20,21,null,2,3,4,5,6,7,8,9,10,11,12,13,14,15,16,17,18,19,20,21,null,2,3,4,5,6,7,8,9,10,11,12,13,14,15,16,17,18,19,20,21]
[null,2,null,null,null,"能力値","近接","射撃","回避","魔術","抵抗","敏捷","物攻","魔攻","耐久","精神","近","遠","炎","氷","水","雷","風","土","光","闇","能力値","近接","射撃","回避","魔術","抵抗","敏捷","物攻","魔攻","耐久","精神","近","遠","炎","氷","水","雷","風","土","光","闇","能力値","近接","射撃","回避","魔術","抵抗","敏捷","物攻","魔攻","耐久","精神","近","遠","炎","氷","水","雷","風","土","光","闇","能力値","近接","射撃","回避","魔術","抵抗","敏捷","物攻","魔攻","耐久","精神","近","遠","炎","氷","水","雷","風","土","光","闇","能力値","近接","射撃","回避","魔術","抵抗","敏捷","物攻","魔攻","耐久","精神","近","遠","炎","氷","水","雷","風","土","光","闇","能力値","近接","射撃","回避","魔術","抵抗","敏捷","物攻","魔攻","耐久","精神","近","遠","炎","氷","水","雷","風","土","光","闇","能力値","近接","射撃","回避","魔術","抵抗","敏捷","物攻","魔攻","耐久","精神","近","遠","炎","氷","水","雷","風","土","光","闇","能力値","近接","射撃","回避","魔術","抵抗","敏捷","物攻","魔攻","耐久","精神","近","遠","炎","氷","水","雷","風","土","光","闇","能力値","近接","射撃","回避","魔術","抵抗","敏捷","物攻","魔攻","耐久","精神","近","遠","炎","氷","水","雷","風","土","光","闇","能力値","近接","射撃","回避","魔術","抵抗","敏捷","物攻","魔攻","耐久","精神","近","遠","炎","氷","水","雷","風","土","光","闇"]
[null,2,null,null,null,"人間",5,5,3,4,3,4,10,10,100,30,10,10,0,0,-5,0,5,2,4,3,"人間",6,6,4,5,4,5,12,11,122,32,13,12,-1,1,-4,-2,8,4,6,5,"人間",7,7,5,6,5,6,14,13,146,35,16,14,-3,3,-3,-4,11,6,7,7,"人間",8,9,6,8,6,7,15,15,170,38,19,17,-5,4,0,-6,15,7,10,8,"人間",10,10,8,10,8,8,17,16,194,41,22,20,-6,5,2,-9,19,10,12,11,"人間",11,12,10,12,10,9,19,18,222,44,25,23,-9,6,4,-12,22,12,14,13,"人間",13,13,12,13,12,10,22,21,250,47,28,26,-12,7,6,-15,26,13,16,15,"人間",14,14,13,15,13,12,25,23,274,50,32,28,-15,8,7,-18,30,15,19,17,"人間",16,16,14,17,14,14,28,25,300,53,35,30,-16,9,10,-21,32,18,22,20,"人間",18,18,15,18,15,15,32,26,330,56,38,33,-18,10,12,-24,35,22,25,22]
[null,3,null,null,null,"天使",3,4,3,5,3,3,10,13,88,35,8,11,3,3,3,0,-10,10,14,-20,"天使",4,5,4,7,5,4,12,15,106,38,10,13,3,5,4,2,-13,15,18,-21,"天使",7,7,5,8,6,5,14,18,120,42,12,15,3,6,4,2,-15,18,22,-23,"天使",8,9,6,10,7,6,16,21,146,45,14,18,4,9,5,3,-18,22,27,-25,"天使",9,11,7,12,8,7,18,24,170,48,17,21,4,10,5,4,-21,25,30,-27,"天使",11,12,9,13,9,9,20,26,198,52,20,24,4,13,7,4,-23,28,33,-29,"天使",13,13,10,15,11,10,22,29,220,55,23,27,5,15,8,5,-25,32,37,-31,"天使",14,15,11,16,12,11,23,32,244,58,26,30,5,17,10,5,-27,36,41,-33,"天使",15,17,13,18,13,12,25,35,262,61,29,33,5,19,12,6,-29,39,45,-35,"天使",17,19,14,19,14,13,27,38,280,65,33,37,6,20,13,7,-33,43,50,-38]
[null,3,null,null,null,"悪魔",4,3,3,4,4,1,13,8,115,28,10,8,4,4,1,0,-2,3,-10,10,"悪魔",5,4,4,6,6,2,16,11,145,32,13,11,6,6,2,3,-4,5,-13,13,"悪魔",6,6,5,7,7,3,18,13,169,35,16,14,8,10,3,5,-6,7,-15,16,"悪魔",8,8,6,8,8,3,20,15,195,39,20,17,10,11,5,6,-7,8,-18,18,"悪魔",9,10,7,9,9,4,22,17,221,41,23,20,11,13,7,7,-11,10,-21,21,"悪魔",11,12,8,11,10,4,24,19,245,43,27,24,13,14,9,9,-13,11,-24,24,"悪魔",13,14,10,13,12,5,26,22,269,47,30,27,14,16,10,10,-15,13,-26,28,"悪魔",14,15,11,14,14,5,30,25,295,50,33,30,16,17,12,11,-18,14,-29,32,"悪魔",16,16,12,16,16,6,33,28,323,53,37,33,18,19,14,12,-21,15,-32,35,"悪魔",17,17,13,18,17,7,36,32,355,58,40,36,20,22,15,14,-24,17,-35,39]
[null,4,null,null,null,"妖精",4,5,3,4,4,5,9,10,85,34,7,8,3,0,9,-5,10,3,0,0,"妖精",5,7,4,5,5,6,11,13,103,37,10,11,5,1,13,-5,13,5,1,1,"妖精",7,8,5,7,7,8,14,16,121,41,12,14,7,1,15,-5,15,8,2,2,"妖精",9,9,7,8,8,9,16,19,137,44,14,17,10,2,18,-5,18,10,3,3,"妖精",10,10,8,10,9,10,19,21,153,47,16,20,12,2,21,-5,20,11,4,4,"妖精",11,12,9,11,10,11,21,23,165,50,18,23,14,3,24,-6,22,13,6,5,"妖精",12,14,10,13,11,12,23,25,185,53,20,25,17,4,27,-6,24,14,7,7,"妖精",14,15,11,14,13,14,25,28,203,56,22,28,19,4,30,-7,26,15,10,8,"妖精",15,17,13,16,14,15,27,31,223,59,24,31,22,5,33,-7,29,16,10,9,"妖精",17,19,15,18,16,16,29,34,245,63,27,33,24,6,36,-8,31,18,11,10]
[null,4,null,null,null,"鳥人",4,4,3,5,3,6,6,6,92,26,10,4,2,-10,2,-10,10,10,0,-5,"鳥人",5,6,4,7,4,8,8,9,118,28,12,6,3,-8,2,-12,13,16,1,-4,"鳥人",7,8,6,8,5,9,10,11,142,31,14,8,4,-7,3,-14,17,23,1,-3,"鳥人",8,9,7,9,6,11,13,13,160,35,16,10,5,-6,3,-16,20,29,1,-2,"鳥人",10,10,9,10,7,13,15,16,178,38,19,13,6,-5,4,-17,24,35,2,-1,"鳥人",11,12,11,11,9,14,18,18,190,41,22,16,8,-5,4,-21,28,41,2,0,"鳥人",13,13,12,13,10,16,20,20,212,44,25,19,9,-5,5,-23,31,47,2,1,"鳥人",14,14,13,14,11,18,23,22,236,47,28,22,10,-5,5,-25,35,54,2,2,"鳥人",15,16,15,16,13,20,26,24,262,50,31,24,11,-5,6,-28,38,60,3,3,"鳥人",17,17,16,18,15,22,29,27,288,53,34,26,12,-5,7,-31,43,66,3,4]
[null,5,null,null,null,"竜人",4,3,2,4,4,0,15,13,128,15,15,12,17,14,0,15,12,16,0,0,"竜人",5,4,3,6,5,1,18,17,162,18,18,14,23,21,0,18,14,20,1,2,"竜人",7,5,4,7,7,1,21,20,194,21,20,16,28,27,0,21,17,23,2,2,"竜人",9,7,5,8,8,2,23,22,226,23,23,19,32,32,0,25,20,25,2,3,"竜人",11,8,6,10,9,2,25,25,254,25,27,23,36,37,0,29,25,28,3,4,"竜人",12,10,7,12,10,3,28,28,279,28,31,27,41,40,0,34,16,34,3,4,"竜人",14,12,9,14,13,3,31,30,303,31,35,31,46,43,0,38,26,39,4,5,"竜人",15,13,10,15,15,4,34,33,329,35,39,35,50,47,0,43,29,41,5,5,"竜人",17,15,11,17,16,4,37,36,361,37,42,38,55,53,0,48,32,46,5,6,"竜人",19,17,12,18,18,5,40,38,392,40,46,42,59,56,0,52,55,50,6,7]
[null,5,null,null,null,"獣人",4,4,4,4,3,3,11,10,104,20,9,5,-8,6,1,-4,3,11,2,2,"獣人",6,5,5,6,4,4,13,12,127,23,12,8,-10,8,2,-4,3,11,2,2,"獣人",7,7,7,7,6,5,15,14,152,26,15,10,-13,10,3,-4,7,18,4,5,"獣人",9,8,9,8,7,7,18,16,175,28,17,12,-15,12,3,-4,9,21,5,7,"獣人",10,9,10,9,8,10,20,19,202,31,20,14,-18,13,4,-3,12,24,6,9,"獣人",11,10,12,11,9,12,23,21,229,34,22,16,-21,15,4,-3,14,27,7,11,"獣人",13,12,13,12,10,13,26,23,256,37,24,18,-24,17,5,-3,16,32,8,12,"獣人",14,13,15,14,12,14,29,24,282,39,26,21,-27,20,5,-2,18,36,9,14,"獣人",16,15,16,15,13,15,31,26,309,43,28,22,-30,23,6,-2,20,41,10,16,"獣人",18,17,18,17,14,18,34,28,342,46,32,24,-33,27,6,-2,23,45,12,18]
[null,6,null,null,null,"吸血鬼",4,3,3,4,3,5,11,10,120,25,13,13,-35,5,-30,3,4,2,-35,26,"吸血鬼",6,4,4,5,5,7,13,12,141,28,16,16,-38,7,-30,5,6,4,-38,34,"吸血鬼",7,6,6,7,6,9,15,14,167,32,19,19,-41,10,-30,7,8,6,-42,37,"吸血鬼",8,7,7,9,7,11,17,15,194,35,22,22,-43,12,-30,11,10,8,-45,41,"吸血鬼",10,9,8,10,8,12,19,17,222,38,25,25,-46,15,-30,13,12,10,-48,46,"吸血鬼",12,11,9,11,10,14,21,19,249,41,28,28,-49,16,-30,16,15,11,-51,51,"吸血鬼",14,12,10,13,11,16,24,22,276,44,31,31,-52,18,-30,19,18,13,-53,55,"吸血鬼",15,14,11,15,12,17,27,24,305,47,34,34,-55,20,-30,21,20,15,-56,58,"吸血鬼",17,15,12,16,13,19,31,26,335,50,37,37,-58,22,-30,23,22,17,-60,62,"吸血鬼",19,17,14,18,14,21,34,28,360,53,40,40,-61,25,-30,26,25,19,-63,66]
[null,6,null,null,null,"偽人",5,5,3,4,3,4,10,10,100,30,10,10,0,0,-5,0,5,2,4,3,"偽人",6,6,4,5,4,5,12,11,122,32,13,12,-1,1,-4,-2,8,4,6,5,"偽人",7,7,5,6,5,6,14,13,146,35,16,14,-3,3,-3,-4,11,6,7,7,"偽人",8,9,6,8,6,7,15,15,170,38,19,17,-5,4,0,-6,15,7,10,8,"偽人",10,10,8,10,8,8,17,16,194,41,22,20,-6,5,2,-9,19,10,12,11,"偽人",11,12,10,12,10,9,19,18,222,44,25,23,-9,6,4,-12,22,12,14,13,"偽人",13,13,12,13,12,10,22,21,250,47,28,26,-12,7,6,-15,26,13,16,15,"偽人",14,14,13,15,13,12,25,23,274,50,32,28,-15,8,7,-18,30,15,19,17,"偽人",16,16,14,17,14,14,28,25,300,53,35,30,-16,9,10,-21,32,18,22,20,"偽人",18,18,15,18,15,15,32,26,330,56,38,33,-18,10,12,-24,35,22,25,22]
[null,7,null,null,null,"魔法人形",4,3,3,5,4,4,7,18,50,44,3,2,20,20,20,20,10,5,6,6,"魔法人形",5,4,4,6,6,5,11,22,66,49,5,4,23,23,23,23,12,5,6,6,"魔法人形",6,5,6,8,8,7,13,25,78,53,7,6,26,25,30,31,15,5,7,7,"魔法人形",8,6,7,10,10,8,15,28,92,58,8,7,29,28,34,35,18,5,7,7,"魔法人形",9,7,8,12,11,9,18,32,106,63,10,8,31,30,36,38,21,5,8,8,"魔法人形",10,8,9,14,13,10,21,36,116,67,11,10,34,33,38,41,25,5,8,8,"魔法人形",12,9,10,16,14,11,25,41,130,72,13,11,37,35,40,45,28,5,12,12,"魔法人形",13,10,12,18,16,13,29,45,146,75,15,12,40,38,42,48,30,5,12,12,"魔法人形",14,11,13,20,18,14,31,49,162,79,17,14,43,40,45,50,33,5,10,10,"魔法人形",16,12,14,21,19,16,35,53,180,83,19,16,46,42,49,53,36,5,10,10]
[null,7,null,null,null,"死神",5,2,3,5,3,3,6,6,90,28,9,9,8,0,4,8,-5,0,-20,20,"死神",6,3,4,7,5,5,8,8,109,30,11,11,11,0,5,10,-5,0,-20,24,"死神",8,4,6,8,6,6,11,11,127,33,15,14,13,0,6,13,-5,0,-20,27,"死神",9,5,7,9,7,7,13,13,146,36,19,17,16,0,8,15,-5,0,-20,31,"死神",11,6,9,11,9,8,16,16,169,39,21,19,19,0,10,18,-5,0,-20,35,"死神",13,7,10,13,11,9,19,19,192,41,23,22,22,0,12,21,-5,0,-20,39,"死神",14,8,11,15,12,10,21,21,212,44,25,25,25,0,13,24,-5,0,-20,44,"死神",15,9,13,16,13,11,24,24,237,47,28,28,28,0,14,27,-5,0,-20,47,"死神",17,10,14,18,15,13,26,26,260,50,30,31,31,0,15,29,-5,0,-20,50,"死神",19,11,16,19,17,14,29,29,282,52,32,34,34,0,17,31,-5,0,-20,54]
[null,8,null,null,null,"神格",4,4,3,4,5,2,7,8,108,28,8,8,1,2,3,3,2,2,0,0,"神格",6,5,4,6,6,3,10,11,131,30,10,10,3,4,4,5,4,5,0,0,"神格",7,7,5,7,8,5,13,14,153,33,12,11,5,7,6,7,6,8,0,0,"神格",9,8,6,8,9,7,15,17,175,35,14,12,7,10,8,8,8,12,0,0,"神格",9,9,8,10,10,8,18,20,196,38,17,14,10,12,10,12,10,15,0,0,"神格",11,11,9,12,12,9,20,22,218,41,19,16,12,14,12,13,12,19,0,0,"神格",13,12,11,14,13,10,23,25,242,44,21,18,13,16,14,15,14,21,0,0,"神格",15,14,12,15,15,12,25,28,271,47,23,21,15,18,16,18,16,25,0,0,"神格",16,16,14,17,16,13,27,31,292,50,24,23,18,20,18,20,19,29,0,0,"神格",17,17,15,18,18,15,30,34,314,53,26,25,20,22,19,21,22,33,0,0]
[null,8,null,null,null,"妖怪",4,4,3,4,6,3,12,10,112,27,7,7,0,0,1,1,2,-3,-5,-5,"妖怪",6,5,4,6,8,4,14,12,138,29,12,11,0,0,1,1,2,-3,-5,-5,"妖怪",7,6,5,7,10,5,16,14,161,32,17,15,0,0,1,1,2,-3,-5,-5,"妖怪",8,7,6,9,11,6,19,16,189,34,21,20,0,0,1,1,2,-3,-5,-5,"妖怪",10,9,7,10,13,7,21,19,220,36,26,24,0,0,1,1,2,-3,-5,-5,"妖怪",11,10,8,12,14,9,23,21,247,38,30,28,0,0,1,1,2,-6,-5,-5,"妖怪",13,12,9,14,16,10,25,22,271,41,34,31,0,0,1,1,2,-6,-5,-5,"妖怪",14,13,10,16,17,11,28,24,295,43,38,36,0,0,1,1,2,-6,-5,-5,"妖怪",16,15,12,17,19,12,30,26,324,45,42,40,0,0,1,1,2,-6,-5,-5,"妖怪",18,16,13,18,20,13,32,28,355,48,47,45,0,0,1,1,2,-7,-5,-5]
[null,9,null,null,null,"花姫",4,4,4,4,4,5,8,8,75,35,3,15,-28,-3,10,0,5,10,25,-10,"花姫",6,5,5,5,6,6,10,11,89,38,5,19,-32,-3,14,0,5,13,28,-12,"花姫",7,6,7,7,7,7,12,13,103,42,7,24,-35,-4,16,0,5,16,31,-14,"花姫",8,8,8,8,9,8,14,15,118,46,9,28,-37,-5,19,0,5,19,35,-16,"花姫",9,9,10,10,10,10,16,18,135,50,12,32,-40,-6,22,0,5,21,38,-18,"花姫",11,11,12,10,12,11,18,20,151,53,15,38,-43,-6,25,0,8,24,43,-20,"花姫",12,12,13,12,13,13,20,22,165,56,17,42,-46,-7,27,0,8,28,46,-23,"花姫",13,14,14,13,15,14,23,24,178,58,19,47,-49,-8,31,0,8,30,51,-25,"花姫",14,15,16,14,17,15,25,26,192,61,21,50,-53,-9,34,0,8,34,53,-28,"花姫",16,16,18,16,18,16,27,28,205,65,23,54,-55,-10,37,0,8,38,57,-30]
[null,9,null,null,null,"虫人",5,4,5,3,2,3,11,7,105,23,14,14,-10,2,5,-3,-10,-11,6,6,"虫人",7,5,7,5,3,4,13,9,128,25,18,17,-12,3,5,-6,-13,-14,8,9,"虫人",8,7,8,6,5,5,15,11,156,27,21,20,-13,5,5,-10,-16,-17,11,11,"虫人",9,8,10,8,6,6,17,12,183,30,25,26,-15,7,5,-12,-20,-19,13,14,"虫人",10,9,12,9,7,7,19,13,208,32,29,29,-17,10,5,-15,-23,-21,16,17,"虫人",11,11,13,10,8,8,21,15,233,34,33,32,-19,12,5,-18,-26,-23,19,21,"虫人",13,13,14,11,10,9,23,17,256,37,36,35,-21,14,5,-20,-30,-25,21,24,"虫人",14,15,16,13,11,10,26,18,283,40,40,37,-23,17,5,-23,-33,-28,24,26,"虫人",16,16,17,14,13,11,28,19,310,42,43,40,-24,19,5,-25,-36,-31,27,28,"虫人",18,18,19,15,14,12,30,21,334,45,46,42,-26,22,5,-28,-42,-34,30,32]
[null,10,null,null,null,"戦乙女",5,3,3,4,5,5,11,9,93,32,5,4,5,0,-6,5,3,-5,5,-8,"戦乙女",6,4,4,6,6,7,13,11,115,35,7,6,8,0,-12,8,3,-5,8,-14,"戦乙女",7,5,6,7,7,8,15,13,138,38,8,8,11,0,-18,11,3,-5,11,-18,"戦乙女",9,7,7,8,9,10,18,14,161,41,10,10,13,0,-23,13,4,-5,13,-21,"戦乙女",10,8,8,10,10,12,21,16,183,45,12,11,16,0,-29,16,4,-5,16,-26,"戦乙女",12,9,10,11,12,14,24,18,206,48,13,12,20,0,-34,20,4,-5,20,-32,"戦乙女",13,10,11,13,14,15,26,21,229,51,15,14,23,0,-38,23,5,-5,23,-37,"戦乙女",15,11,12,15,15,16,28,23,253,54,17,15,25,0,-43,25,5,-5,25,-42,"戦乙女",17,13,14,16,17,18,31,25,271,57,18,17,28,0,-48,28,5,-5,28,-48,"戦乙女",19,14,15,18,19,20,33,28,292,61,20,18,31,0,-54,31,6,-5,31,-53]
[null,10,null,null,null,"半魚人",5,3,4,4,3,4,8,7,85,24,6,6,20,20,25,-25,5,5,3,3,"半魚人",6,4,5,6,5,6,10,9,101,27,8,8,20,23,28,-28,5,5,3,3,"半魚人",8,5,6,7,6,7,13,11,114,29,9,10,20,25,31,-31,5,5,3,3,"半魚人",9,7,8,8,7,9,15,13,138,32,11,12,20,28,34,-33,5,5,3,3,"半魚人",11,8,9,9,9,11,18,15,160,35,13,13,20,31,37,-36,5,5,3,3,"半魚人",13,10,10,11,11,13,21,18,187,39,15,15,20,34,40,-40,5,5,3,3,"半魚人",14,11,11,13,12,15,23,20,208,41,17,17,20,36,43,-43,5,5,3,3,"半魚人",16,12,12,14,14,16,25,23,231,44,19,18,20,39,46,-46,5,5,3,3,"半魚人",18,13,13,16,15,17,27,25,249,46,22,21,20,41,49,-50,5,5,3,3,"半魚人",19,15,15,18,17,19,30,28,262,50,24,23,20,44,53,-55,5,5,3,3]
[null,11,null,null,null,"魔道士",3,2,3,5,4,3,6,14,83,39,-3,3,2,2,2,2,2,2,10,10,"魔道士",5,3,5,7,5,4,8,17,101,42,-5,5,4,4,4,4,4,4,14,14,"魔道士",6,5,6,8,7,5,10,20,116,46,-7,7,5,5,5,5,5,5,18,18,"魔道士",7,6,7,10,9,7,12,22,131,50,-10,10,6,6,6,6,6,6,22,22,"魔道士",8,7,9,12,10,8,15,25,146,55,-13,12,7,7,7,7,7,7,25,25,"魔道士",10,8,11,13,12,9,17,28,158,59,-15,15,8,8,8,8,8,8,29,29,"魔道士",12,10,12,15,13,10,20,32,177,64,-18,17,10,10,10,10,10,10,33,33,"魔道士",14,11,13,17,15,11,23,35,194,69,-20,20,12,12,12,12,12,12,37,37,"魔道士",15,12,14,19,17,13,25,39,213,73,-23,23,13,13,13,13,13,13,40,40,"魔道士",16,13,15,21,18,14,28,43,234,77,-25,26,15,15,15,15,15,15,43,43]
[null,12,null,null,null,"付喪神",4,4,4,4,3,3,8,8,98,28,4,4,11,5,8,2,2,-5,8,2,"付喪神",6,5,6,5,5,5,11,11,119,30,6,6,16,8,13,2,5,-9,11,3,"付喪神",7,7,7,7,6,6,12,13,142,33,7,7,21,11,15,2,7,-13,14,4,"付喪神",8,8,9,9,7,8,14,15,161,36,9,9,28,14,18,3,9,-16,16,5,"付喪神",10,9,11,10,8,10,16,18,185,39,11,11,32,18,20,3,13,-21,18,6,"付喪神",11,11,13,12,10,11,19,20,212,42,12,12,36,21,23,3,15,-26,21,7,"付喪神",12,12,14,13,12,12,21,22,238,45,13,13,39,25,25,4,17,-31,23,8,"付喪神",14,14,16,14,13,13,23,24,260,48,15,15,43,28,29,4,21,-35,26,9,"付喪神",16,15,17,16,14,15,25,26,285,51,17,17,48,31,31,5,24,-38,28,10,"付喪神",17,17,19,17,15,16,27,28,314,54,18,18,52,33,35,5,26,-42,31,11]
[null,13,null,null,null,"幽体",4,4,5,4,5,6,6,12,102,30,28,27,0,3,4,17,3,4,-30,14,"幽体",5,5,7,5,6,8,8,14,128,33,31,30,0,5,7,23,5,7,-33,18,"幽体",6,6,8,6,8,9,11,16,157,36,34,33,0,7,10,26,7,9,-37,22,"幽体",8,8,9,8,10,11,13,19,174,38,37,36,1,10,12,31,8,11,-40,25,"幽体",10,10,11,9,11,13,14,22,203,40,40,40,2,12,14,34,10,13,-42,29,"幽体",11,12,13,11,13,14,16,24,227,43,43,43,3,13,17,37,12,15,-45,33,"幽体",12,13,14,13,14,16,19,27,252,45,46,45,4,15,20,40,13,18,-48,35,"幽体",14,14,15,15,16,17,22,30,279,47,49,48,5,16,23,43,15,20,-51,40,"幽体",16,15,17,16,18,19,25,32,313,49,52,51,5,18,25,45,16,22,-55,43,"幽体",17,17,19,18,19,21,28,34,338,52,55,54,5,19,28,48,18,24,-59,45]
[null,14,null,null,null,"キメラ忌",{"$f":"MAX(VLOOKUP(キメラA,F25:Z66,G24,FALSE),VLOOKUP(キメラB,F25:Z66,G24,FALSE))","v":{"$error":"#N/A"}},{"$f":"MAX(VLOOKUP(キメラA,F25:Z66,H24,FALSE),VLOOKUP(キメラB,F25:Z66,H24,FALSE))","v":{"$error":"#N/A"}},{"$f":"MAX(VLOOKUP(キメラA,F25:Z66,I24,FALSE),VLOOKUP(キメラB,F25:Z66,I24,FALSE))","v":{"$error":"#N/A"}},{"$f":"MAX(VLOOKUP(キメラA,F25:Z66,J24,FALSE),VLOOKUP(キメラB,F25:Z66,J24,FALSE))","v":{"$error":"#N/A"}},{"$f":"MAX(VLOOKUP(キメラA,F25:Z66,K24,FALSE),VLOOKUP(キメラB,F25:Z66,K24,FALSE))","v":{"$error":"#N/A"}},{"$f":"ROUNDDOWN(VLOOKUP(キメラA,F25:Z66,L24,FALSE)/2+VLOOKUP(キメラB,F25:Z66,L24,FALSE)/2,0)","v":{"$error":"#N/A"}},{"$f":"MIN(VLOOKUP(キメラA,F25:Z66,M24,FALSE),VLOOKUP(キメラB,F25:Z66,M24,FALSE))","v":{"$error":"#N/A"}},{"$f":"MIN(VLOOKUP(キメラA,F25:Z66,N24,FALSE),VLOOKUP(キメラB,F25:Z66,N24,FALSE))","v":{"$error":"#N/A"}},{"$f":"ROUNDDOWN(VLOOKUP(キメラA,F25:Z66,O24,FALSE)/2+VLOOKUP(キメラB,F25:Z66,O24,FALSE)/2,0)","v":{"$error":"#N/A"}},{"$f":"ROUNDDOWN(VLOOKUP(キメラA,F25:Z66,P24,FALSE)/2+VLOOKUP(キメラB,F25:Z66,P24,FALSE)/2,0)","v":{"$error":"#N/A"}},{"$f":"MIN(VLOOKUP(キメラA,F25:Z66,Q24,FALSE),VLOOKUP(キメラB,F25:Z66,Q24,FALSE))","v":{"$error":"#N/A"}},{"$f":"MIN(VLOOKUP(キメラA,F25:Z66,R24,FALSE),VLOOKUP(キメラB,F25:Z66,R24,FALSE))","v":{"$error":"#N/A"}},{"$f":"MIN(VLOOKUP(キメラA,F25:Z66,S24,FALSE),VLOOKUP(キメラB,F25:Z66,S24,FALSE))","v":{"$error":"#N/A"}},{"$f":"MIN(VLOOKUP(キメラA,F25:Z66,T24,FALSE),VLOOKUP(キメラB,F25:Z66,T24,FALSE))","v":{"$error":"#N/A"}},{"$f":"MIN(VLOOKUP(キメラA,F25:Z66,U24,FALSE),VLOOKUP(キメラB,F25:Z66,U24,FALSE))","v":{"$error":"#N/A"}},{"$f":"MIN(VLOOKUP(キメラA,F25:Z66,V24,FALSE),VLOOKUP(キメラB,F25:Z66,V24,FALSE))","v":{"$error":"#N/A"}},{"$f":"MIN(VLOOKUP(キメラA,F25:Z66,W24,FALSE),VLOOKUP(キメラB,F25:Z66,W24,FALSE))","v":{"$error":"#N/A"}},{"$f":"MIN(VLOOKUP(キメラA,F25:Z66,X24,FALSE),VLOOKUP(キメラB,F25:Z66,X24,FALSE))","v":{"$error":"#N/A"}},{"$f":"MIN(VLOOKUP(キメラA,F25:Z66,Y24,FALSE),VLOOKUP(キメラB,F25:Z66,Y24,FALSE))","v":{"$error":"#N/A"}},{"$f":"MIN(VLOOKUP(キメラA,F25:Z66,Z24,FALSE),VLOOKUP(キメラB,F25:Z66,Z24,FALSE))","v":{"$error":"#N/A"}},"キメラ忌",{"$f":"MAX(VLOOKUP(キメラA,AA25:AU66,AB24,FALSE),VLOOKUP(キメラB,AA25:AU66,AB24,FALSE))","v":{"$error":"#N/A"}},{"$f":"MAX(VLOOKUP(キメラA,AA25:AU66,AC24,FALSE),VLOOKUP(キメラB,AA25:AU66,AC24,FALSE))","v":{"$error":"#N/A"}},{"$f":"MAX(VLOOKUP(キメラA,AA25:AU66,AD24,FALSE),VLOOKUP(キメラB,AA25:AU66,AD24,FALSE))","v":{"$error":"#N/A"}},{"$f":"MAX(VLOOKUP(キメラA,AA25:AU66,AE24,FALSE),VLOOKUP(キメラB,AA25:AU66,AE24,FALSE))","v":{"$error":"#N/A"}},{"$f":"MAX(VLOOKUP(キメラA,AA25:AU66,AF24,FALSE),VLOOKUP(キメラB,AA25:AU66,AF24,FALSE))","v":{"$error":"#N/A"}},{"$f":"ROUNDDOWN(VLOOKUP(キメラA,AA25:AU66,AG24,FALSE)/2+VLOOKUP(キメラB,AA25:AU66,AG24,FALSE)/2,0)","v":{"$error":"#N/A"}},{"$f":"MIN(VLOOKUP(キメラA,AA25:AU66,AH24,FALSE),VLOOKUP(キメラB,AA25:AU66,AH24,FALSE))","v":{"$error":"#N/A"}},{"$f":"MIN(VLOOKUP(キメラA,AA25:AU66,AI24,FALSE),VLOOKUP(キメラB,AA25:AU66,AI24,FALSE))","v":{"$error":"#N/A"}},{"$f":"ROUNDDOWN(VLOOKUP(キメラA,AA25:AU66,AJ24,FALSE)/2+VLOOKUP(キメラB,AA25:AU66,AJ24,FALSE)/2,0)","v":{"$error":"#N/A"}},{"$f":"ROUNDDOWN(VLOOKUP(キメラA,AA25:AU66,AK24,FALSE)/2+VLOOKUP(キメラB,AA25:AU66,AK24,FALSE)/2,0)","v":{"$error":"#N/A"}},{"$f":"MIN(VLOOKUP(キメラA,AA25:AU66,AL24,FALSE),VLOOKUP(キメラB,AA25:AU66,AL24,FALSE))","v":{"$error":"#N/A"}},{"$f":"MIN(VLOOKUP(キメラA,AA25:AU66,AM24,FALSE),VLOOKUP(キメラB,AA25:AU66,AM24,FALSE))","v":{"$error":"#N/A"}},{"$f":"MIN(VLOOKUP(キメラA,AA25:AU66,AN24,FALSE),VLOOKUP(キメラB,AA25:AU66,AN24,FALSE))","v":{"$error":"#N/A"}},{"$f":"MIN(VLOOKUP(キメラA,AA25:AU66,AO24,FALSE),VLOOKUP(キメラB,AA25:AU66,AO24,FALSE))","v":{"$error":"#N/A"}},{"$f":"MIN(VLOOKUP(キメラA,AA25:AU66,AP24,FALSE),VLOOKUP(キメラB,AA25:AU66,AP24,FALSE))","v":{"$error":"#N/A"}},{"$f":"MIN(VLOOKUP(キメラA,AA25:AU66,AQ24,FALSE),VLOOKUP(キメラB,AA25:AU66,AQ24,FALSE))","v":{"$error":"#N/A"}},{"$f":"MIN(VLOOKUP(キメラA,AA25:AU66,AR24,FALSE),VLOOKUP(キメラB,AA25:AU66,AR24,FALSE))","v":{"$error":"#N/A"}},{"$f":"MIN(VLOOKUP(キメラA,AA25:AU66,AS24,FALSE),VLOOKUP(キメラB,AA25:AU66,AS24,FALSE))","v":{"$error":"#N/A"}},{"$f":"MIN(VLOOKUP(キメラA,AA25:AU66,AT24,FALSE),VLOOKUP(キメラB,AA25:AU66,AT24,FALSE))","v":{"$error":"#N/A"}},{"$f":"MIN(VLOOKUP(キメラA,AA25:AU66,AU24,FALSE),VLOOKUP(キメラB,AA25:AU66,AU24,FALSE))","v":{"$error":"#N/A"}},"キメラ忌",{"$f":"MAX(VLOOKUP(キメラA,AV25:BP66,AW24,FALSE),VLOOKUP(キメラB,AV25:BP66,AW24,FALSE))","v":{"$error":"#N/A"}},{"$f":"MAX(VLOOKUP(キメラA,AV25:BP66,AX24,FALSE),VLOOKUP(キメラB,AV25:BP66,AX24,FALSE))","v":{"$error":"#N/A"}},{"$f":"MAX(VLOOKUP(キメラA,AV25:BP66,AY24,FALSE),VLOOKUP(キメラB,AV25:BP66,AY24,FALSE))","v":{"$error":"#N/A"}},{"$f":"MAX(VLOOKUP(キメラA,AV25:BP66,AZ24,FALSE),VLOOKUP(キメラB,AV25:BP66,AZ24,FALSE))","v":{"$error":"#N/A"}},{"$f":"MAX(VLOOKUP(キメラA,AV25:BP66,BA24,FALSE),VLOOKUP(キメラB,AV25:BP66,BA24,FALSE))","v":{"$error":"#N/A"}},{"$f":"ROUNDDOWN(VLOOKUP(キメラA,AV25:BP66,BB24,FALSE)/2+VLOOKUP(キメラB,AV25:BP66,BB24,FALSE)/2,0)","v":{"$error":"#N/A"}},{"$f":"MIN(VLOOKUP(キメラA,AV25:BP66,BC24,FALSE),VLOOKUP(キメラB,AV25:BP66,BC24,FALSE))","v":{"$error":"#N/A"}},{"$f":"MIN(VLOOKUP(キメラA,AV25:BP66,BD24,FALSE),VLOOKUP(キメラB,AV25:BP66,BD24,FALSE))","v":{"$error":"#N/A"}},{"$f":"ROUNDDOWN(VLOOKUP(キメラA,AV25:BP66,BE24,FALSE)/2+VLOOKUP(キメラB,AV25:BP66,BE24,FALSE)/2,0)","v":{"$error":"#N/A"}},{"$f":"ROUNDDOWN(VLOOKUP(キメラA,AV25:BP66,BF24,FALSE)/2+VLOOKUP(キメラB,AV25:BP66,BF24,FALSE)/2,0)","v":{"$error":"#N/A"}},{"$f":"MIN(VLOOKUP(キメラA,AV25:BP66,BG24,FALSE),VLOOKUP(キメラB,AV25:BP66,BG24,FALSE))","v":{"$error":"#N/A"}},{"$f":"MIN(VLOOKUP(キメラA,AV25:BP66,BH24,FALSE),VLOOKUP(キメラB,AV25:BP66,BH24,FALSE))","v":{"$error":"#N/A"}},{"$f":"MIN(VLOOKUP(キメラA,AV25:BP66,BI24,FALSE),VLOOKUP(キメラB,AV25:BP66,BI24,FALSE))","v":{"$error":"#N/A"}},{"$f":"MIN(VLOOKUP(キメラA,AV25:BP66,BJ24,FALSE),VLOOKUP(キメラB,AV25:BP66,BJ24,FALSE))","v":{"$error":"#N/A"}},{"$f":"MIN(VLOOKUP(キメラA,AV25:BP66,BK24,FALSE),VLOOKUP(キメラB,AV25:BP66,BK24,FALSE))","v":{"$error":"#N/A"}},{"$f":"MIN(VLOOKUP(キメラA,AV25:BP66,BL24,FALSE),VLOOKUP(キメラB,AV25:BP66,BL24,FALSE))","v":{"$error":"#N/A"}},{"$f":"MIN(VLOOKUP(キメラA,AV25:BP66,BM24,FALSE),VLOOKUP(キメラB,AV25:BP66,BM24,FALSE))","v":{"$error":"#N/A"}},{"$f":"MIN(VLOOKUP(キメラA,AV25:BP66,BN24,FALSE),VLOOKUP(キメラB,AV25:BP66,BN24,FALSE))","v":{"$error":"#N/A"}},{"$f":"MIN(VLOOKUP(キメラA,AV25:BP66,BO24,FALSE),VLOOKUP(キメラB,AV25:BP66,BO24,FALSE))","v":{"$error":"#N/A"}},{"$f":"MIN(VLOOKUP(キメラA,AV25:BP66,BP24,FALSE),VLOOKUP(キメラB,AV25:BP66,BP24,FALSE))","v":{"$error":"#N/A"}},"キメラ忌",{"$f":"MAX(VLOOKUP(キメラA,BQ25:CK85,BR24,FALSE),VLOOKUP(キメラB,BQ25:CK85,BR24,FALSE))","v":{"$error":"#N/A"}},{"$f":"MAX(VLOOKUP(キメラA,BQ25:CK85,BS24,FALSE),VLOOKUP(キメラB,BQ25:CK85,BS24,FALSE))","v":{"$error":"#N/A"}},{"$f":"MAX(VLOOKUP(キメラA,BQ25:CK85,BT24,FALSE),VLOOKUP(キメラB,BQ25:CK85,BT24,FALSE))","v":{"$error":"#N/A"}},{"$f":"MAX(VLOOKUP(キメラA,BQ25:CK85,BU24,FALSE),VLOOKUP(キメラB,BQ25:CK85,BU24,FALSE))","v":{"$error":"#N/A"}},{"$f":"MAX(VLOOKUP(キメラA,BQ25:CK85,BV24,FALSE),VLOOKUP(キメラB,BQ25:CK85,BV24,FALSE))","v":{"$error":"#N/A"}},{"$f":"ROUNDDOWN(VLOOKUP(キメラA,BQ25:CK85,BW24,FALSE)/2+VLOOKUP(キメラB,BQ25:CK85,BW24,FALSE)/2,0)","v":{"$error":"#N/A"}},{"$f":"MIN(VLOOKUP(キメラA,BQ25:CK85,BX24,FALSE),VLOOKUP(キメラB,BQ25:CK85,BX24,FALSE))","v":{"$error":"#N/A"}},{"$f":"MIN(VLOOKUP(キメラA,BQ25:CK85,BY24,FALSE),VLOOKUP(キメラB,BQ25:CK85,BY24,FALSE))","v":{"$error":"#N/A"}},{"$f":"ROUNDDOWN(VLOOKUP(キメラA,BQ25:CK85,BZ24,FALSE)/2+VLOOKUP(キメラB,BQ25:CK85,BZ24,FALSE)/2,0)","v":{"$error":"#N/A"}},{"$f":"ROUNDDOWN(VLOOKUP(キメラA,BQ25:CK85,CA24,FALSE)/2+VLOOKUP(キメラB,BQ25:CK85,CA24,FALSE)/2,0)","v":{"$error":"#N/A"}},{"$f":"MIN(VLOOKUP(キメラA,BQ25:CK85,CB24,FALSE),VLOOKUP(キメラB,BQ25:CK85,CB24,FALSE))","v":{"$error":"#N/A"}},{"$f":"MIN(VLOOKUP(キメラA,BQ25:CK85,CC24,FALSE),VLOOKUP(キメラB,BQ25:CK85,CC24,FALSE))","v":{"$error":"#N/A"}},{"$f":"MIN(VLOOKUP(キメラA,BQ25:CK85,CD24,FALSE),VLOOKUP(キメラB,BQ25:CK85,CD24,FALSE))","v":{"$error":"#N/A"}},{"$f":"MIN(VLOOKUP(キメラA,BQ25:CK85,CE24,FALSE),VLOOKUP(キメラB,BQ25:CK85,CE24,FALSE))","v":{"$error":"#N/A"}},{"$f":"MIN(VLOOKUP(キメラA,BQ25:CK85,CF24,FALSE),VLOOKUP(キメラB,BQ25:CK85,CF24,FALSE))","v":{"$error":"#N/A"}},{"$f":"MIN(VLOOKUP(キメラA,BQ25:CK85,CG24,FALSE),VLOOKUP(キメラB,BQ25:CK85,CG24,FALSE))","v":{"$error":"#N/A"}},{"$f":"MIN(VLOOKUP(キメラA,BQ25:CK85,CH24,FALSE),VLOOKUP(キメラB,BQ25:CK85,CH24,FALSE))","v":{"$error":"#N/A"}},{"$f":"MIN(VLOOKUP(キメラA,BQ25:CK85,CI24,FALSE),VLOOKUP(キメラB,BQ25:CK85,CI24,FALSE))","v":{"$error":"#N/A"}},{"$f":"MIN(VLOOKUP(キメラA,BQ25:CK85,CJ24,FALSE),VLOOKUP(キメラB,BQ25:CK85,CJ24,FALSE))","v":{"$error":"#N/A"}},{"$f":"MIN(VLOOKUP(キメラA,BQ25:CK85,CK24,FALSE),VLOOKUP(キメラB,BQ25:CK85,CK24,FALSE))","v":{"$error":"#N/A"}},"キメラ忌",{"$f":"MAX(VLOOKUP(キメラA,CL25:DF66,CM24,FALSE),VLOOKUP(キメラB,CL25:DF66,CM24,FALSE))","v":{"$error":"#VALUE!"}},{"$f":"MAX(VLOOKUP(キメラA,CL25:DF66,CN24,FALSE),VLOOKUP(キメラB,CL25:DF66,CN24,FALSE))","v":0},{"$f":"MAX(VLOOKUP(キメラA,CL25:DF66,CO24,FALSE),VLOOKUP(キメラB,CL25:DF66,CO24,FALSE))","v":0},{"$f":"MAX(VLOOKUP(キメラA,CL25:DF66,CP24,FALSE),VLOOKUP(キメラB,CL25:DF66,CP24,FALSE))","v":0},{"$f":"MAX(VLOOKUP(キメラA,CL25:DF66,CQ24,FALSE),VLOOKUP(キメラB,CL25:DF66,CQ24,FALSE))","v":0},{"$f":"ROUNDDOWN(VLOOKUP(キメラA,CL25:DF66,CR24,FALSE)/2+VLOOKUP(キメラB,CL25:DF66,CR24,FALSE)/2,0)","v":0},{"$f":"MIN(VLOOKUP(キメラA,CL25:DF66,CS24,FALSE),VLOOKUP(キメラB,CL25:DF66,CS24,FALSE))","v":0},{"$f":"MIN(VLOOKUP(キメラA,CL25:DF66,CT24,FALSE),VLOOKUP(キメラB,CL25:DF66,CT24,FALSE))","v":0},{"$f":"ROUNDDOWN(VLOOKUP(キメラA,CL25:DF66,CU24,FALSE)/2+VLOOKUP(キメラB,CL25:DF66,CU24,FALSE)/2,0)","v":0},{"$f":"ROUNDDOWN(VLOOKUP(キメラA,CL25:DF66,CV24,FALSE)/2+VLOOKUP(キメラB,CL25:DF66,CV24,FALSE)/2,0)","v":0},{"$f":"MIN(VLOOKUP(キメラA,CL25:DF66,CW24,FALSE),VLOOKUP(キメラB,CL25:DF66,CW24,FALSE))","v":0},{"$f":"MIN(VLOOKUP(キメラA,CL25:DF66,CX24,FALSE),VLOOKUP(キメラB,CL25:DF66,CX24,FALSE))","v":0},{"$f":"MIN(VLOOKUP(キメラA,CL25:DF66,CY24,FALSE),VLOOKUP(キメラB,CL25:DF66,CY24,FALSE))","v":0},{"$f":"MIN(VLOOKUP(キメラA,CL25:DF66,CZ24,FALSE),VLOOKUP(キメラB,CL25:DF66,CZ24,FALSE))","v":0},{"$f":"MIN(VLOOKUP(キメラA,CL25:DF66,DA24,FALSE),VLOOKUP(キメラB,CL25:DF66,DA24,FALSE))","v":0},{"$f":"MIN(VLOOKUP(キメラA,CL25:DF66,DB24,FALSE),VLOOKUP(キメラB,CL25:DF66,DB24,FALSE))","v":0},{"$f":"MIN(VLOOKUP(キメラA,CL25:DF66,DC24,FALSE),VLOOKUP(キメラB,CL25:DF66,DC24,FALSE))","v":0},{"$f":"MIN(VLOOKUP(キメラA,CL25:DF66,DD24,FALSE),VLOOKUP(キメラB,CL25:DF66,DD24,FALSE))","v":0},{"$f":"MIN(VLOOKUP(キメラA,CL25:DF66,DE24,FALSE),VLOOKUP(キメラB,CL25:DF66,DE24,FALSE))","v":0},{"$f":"MIN(VLOOKUP(キメラA,CL25:DF66,DF24,FALSE),VLOOKUP(キメラB,CL25:DF66,DF24,FALSE))","v":0},"キメラ忌",{"$f":"MAX(VLOOKUP(キメラA,DG25:EA66,DH24,FALSE),VLOOKUP(キメラB,DG25:EA66,DH24,FALSE))","v":{"$error":"#N/A"}},{"$f":"MAX(VLOOKUP(キメラA,DG25:EA66,DI24,FALSE),VLOOKUP(キメラB,DG25:EA66,DI24,FALSE))","v":{"$error":"#N/A"}},{"$f":"MAX(VLOOKUP(キメラA,DG25:EA66,DJ24,FALSE),VLOOKUP(キメラB,DG25:EA66,DJ24,FALSE))","v":{"$error":"#N/A"}},{"$f":"MAX(VLOOKUP(キメラA,DG25:EA66,DK24,FALSE),VLOOKUP(キメラB,DG25:EA66,DK24,FALSE))","v":{"$error":"#N/A"}},{"$f":"MAX(VLOOKUP(キメラA,DG25:EA66,DL24,FALSE),VLOOKUP(キメラB,DG25:EA66,DL24,FALSE))","v":{"$error":"#N/A"}},{"$f":"ROUNDDOWN(VLOOKUP(キメラA,DG25:EA66,DM24,FALSE)/2+VLOOKUP(キメラB,DG25:EA66,DM24,FALSE)/2,0)","v":{"$error":"#N/A"}},{"$f":"ROUNDDOWN(VLOOKUP(キメラA,DG25:EA66,DN24,FALSE)/2+VLOOKUP(キメラB,DG25:EA66,DN24,FALSE)/2,0)","v":{"$error":"#N/A"}},{"$f":"ROUNDDOWN(VLOOKUP(キメラA,DG25:EA66,DO24,FALSE)/2+VLOOKUP(キメラB,DG25:EA66,DO24,FALSE)/2,0)","v":{"$error":"#N/A"}},{"$f":"ROUNDDOWN(VLOOKUP(キメラA,DG25:EA66,DP24,FALSE)/2+VLOOKUP(キメラB,DG25:EA66,DP24,FALSE)/2,0)","v":{"$error":"#N/A"}},{"$f":"ROUNDDOWN(VLOOKUP(キメラA,DG25:EA66,DQ24,FALSE)/2+VLOOKUP(キメラB,DG25:EA66,DQ24,FALSE)/2,0)","v":{"$error":"#N/A"}},{"$f":"MIN(VLOOKUP(キメラA,DG25:EA66,DR24,FALSE),VLOOKUP(キメラB,DG25:EA66,DR24,FALSE))","v":{"$error":"#N/A"}},{"$f":"MIN(VLOOKUP(キメラA,DG25:EA66,DS24,FALSE),VLOOKUP(キメラB,DG25:EA66,DS24,FALSE))","v":{"$error":"#N/A"}},{"$f":"MIN(VLOOKUP(キメラA,DG25:EA66,DT24,FALSE),VLOOKUP(キメラB,DG25:EA66,DT24,FALSE))","v":{"$error":"#N/A"}},{"$f":"MIN(VLOOKUP(キメラA,DG25:EA66,DU24,FALSE),VLOOKUP(キメラB,DG25:EA66,DU24,FALSE))","v":{"$error":"#N/A"}},{"$f":"MIN(VLOOKUP(キメラA,DG25:EA66,DV24,FALSE),VLOOKUP(キメラB,DG25:EA66,DV24,FALSE))","v":{"$error":"#N/A"}},{"$f":"MIN(VLOOKUP(キメラA,DG25:EA66,DW24,FALSE),VLOOKUP(キメラB,DG25:EA66,DW24,FALSE))","v":{"$error":"#N/A"}},{"$f":"MIN(VLOOKUP(キメラA,DG25:EA66,DX24,FALSE),VLOOKUP(キメラB,DG25:EA66,DX24,FALSE))","v":{"$error":"#N/A"}},{"$f":"MIN(VLOOKUP(キメラA,DG25:EA66,DY24,FALSE),VLOOKUP(キメラB,DG25:EA66,DY24,FALSE))","v":{"$error":"#N/A"}},{"$f":"MIN(VLOOKUP(キメラA,DG25:EA66,DZ24,FALSE),VLOOKUP(キメラB,DG25:EA66,DZ24,FALSE))","v":{"$error":"#N/A"}},{"$f":"MIN(VLOOKUP(キメラA,DG25:EA66,EA24,FALSE),VLOOKUP(キメラB,DG25:EA66,EA24,FALSE))","v":{"$error":"#N/A"}},"キメラ忌",{"$f":"MAX(VLOOKUP(キメラA,EB25:EV66,EC24,FALSE),VLOOKUP(キメラB,EB25:EV66,EC24,FALSE))","v":{"$error":"#N/A"}},{"$f":"MAX(VLOOKUP(キメラA,EB25:EV66,ED24,FALSE),VLOOKUP(キメラB,EB25:EV66,ED24,FALSE))","v":{"$error":"#N/A"}},{"$f":"MAX(VLOOKUP(キメラA,EB25:EV66,EE24,FALSE),VLOOKUP(キメラB,EB25:EV66,EE24,FALSE))","v":{"$error":"#N/A"}},{"$f":"MAX(VLOOKUP(キメラA,EB25:EV66,EF24,FALSE),VLOOKUP(キメラB,EB25:EV66,EF24,FALSE))","v":{"$error":"#N/A"}},{"$f":"MAX(VLOOKUP(キメラA,EB25:EV66,EG24,FALSE),VLOOKUP(キメラB,EB25:EV66,EG24,FALSE))","v":{"$error":"#N/A"}},{"$f":"ROUNDDOWN(VLOOKUP(キメラA,EB25:EV66,EH24,FALSE)/2+VLOOKUP(キメラB,EB25:EV66,EH24,FALSE)/2,0)","v":{"$error":"#N/A"}},{"$f":"ROUNDDOWN(VLOOKUP(キメラA,EB25:EV66,EI24,FALSE)/2+VLOOKUP(キメラB,EB25:EV66,EI24,FALSE)/2,0)","v":{"$error":"#N/A"}},{"$f":"ROUNDDOWN(VLOOKUP(キメラA,EB25:EV66,EJ24,FALSE)/2+VLOOKUP(キメラB,EB25:EV66,EJ24,FALSE)/2,0)","v":{"$error":"#N/A"}},{"$f":"ROUNDDOWN(VLOOKUP(キメラA,EB25:EV66,EK24,FALSE)/2+VLOOKUP(キメラB,EB25:EV66,EK24,FALSE)/2,0)","v":{"$error":"#N/A"}},{"$f":"ROUNDDOWN(VLOOKUP(キメラA,EB25:EV66,EL24,FALSE)/2+VLOOKUP(キメラB,EB25:EV66,EL24,FALSE)/2,0)","v":{"$error":"#N/A"}},{"$f":"MIN(VLOOKUP(キメラA,EB25:EV66,EM24,FALSE),VLOOKUP(キメラB,EB25:EV66,EM24,FALSE))","v":{"$error":"#N/A"}},{"$f":"MIN(VLOOKUP(キメラA,EB25:EV66,EN24,FALSE),VLOOKUP(キメラB,EB25:EV66,EN24,FALSE))","v":{"$error":"#N/A"}},{"$f":"MIN(VLOOKUP(キメラA,EB25:EV66,EO24,FALSE),VLOOKUP(キメラB,EB25:EV66,EO24,FALSE))","v":{"$error":"#N/A"}},{"$f":"MIN(VLOOKUP(キメラA,EB25:EV66,EP24,FALSE),VLOOKUP(キメラB,EB25:EV66,EP24,FALSE))","v":{"$error":"#N/A"}},{"$f":"MIN(VLOOKUP(キメラA,EB25:EV66,EQ24,FALSE),VLOOKUP(キメラB,EB25:EV66,EQ24,FALSE))","v":{"$error":"#N/A"}},{"$f":"MIN(VLOOKUP(キメラA,EB25:EV66,ER24,FALSE),VLOOKUP(キメラB,EB25:EV66,ER24,FALSE))","v":{"$error":"#N/A"}},{"$f":"MIN(VLOOKUP(キメラA,EB25:EV66,ES24,FALSE),VLOOKUP(キメラB,EB25:EV66,ES24,FALSE))","v":{"$error":"#N/A"}},{"$f":"MIN(VLOOKUP(キメラA,EB25:EV66,ET24,FALSE),VLOOKUP(キメラB,EB25:EV66,ET24,FALSE))","v":{"$error":"#N/A"}},{"$f":"MIN(VLOOKUP(キメラA,EB25:EV66,EU24,FALSE),VLOOKUP(キメラB,EB25:EV66,EU24,FALSE))","v":{"$error":"#N/A"}},{"$f":"MIN(VLOOKUP(キメラA,EB25:EV66,EV24,FALSE),VLOOKUP(キメラB,EB25:EV66,EV24,FALSE))","v":{"$error":"#N/A"}},"キメラ忌",{"$f":"MAX(VLOOKUP(キメラA,EW25:FQ66,EX24,FALSE),VLOOKUP(キメラB,EW25:FQ66,EX24,FALSE))","v":{"$error":"#N/A"}},{"$f":"MAX(VLOOKUP(キメラA,EW25:FQ66,EY24,FALSE),VLOOKUP(キメラB,EW25:FQ66,EY24,FALSE))","v":{"$error":"#N/A"}},{"$f":"MAX(VLOOKUP(キメラA,EW25:FQ66,EZ24,FALSE),VLOOKUP(キメラB,EW25:FQ66,EZ24,FALSE))","v":{"$error":"#N/A"}},{"$f":"MAX(VLOOKUP(キメラA,EW25:FQ66,FA24,FALSE),VLOOKUP(キメラB,EW25:FQ66,FA24,FALSE))","v":{"$error":"#N/A"}},{"$f":"MAX(VLOOKUP(キメラA,EW25:FQ66,FB24,FALSE),VLOOKUP(キメラB,EW25:FQ66,FB24,FALSE))","v":{"$error":"#N/A"}},{"$f":"ROUNDDOWN(VLOOKUP(キメラA,EW25:FQ66,FC24,FALSE)/2+VLOOKUP(キメラB,EW25:FQ66,FC24,FALSE)/2,0)","v":{"$error":"#N/A"}},{"$f":"ROUNDDOWN(VLOOKUP(キメラA,EW25:FQ66,FD24,FALSE)/2+VLOOKUP(キメラB,EW25:FQ66,FD24,FALSE)/2,0)","v":{"$error":"#N/A"}},{"$f":"ROUNDDOWN(VLOOKUP(キメラA,EW25:FQ66,FE24,FALSE)/2+VLOOKUP(キメラB,EW25:FQ66,FE24,FALSE)/2,0)","v":{"$error":"#N/A"}},{"$f":"ROUNDDOWN(VLOOKUP(キメラA,EW25:FQ66,FF24,FALSE)/2+VLOOKUP(キメラB,EW25:FQ66,FF24,FALSE)/2,0)","v":{"$error":"#N/A"}},{"$f":"ROUNDDOWN(VLOOKUP(キメラA,EW25:FQ66,FG24,FALSE)/2+VLOOKUP(キメラB,EW25:FQ66,FG24,FALSE)/2,0)","v":{"$error":"#N/A"}},{"$f":"MIN(VLOOKUP(キメラA,EW25:FQ66,FH24,FALSE),VLOOKUP(キメラB,EW25:FQ66,FH24,FALSE))","v":{"$error":"#N/A"}},{"$f":"MIN(VLOOKUP(キメラA,EW25:FQ66,FI24,FALSE),VLOOKUP(キメラB,EW25:FQ66,FI24,FALSE))","v":{"$error":"#N/A"}},{"$f":"MIN(VLOOKUP(キメラA,EW25:FQ66,FJ24,FALSE),VLOOKUP(キメラB,EW25:FQ66,FJ24,FALSE))","v":{"$error":"#N/A"}},{"$f":"MIN(VLOOKUP(キメラA,EW25:FQ66,FK24,FALSE),VLOOKUP(キメラB,EW25:FQ66,FK24,FALSE))","v":{"$error":"#N/A"}},{"$f":"MIN(VLOOKUP(キメラA,EW25:FQ66,FL24,FALSE),VLOOKUP(キメラB,EW25:FQ66,FL24,FALSE))","v":{"$error":"#N/A"}},{"$f":"MIN(VLOOKUP(キメラA,EW25:FQ66,FM24,FALSE),VLOOKUP(キメラB,EW25:FQ66,FM24,FALSE))","v":{"$error":"#N/A"}},{"$f":"MIN(VLOOKUP(キメラA,EW25:FQ66,FN24,FALSE),VLOOKUP(キメラB,EW25:FQ66,FN24,FALSE))","v":{"$error":"#N/A"}},{"$f":"MIN(VLOOKUP(キメラA,EW25:FQ66,FO24,FALSE),VLOOKUP(キメラB,EW25:FQ66,FO24,FALSE))","v":{"$error":"#N/A"}},{"$f":"MIN(VLOOKUP(キメラA,EW25:FQ66,FP24,FALSE),VLOOKUP(キメラB,EW25:FQ66,FP24,FALSE))","v":{"$error":"#N/A"}},{"$f":"MIN(VLOOKUP(キメラA,EW25:FQ66,FQ24,FALSE),VLOOKUP(キメラB,EW25:FQ66,FQ24,FALSE))","v":{"$error":"#N/A"}},"キメラ忌",{"$f":"MAX(VLOOKUP(キメラA,FR25:GL66,FS24,FALSE),VLOOKUP(キメラB,FR25:GL66,FS24,FALSE))","v":{"$error":"#N/A"}},{"$f":"MAX(VLOOKUP(キメラA,FR25:GL66,FT24,FALSE),VLOOKUP(キメラB,FR25:GL66,FT24,FALSE))","v":{"$error":"#N/A"}},{"$f":"MAX(VLOOKUP(キメラA,FR25:GL66,FU24,FALSE),VLOOKUP(キメラB,FR25:GL66,FU24,FALSE))","v":{"$error":"#N/A"}},{"$f":"MAX(VLOOKUP(キメラA,FR25:GL66,FV24,FALSE),VLOOKUP(キメラB,FR25:GL66,FV24,FALSE))","v":{"$error":"#N/A"}},{"$f":"MAX(VLOOKUP(キメラA,FR25:GL66,FW24,FALSE),VLOOKUP(キメラB,FR25:GL66,FW24,FALSE))","v":{"$error":"#N/A"}},{"$f":"ROUNDDOWN(VLOOKUP(キメラA,FR25:GL66,FX24,FALSE)/2+VLOOKUP(キメラB,FR25:GL66,FX24,FALSE)/2,0)","v":{"$error":"#N/A"}},{"$f":"ROUNDDOWN(VLOOKUP(キメラA,FR25:GL66,FY24,FALSE)/2+VLOOKUP(キメラB,FR25:GL66,FY24,FALSE)/2,0)","v":{"$error":"#N/A"}},{"$f":"ROUNDDOWN(VLOOKUP(キメラA,FR25:GL66,FZ24,FALSE)/2+VLOOKUP(キメラB,FR25:GL66,FZ24,FALSE)/2,0)","v":{"$error":"#N/A"}},{"$f":"ROUNDDOWN(VLOOKUP(キメラA,FR25:GL66,GA24,FALSE)/2+VLOOKUP(キメラB,FR25:GL66,GA24,FALSE)/2,0)","v":{"$error":"#N/A"}},{"$f":"ROUNDDOWN(VLOOKUP(キメラA,FR25:GL66,GB24,FALSE)/2+VLOOKUP(キメラB,FR25:GL66,GB24,FALSE)/2,0)","v":{"$error":"#N/A"}},{"$f":"MIN(VLOOKUP(キメラA,FR25:GL66,GC24,FALSE),VLOOKUP(キメラB,FR25:GL66,GC24,FALSE))","v":{"$error":"#N/A"}},{"$f":"MIN(VLOOKUP(キメラA,FR25:GL66,GD24,FALSE),VLOOKUP(キメラB,FR25:GL66,GD24,FALSE))","v":{"$error":"#N/A"}},{"$f":"MIN(VLOOKUP(キメラA,FR25:GL66,GE24,FALSE),VLOOKUP(キメラB,FR25:GL66,GE24,FALSE))","v":{"$error":"#N/A"}},{"$f":"MIN(VLOOKUP(キメラA,FR25:GL66,GF24,FALSE),VLOOKUP(キメラB,FR25:GL66,GF24,FALSE))","v":{"$error":"#N/A"}},{"$f":"MIN(VLOOKUP(キメラA,FR25:GL66,GG24,FALSE),VLOOKUP(キメラB,FR25:GL66,GG24,FALSE))","v":{"$error":"#N/A"}},{"$f":"MIN(VLOOKUP(キメラA,FR25:GL66,GH24,FALSE),VLOOKUP(キメラB,FR25:GL66,GH24,FALSE))","v":{"$error":"#N/A"}},{"$f":"MIN(VLOOKUP(キメラA,FR25:GL66,GI24,FALSE),VLOOKUP(キメラB,FR25:GL66,GI24,FALSE))","v":{"$error":"#N/A"}},{"$f":"MIN(VLOOKUP(キメラA,FR25:GL66,GJ24,FALSE),VLOOKUP(キメラB,FR25:GL66,GJ24,FALSE))","v":{"$error":"#N/A"}},{"$f":"MIN(VLOOKUP(キメラA,FR25:GL66,GK24,FALSE),VLOOKUP(キメラB,FR25:GL66,GK24,FALSE))","v":{"$error":"#N/A"}},{"$f":"MIN(VLOOKUP(キメラA,FR25:GL66,GL24,FALSE),VLOOKUP(キメラB,FR25:GL66,GL24,FALSE))","v":{"$error":"#N/A"}},"キメラ忌",{"$f":"MAX(VLOOKUP(キメラA,GM25:HG66,GN24,FALSE),VLOOKUP(キメラB,GM25:HG66,GN24,FALSE))","v":{"$error":"#N/A"}},{"$f":"MAX(VLOOKUP(キメラA,GM25:HG66,GO24,FALSE),VLOOKUP(キメラB,GM25:HG66,GO24,FALSE))","v":{"$error":"#N/A"}},{"$f":"MAX(VLOOKUP(キメラA,GM25:HG66,GP24,FALSE),VLOOKUP(キメラB,GM25:HG66,GP24,FALSE))","v":{"$error":"#N/A"}},{"$f":"MAX(VLOOKUP(キメラA,GM25:HG66,GQ24,FALSE),VLOOKUP(キメラB,GM25:HG66,GQ24,FALSE))","v":{"$error":"#N/A"}},{"$f":"MAX(VLOOKUP(キメラA,GM25:HG66,GR24,FALSE),VLOOKUP(キメラB,GM25:HG66,GR24,FALSE))","v":{"$error":"#N/A"}},{"$f":"ROUNDDOWN(VLOOKUP(キメラA,GM25:HG66,GS24,FALSE)/2+VLOOKUP(キメラB,GM25:HG66,GS24,FALSE)/2,0)","v":{"$error":"#N/A"}},{"$f":"ROUNDDOWN(VLOOKUP(キメラA,GM25:HG66,GT24,FALSE)/2+VLOOKUP(キメラB,GM25:HG66,GT24,FALSE)/2,0)","v":{"$error":"#N/A"}},{"$f":"ROUNDDOWN(VLOOKUP(キメラA,GM25:HG66,GU24,FALSE)/2+VLOOKUP(キメラB,GM25:HG66,GU24,FALSE)/2,0)","v":{"$error":"#N/A"}},{"$f":"ROUNDDOWN(VLOOKUP(キメラA,GM25:HG66,GV24,FALSE)/2+VLOOKUP(キメラB,GM25:HG66,GV24,FALSE)/2,0)","v":{"$error":"#N/A"}},{"$f":"ROUNDDOWN(VLOOKUP(キメラA,GM25:HG66,GW24,FALSE)/2+VLOOKUP(キメラB,GM25:HG66,GW24,FALSE)/2,0)","v":{"$error":"#N/A"}},{"$f":"MIN(VLOOKUP(キメラA,GM25:HG66,GX24,FALSE),VLOOKUP(キメラB,GM25:HG66,GX24,FALSE))","v":{"$error":"#N/A"}},{"$f":"MIN(VLOOKUP(キメラA,GM25:HG66,GY24,FALSE),VLOOKUP(キメラB,GM25:HG66,GY24,FALSE))","v":{"$error":"#N/A"}},{"$f":"MIN(VLOOKUP(キメラA,GM25:HG66,GZ24,FALSE),VLOOKUP(キメラB,GM25:HG66,GZ24,FALSE))","v":{"$error":"#N/A"}},{"$f":"MIN(VLOOKUP(キメラA,GM25:HG66,HA24,FALSE),VLOOKUP(キメラB,GM25:HG66,HA24,FALSE))","v":{"$error":"#N/A"}},{"$f":"MIN(VLOOKUP(キメラA,GM25:HG66,HB24,FALSE),VLOOKUP(キメラB,GM25:HG66,HB24,FALSE))","v":{"$error":"#N/A"}},{"$f":"MIN(VLOOKUP(キメラA,GM25:HG66,HC24,FALSE),VLOOKUP(キメラB,GM25:HG66,HC24,FALSE))","v":{"$error":"#N/A"}},{"$f":"MIN(VLOOKUP(キメラA,GM25:HG66,HD24,FALSE),VLOOKUP(キメラB,GM25:HG66,HD24,FALSE))","v":{"$error":"#N/A"}},{"$f":"MIN(VLOOKUP(キメラA,GM25:HG66,HE24,FALSE),VLOOKUP(キメラB,GM25:HG66,HE24,FALSE))","v":{"$error":"#N/A"}},{"$f":"MIN(VLOOKUP(キメラA,GM25:HG66,HF24,FALSE),VLOOKUP(キメラB,GM25:HG66,HF24,FALSE))","v":{"$error":"#N/A"}},{"$f":"MIN(VLOOKUP(キメラA,GM25:HG66,HG24,FALSE),VLOOKUP(キメラB,GM25:HG66,HG24,FALSE))","v":{"$error":"#N/A"}}]
[null,15,null,null,null,"キメラ祝",{"$f":"G46","v":{"$error":"#N/A"}},{"$f":"H46","v":{"$error":"#N/A"}},{"$error":"#N/A"},{"$error":"#N/A"},{"$error":"#N/A"},{"$error":"#N/A"},{"$error":"#N/A"},{"$error":"#N/A"},{"$error":"#N/A"},{"$error":"#N/A"},{"$error":"#N/A"},{"$error":"#N/A"},{"$error":"#N/A"},{"$error":"#N/A"},{"$error":"#N/A"},{"$error":"#N/A"},{"$error":"#N/A"},{"$error":"#N/A"},{"$error":"#N/A"},{"$error":"#N/A"},"キメラ祝",{"$f":"AB46","v":{"$error":"#N/A"}},{"$f":"AC46","v":{"$error":"#N/A"}},{"$error":"#N/A"},{"$error":"#N/A"},{"$error":"#N/A"},{"$error":"#N/A"},{"$error":"#N/A"},{"$error":"#N/A"},{"$error":"#N/A"},{"$error":"#N/A"},{"$error":"#N/A"},{"$error":"#N/A"},{"$error":"#N/A"},{"$error":"#N/A"},{"$error":"#N/A"},{"$error":"#N/A"},{"$error":"#N/A"},{"$error":"#N/A"},{"$error":"#N/A"},{"$error":"#N/A"},"キメラ祝",{"$f":"AW46","v":{"$error":"#N/A"}},{"$f":"AX46","v":{"$error":"#N/A"}},{"$error":"#N/A"},{"$error":"#N/A"},{"$error":"#N/A"},{"$error":"#N/A"},{"$error":"#N/A"},{"$error":"#N/A"},{"$error":"#N/A"},{"$error":"#N/A"},{"$error":"#N/A"},{"$error":"#N/A"},{"$error":"#N/A"},{"$error":"#N/A"},{"$error":"#N/A"},{"$error":"#N/A"},{"$error":"#N/A"},{"$error":"#N/A"},{"$error":"#N/A"},{"$error":"#N/A"},"キメラ祝",{"$f":"BR46","v":{"$error":"#N/A"}},{"$f":"BS46","v":{"$error":"#N/A"}},{"$error":"#N/A"},{"$error":"#N/A"},{"$error":"#N/A"},{"$error":"#N/A"},{"$error":"#N/A"},{"$error":"#N/A"},{"$error":"#N/A"},{"$error":"#N/A"},{"$error":"#N/A"},{"$error":"#N/A"},{"$error":"#N/A"},{"$error":"#N/A"},{"$error":"#N/A"},{"$error":"#N/A"},{"$error":"#N/A"},{"$error":"#N/A"},{"$error":"#N/A"},{"$error":"#N/A"},"キメラ祝",{"$f":"CM46","v":{"$error":"#VALUE!"}},{"$f":"CN46","v":0},0,0,0,0,0,0,0,0,0,0,0,0,0,0,0,0,0,0,"キメラ祝",{"$f":"DH46","v":{"$error":"#N/A"}},{"$f":"DI46","v":{"$error":"#N/A"}},{"$error":"#N/A"},{"$error":"#N/A"},{"$error":"#N/A"},{"$error":"#N/A"},{"$error":"#N/A"},{"$error":"#N/A"},{"$error":"#N/A"},{"$error":"#N/A"},{"$error":"#N/A"},{"$error":"#N/A"},{"$error":"#N/A"},{"$error":"#N/A"},{"$error":"#N/A"},{"$error":"#N/A"},{"$error":"#N/A"},{"$error":"#N/A"},{"$error":"#N/A"},{"$error":"#N/A"},"キメラ祝",{"$f":"EC46","v":{"$error":"#N/A"}},{"$f":"ED46","v":{"$error":"#N/A"}},{"$error":"#N/A"},{"$error":"#N/A"},{"$error":"#N/A"},{"$error":"#N/A"},{"$error":"#N/A"},{"$error":"#N/A"},{"$error":"#N/A"},{"$error":"#N/A"},{"$error":"#N/A"},{"$error":"#N/A"},{"$error":"#N/A"},{"$error":"#N/A"},{"$error":"#N/A"},{"$error":"#N/A"},{"$error":"#N/A"},{"$error":"#N/A"},{"$error":"#N/A"},{"$error":"#N/A"},"キメラ祝",{"$f":"EX46","v":{"$error":"#N/A"}},{"$f":"EY46","v":{"$error":"#N/A"}},{"$error":"#N/A"},{"$error":"#N/A"},{"$error":"#N/A"},{"$error":"#N/A"},{"$error":"#N/A"},{"$error":"#N/A"},{"$error":"#N/A"},{"$error":"#N/A"},{"$error":"#N/A"},{"$error":"#N/A"},{"$error":"#N/A"},{"$error":"#N/A"},{"$error":"#N/A"},{"$error":"#N/A"},{"$error":"#N/A"},{"$error":"#N/A"},{"$error":"#N/A"},{"$error":"#N/A"},"キメラ祝",{"$f":"FS46","v":{"$error":"#N/A"}},{"$f":"FT46","v":{"$error":"#N/A"}},{"$error":"#N/A"},{"$error":"#N/A"},{"$error":"#N/A"},{"$error":"#N/A"},{"$error":"#N/A"},{"$error":"#N/A"},{"$error":"#N/A"},{"$error":"#N/A"},{"$error":"#N/A"},{"$error":"#N/A"},{"$error":"#N/A"},{"$error":"#N/A"},{"$error":"#N/A"},{"$error":"#N/A"},{"$error":"#N/A"},{"$error":"#N/A"},{"$error":"#N/A"},{"$error":"#N/A"},"キメラ祝",{"$f":"GN46","v":{"$error":"#N/A"}},{"$f":"GO46","v":{"$error":"#N/A"}},{"$error":"#N/A"},{"$error":"#N/A"},{"$error":"#N/A"},{"$error":"#N/A"},{"$error":"#N/A"},{"$error":"#N/A"},{"$error":"#N/A"},{"$error":"#N/A"},{"$error":"#N/A"},{"$error":"#N/A"},{"$error":"#N/A"},{"$error":"#N/A"},{"$error":"#N/A"},{"$error":"#N/A"},{"$error":"#N/A"},{"$error":"#N/A"},{"$error":"#N/A"},{"$error":"#N/A"}]
[null,16,null,null,null,null,1,null,null,null,null,null,null,null,null,null,null,null,null,null,null,null,null,null,null,null,null,2,null,null,null,null,null,null,null,null,null,null,null,null,null,null,null,null,null,null,null,null,3,null,null,null,null,null,null,null,null,null,null,null,null,null,null,null,null,null,null,null,null,4,null,null,null,null,null,null,null,null,null,null,null,null,null,null,null,null,null,null,null,null,5,null,null,null,null,null,null,null,null,null,null,null,null,null,null,null,null,null,null,null,null,6,null,null,null,null,null,null,null,null,null,null,null,null,null,null,null,null,null,null,null,null,7,null,null,null,null,null,null,null,null,null,null,null,null,null,null,null,null,null,null,null,null,8,null,null,null,null,null,null,null,null,null,null,null,null,null,null,null,null,null,null,null,null,9,null,null,null,null,null,null,null,null,null,null,null,null,null,null,null,null,null,null,null,null,10]
[null,17]
[null,18,null,null,null,"ｸﾗｽ名","近接","射撃","回避","魔術","抵抗","敏捷","物攻","魔攻","耐久","精神","近","遠","炎","氷","水","雷","風","土","光","闇","クラス特典",null,null,null,null,null,null,null,null,null,null,null,"武器名",null,null,"近接","射撃","回避","魔術","抵抗","敏捷","物攻","魔攻","耐久","精神","近","遠","炎","氷","水","雷","風","土","光","闇","種別","射程","属性","ｺｽﾄ","金額","防具名",null,null,"近接","射撃","回避","魔術","抵抗","敏捷","物攻","魔攻","耐久","精神","近","遠","炎","氷","水","雷","風","土","光","闇","金額","アクセサリ名",null,null,"近接","射撃","回避","魔術","抵抗","敏捷","物攻","魔攻","耐久","精神","近","遠","炎","氷","水","雷","風","土","光","闇","金額",4]
[null,19,null,null,null,"FS",2,2,2,2,1,4,4,3,26,7,0,0,0,0,0,0,0,0,0,0,{"$f":"\"命中判定のC値-1 F値+1 & 炎氷耐性+\"&CS!S10*3","v":"命中判定のC値-1 F値+1 & 炎氷耐性+3"},null,null,null,null,null,null,null,null,null,null,null,"--------近接1--------",null,null,null,null,null,null,null,null,null,null,null,null,null,null,null,null,null,null,null,null,null,null,null,null,null,null,0,"一般服",null,null,null,null,null,null,null,null,null,null,null,null,-10,-10,-10,-10,-10,-10,-10,-10,-10,-10,0,"なし",null,null,null,null,null,null,null,null,null,null,null,null,null,null,null,null,null,null,null,null,null,null,0,4]
[null,20,null,null,null,"FC",2,2,1,2,1,2,3,4,35,8,0,0,0,0,0,0,0,0,0,0,{"$f":"\"氷水雷風土耐性+\"&CS!S10*2&\" & 「BS：凍結」無効\"","v":"氷水雷風土耐性+2 & 「BS：凍結」無効"},null,null,null,null,null,null,null,null,null,null,null,"素手",null,null,-2,null,null,null,null,1,16,null,null,null,-7,-7,null,null,null,null,null,null,null,null,"近接","0-1","近",9,0,"防寒具",null,null,null,null,null,null,null,null,null,null,null,null,-3,-3,-3,null,-3,-3,-3,-3,-3,-3,5,"--------アクセ1--------",null,null,null,null,null,null,null,null,null,null,null,null,null,null,null,null,null,null,null,null,null,null,0,5]
[null,21,null,null,null,"AS",2,1,1,2,2,3,4,6,18,10,0,0,0,0,0,0,0,0,0,0,"「サブアクション」と「オートスキル」の代償-1MP (下限値：1MP)",null,null,null,null,null,null,null,null,null,null,null,"スタンダードソード",null,null,null,null,null,null,null,null,20,null,null,null,3,1,null,null,null,null,null,null,null,null,"近接","0-1","近",9,10,"プレートコート",null,null,null,null,null,null,null,-1,null,null,null,null,4,4,1,1,1,1,1,1,null,null,10,"水晶の指輪",null,null,null,null,null,null,null,null,null,null,null,2,null,null,null,null,null,null,null,null,null,null,10,5]
[null,null,null,null,null,"WR",1,2,3,1,2,4,4,4,17,8,0,0,0,0,0,0,0,0,0,0,{"$f":"\"【敏捷】+\"&IF(CS!S10<=5,CS!S10,5)","v":"【敏捷】+1"},null,null,null,null,null,null,null,null,null,null,null,"レイピア",null,null,-1,null,null,null,null,1,24,null,null,null,2,null,null,null,null,null,null,null,null,null,"近接","0-1","近",9,10,"アイアンメイル",null,null,null,null,-1,null,null,-1,null,null,8,null,9,9,2,2,2,2,2,2,null,null,20,"青銅の小手",null,null,null,null,null,null,null,null,null,null,null,null,4,4,null,null,null,null,null,null,null,null,10,6]
[null,null,null,null,null,"BS",1,2,1,2,3,3,4,4,25,7,0,0,0,0,0,0,0,0,0,0,{"$f":"\"【耐久力】+\"&CS!S10*5&\" & 20カウント毎に【HP】を\"&CS!S10*3&\"点回復。\"","v":"【耐久力】+5 & 20カウント毎に【HP】を3点回復。"},null,null,null,null,null,null,null,null,null,null,null,"バスタードソード",null,null,-2,null,-1,null,null,-1,30,null,3,null,3,2,1,1,1,null,null,null,null,null,"近接","0-1","近",10,10,"ウィンドクロス",null,null,null,null,1,null,null,2,null,null,null,null,-5,-5,-5,-5,-5,-5,null,-5,-5,-5,25,"聖印シール",null,null,null,null,null,null,null,null,null,null,null,null,null,null,null,null,null,null,null,null,null,10,10,6]
[null,null,null,null,null,"VC",2,2,1,2,1,4,4,4,26,9,0,0,0,0,0,0,0,0,0,0,{"$f":"\"【精神力】+\"&CS!S10*2&\" & 「BS：脱力(X)」無効\"","v":"【精神力】+2 & 「BS：脱力(X)」無効"},null,null,null,null,null,null,null,null,null,null,null,"鋼鉄剣 -玉鋼-",null,null,null,null,null,null,null,null,22,null,null,null,4,1,null,null,2,null,1,2,null,null,"近接","0-1","近",9,20,"ハードメイル",null,null,null,null,-1,null,null,-1,null,null,12,null,10,10,3,3,3,3,3,3,1,1,30,"防塵ゴーグル",null,null,null,null,null,null,null,null,null,null,null,null,null,null,null,null,null,null,5,5,null,null,10,7]
[null,null,null,null,null,"TE",2,1,1,2,2,2,4,4,30,8,0,0,0,0,0,0,0,0,0,0,{"$f":"\"「種別：支」のｽｷﾙの代償-1MP & 炎水風土属性の耐性+\"&CS!S10*3","v":"「種別：支」のｽｷﾙの代償-1MP & 炎水風土属性の耐性+3"},null,null,null,null,null,null,null,null,null,null,null,"ブレードシールド",null,null,-1,null,-1,null,-1,null,23,null,3,null,4,4,2,2,1,1,null,3,null,null,"近接","0-1","近",10,25,"マジックインバネス",null,null,null,null,null,null,1,null,null,null,null,2,5,5,null,2,2,null,3,3,2,2,40,"防災頭巾",null,null,null,null,null,null,null,null,null,null,null,null,null,null,10,null,null,null,null,null,null,null,10,7]
[null,null,null,null,null,"TM",2,2,2,1,3,4,4,4,20,11,0,0,0,0,0,0,0,0,0,0,"アイテムコスト-１ & バステを1D6を振って6が出たら無効にする。",null,null,null,null,null,null,null,null,null,null,null,"マジックシールド",null,null,null,null,null,null,1,null,12,3,3,null,7,7,4,4,4,4,4,4,4,4,"近接","0-1","近",10,35,"防弾チョッキ",null,null,null,null,null,null,null,-2,null,null,10,null,9,17,2,2,2,2,2,2,1,1,45,"手袋カイロ",null,null,null,null,null,null,null,null,null,null,null,null,null,null,null,10,null,null,null,null,null,null,10,8]
[null,null,null,null,null,"EE",2,2,1,1,2,3,5,5,31,8,0,0,0,0,0,0,0,0,0,0,"「BS：麻痺」無効。 1セッションに1回判定を振り直しできる。",null,null,null,null,null,null,null,null,null,null,null,"高周波ブレード",null,null,null,null,null,null,-1,null,26,null,null,null,4,3,4,null,null,null,3,null,null,null,"近接","0-1","風",9,40,"カーボンスーツ",null,null,null,null,null,null,null,null,null,null,null,null,11,10,2,1,null,null,2,2,null,null,50,"ニーサポーター",null,null,null,null,null,null,null,null,null,null,3,null,null,null,null,null,null,null,null,null,null,null,10,8]
[null,null,null,null,null,"AB",3,3,1,2,0,3,7,4,23,9,0,0,0,0,0,0,0,0,0,0,{"$f":"\"「BS：封印」無効。【耐久力】+\"&CS!S10*3&\" & 【精神力】+\"&CS!S10","v":"「BS：封印」無効。【耐久力】+3 & 【精神力】+1"},null,null,null,null,null,null,null,null,null,null,null,"パワードナックル",null,null,-1,null,null,null,null,1,30,null,null,null,-3,-3,null,null,null,null,null,null,null,null,"近接","0-1","近",9,45,"シノビスーツ",null,null,null,null,2,null,null,2,null,null,null,null,null,null,3,3,3,3,3,3,null,null,70,"サングラス",null,null,null,null,null,null,null,null,null,null,null,null,null,null,null,null,null,null,null,null,10,null,10,9]
[null,null,null,null,null,"BC",1,1,3,1,3,3,8,8,30,9,0,0,0,0,0,0,0,0,0,0,{"$f":"\"行動順決定時、【敏捷】+\"&10+CS!S10&\" & ｶｳﾝﾄ開始時、後ろのｶｳﾝﾄに配置可能。\"","v":"行動順決定時、【敏捷】+11 & ｶｳﾝﾄ開始時、後ろのｶｳﾝﾄに配置可能。"},null,null,null,null,null,null,null,null,null,null,null,"紫電",null,null,null,null,1,null,null,1,27,null,null,null,-5,-10,null,null,null,8,null,-8,null,null,"近接","0-1","雷",9,65,"マジックプロテクター",null,null,null,null,null,2,null,null,null,null,null,6,3,3,9,9,9,9,9,9,9,9,85,"ミニ避雷針",null,null,null,null,null,null,null,null,null,null,null,null,null,null,null,null,null,10,null,null,null,null,10,9]
[null,null,null,null,null,"PD",1,1,3,1,3,2,3,3,24,12,0,0,0,0,0,0,0,0,0,0,{"$f":"\"〈近〉〈遠〉耐性+\"&CS!S10*2&\" & 「サブアクション」のスキルの射程上限に+1する。\"","v":"〈近〉〈遠〉耐性+2 & 「サブアクション」のスキルの射程上限に+1する。"},null,null,null,null,null,null,null,null,null,null,null,"ウィンドブーメラン",null,null,1,null,null,null,null,1,26,null,null,null,3,1,1,1,null,2,6,null,null,null,"近接","0-2","風",10,90,"エナジーシャツ",null,null,null,null,null,null,null,null,5,null,25,null,15,15,2,2,2,2,2,2,null,null,120,"エアーケープ",null,null,null,null,null,null,null,null,null,null,null,null,null,null,null,2,2,3,3,null,null,null,10,10]
[null,null,null,null,null,"AG",2,2,2,1,1,3,3,3,38,5,0,0,0,0,0,0,0,0,0,0,"「ﾒｲﾝｱｸｼｮﾝ」の代償-1MP(下限：1) 「ｽﾀｰﾄ」のｺｽﾄ-1(下限:2)",null,null,null,null,null,null,null,null,null,null,null,"ドラゴンズブレード",null,null,null,null,null,null,1,2,36,null,null,null,4,2,6,null,6,4,3,3,null,null,"近接","0-1","近",9,120,"ドラゴンアーマー",null,null,null,null,-1,null,null,-2,null,null,null,null,24,22,8,10,2,8,7,1,4,4,160,"ブラッドストーン",null,null,null,null,null,null,null,null,null,null,null,null,null,null,null,null,null,null,null,null,null,null,10,10]
[null,null,null,null,null,"EB",3,0,2,2,1,3,2,4,28,8,0,0,0,0,0,0,0,0,0,0,"「BS：KB(X)」を受ける時1D10を振り、出目が7以上なら無効にする。",null,null,null,null,null,null,null,null,null,null,null,"--------近接2--------",null,null,null,null,null,null,null,null,null,null,null,null,null,null,null,null,null,null,null,null,null,null,null,null,null,null,0,"パワードスーツ",null,null,null,null,null,null,null,-3,3,null,50,null,24,24,6,4,5,5,6,6,5,5,200,"アズロマラカイト",null,null,null,null,null,null,null,null,null,null,null,null,null,null,null,null,null,null,null,null,null,null,10,11]
[null,null,null,null,null,"OK",2,2,2,2,2,2,3,3,25,10,0,0,0,0,0,0,0,0,0,0,{"$f":"\"感情使用時、HP+[(強度×5)+\"&CS!S10*5&\"] MP+[強度]\"","v":"感情使用時、HP+[(強度×5)+5] MP+[強度]"},null,null,null,null,null,null,null,null,null,null,null,"ヘヴィアックス",null,null,-2,null,null,null,null,null,33,null,null,null,3,3,null,null,null,null,null,null,null,null,"近接","0-1","近",11,10,"チェインフード",null,null,null,null,null,null,null,null,null,null,null,null,2,2,null,null,null,null,null,null,null,null,10,"カーネリアン",null,null,null,null,null,null,null,null,null,null,null,null,null,null,null,null,null,null,null,null,null,null,10,11]
[null,null,null,null,null,"WT",1,2,2,3,1,3,7,7,31,8,0,0,0,0,0,0,0,0,0,0,"12Cまでﾀﾞﾒｰｼﾞ受けない。 命中C値+1 & 回避C値-1(下限値16)",null,null,null,null,null,null,null,null,null,null,null,"ショートソード",null,null,null,null,null,null,null,2,11,null,null,null,1,1,null,null,null,null,null,null,null,null,"近接","0-1","近",9,10,"ハーフアーマー",null,null,null,null,null,null,null,1,null,null,null,null,3,-2,null,null,null,null,null,null,null,null,20,"ソーダライト",null,null,null,null,null,null,null,null,null,null,null,null,null,null,null,null,null,null,null,null,null,null,10,12]
[null,null,null,null,null,"YM",2,2,1,2,2,3,2,2,27,9,0,0,0,0,0,0,0,0,0,0,{"$f":"\"光闇耐性+\"&CS!S10*2&\" & 常時F値-1(下限値4)\"","v":"光闇耐性+2 & 常時F値-1(下限値4)"},null,null,null,null,null,null,null,null,null,null,null,"アイアンシックル",null,null,null,null,-1,null,null,null,27,null,null,null,-3,-3,-3,-3,-3,-3,-3,-3,-3,-3,"近接","0-1","近",10,20,"スペルローブ",null,null,null,null,null,null,null,null,null,null,null,null,3,3,null,null,null,null,null,null,7,7,20,"アマゾナイト",null,null,null,null,null,null,null,null,null,null,null,null,null,null,null,null,null,null,null,null,null,null,10,12]
[null,null,null,null,null,"TD",1,2,2,3,1,4,3,4,24,10,0,0,0,0,0,0,0,0,0,0,"回避判定のC値-1(下限値16)",null,null,null,null,null,null,null,null,null,null,null,"ロングソード",null,null,-1,null,null,null,null,-1,35,null,null,null,6,null,1,1,1,null,null,null,null,null,"近接","0-2","近",11,25,"リングメイル",null,null,null,null,-1,null,null,-1,null,null,null,null,14,14,3,2,1,1,1,1,null,null,30,"レッドメノウ",null,null,null,null,null,null,null,null,2,null,null,null,null,null,null,null,null,null,null,null,null,null,10,13]
[null,null,null,null,null,"CR",2,2,1,2,1,3,4,4,20,8,0,0,0,0,0,0,0,0,0,0,{"$f":"\"「BS：呪い」「BS：疲労」無効 & 〈炎〉～〈闇〉耐性+\"&CS!S10+2","v":"「BS：呪い」「BS：疲労」無効 & 〈炎〉～〈闇〉耐性+3"},null,null,null,null,null,null,null,null,null,null,null,"鉄槌",null,null,-1,null,-1,null,null,-1,36,null,null,null,3,3,1,1,1,1,1,1,null,null,"近接","0-1","近",12,35,"フェアリーローブ",null,null,null,null,null,null,1,null,null,null,null,3,3,3,null,null,null,null,null,null,null,null,30,"カイヤナイト",null,null,null,null,null,null,null,null,null,2,null,null,null,null,null,null,null,null,null,null,null,null,10,14]
[null,null,null,null,null,"MV",1,2,1,2,3,5,1,1,17,11,0,0,0,0,0,0,0,0,0,0,{"$f":"\"BS付与するとき、代わりに\"&CS!S10+8&\"点の〈無〉属性ﾀﾞﾒｰｼﾞを与えてもよい。\"","v":"BS付与するとき、代わりに9点の〈無〉属性ﾀﾞﾒｰｼﾞを与えてもよい。"},null,null,null,null,null,null,null,null,null,null,null,"マン・ゴーシュ",null,null,null,null,1,null,null,1,20,null,null,null,8,null,-2,-2,-2,null,null,null,null,null,"近接","0-1","近",10,35,"ヘヴィメイル",null,null,null,null,-2,null,null,-2,null,null,15,null,14,16,4,4,4,3,3,3,2,2,35,"フェザーブーツ",null,null,null,null,null,null,null,1,null,null,null,null,null,null,null,null,null,null,null,null,null,null,10,15]
[null,null,null,null,null,"TA",2,2,3,2,0,2,4,3,20,8,0,0,0,0,0,0,0,0,0,0,"ｻﾌﾞｱｸｼｮﾝでｱｲﾃﾑを使用した場合でも、ｻﾌﾞｱｸｼｮﾝのｽｷﾙ使用可。",null,null,null,null,null,null,null,null,null,null,null,"業物：凍河",null,null,null,null,null,null,null,null,28,null,null,null,2,2,-14,14,6,null,null,null,null,null,"近接","0-1","氷",10,50,"マジカルコート",null,null,null,null,null,null,null,null,null,null,null,null,8,6,4,6,5,3,3,4,3,2,40,"スプリングブーツ",null,null,null,null,null,null,null,null,null,null,null,null,null,null,null,null,null,null,null,null,null,null,10,16]
[null,null,null,null,null,"LS",1,3,1,2,1,2,5,3,29,7,0,0,0,0,0,0,0,0,0,0,"自身の攻撃前に1D10を振り、出目が3か4なら攻撃対象の全耐性0。",null,null,null,null,null,null,null,null,null,null,null,"業物：漆黒",null,null,null,null,null,null,null,null,28,null,null,null,2,2,1,1,1,1,1,1,-14,14,"近接","0-1","闇",10,50,"ラバーメイル",null,null,null,null,null,null,null,-1,null,null,8,null,13,13,3,3,3,17,2,2,7,3,50,"--------アクセ2--------",null,null,null,null,null,null,null,null,null,null,null,null,null,null,null,null,null,null,null,null,null,null,0,17]
[null,null,null,null,null,"BR",2,0,2,2,2,4,7,7,23,10,0,0,0,0,0,0,0,0,0,0,{"$f":"\"「射程：0-1」の範囲内の対象から受けるダメージ-\"&CL*3+10","v":"「射程：0-1」の範囲内の対象から受けるダメージ-13"},null,null,null,null,null,null,null,null,null,null,null,"アゾット剣",null,null,null,null,null,1,1,1,23,10,null,null,null,null,2,2,2,2,2,2,3,3,"近接","0-1","近",9,60,"バトルフォーム",null,null,1,null,null,null,null,null,3,null,null,null,9,9,-2,1,1,1,-3,1,null,null,50,"マグマーナ",null,null,null,null,null,null,null,null,null,null,null,null,null,null,3,null,null,null,null,null,null,null,10,18]
[null,null,null,null,null,"SN",2,2,2,2,0,3,5,5,15,12,0,0,0,0,0,0,0,0,0,0,"攻撃を回避したとき、【MP】を1D6点回復する。",null,null,null,null,null,null,null,null,null,null,null,"スターセイバー",null,null,null,null,null,null,null,null,32,null,null,null,3,3,null,null,null,null,null,null,12,12,"近接","0-1","光",9,75,"カモフラージュセット",null,null,null,1,null,null,null,null,2,null,3,null,10,10,1,2,2,2,2,2,null,null,60,"ブリザリア",null,null,null,null,null,null,null,null,null,null,null,null,null,null,null,3,null,null,null,null,null,null,10,19]
[null,null,null,null,null,"CP",2,1,1,2,2,1,4,4,14,14,0,0,0,0,0,0,0,0,0,0,"20の倍数ｶｳﾝﾄ終了時、あなたのいるﾏｽに「ﾄﾞｰﾙ」を1体配置する。",null,null,null,null,null,null,null,null,null,null,null,"フレアアックス",null,null,null,null,null,null,null,-2,40,null,5,null,5,5,13,2,-5,null,null,null,null,null,"近接","0-1","炎",9,75,"ワイバーンコート",null,null,null,null,null,null,1,null,3,null,null,3,15,12,11,null,4,11,8,8,7,7,70,"ウェーブリス",null,null,null,null,null,null,null,null,null,null,null,null,null,null,null,null,3,null,null,null,null,null,10,20]
[null,null,null,null,null,"SA",2,2,2,1,2,3,5,3,19,9,0,0,0,0,0,0,0,0,0,0,"10の倍数Cごとに、【MP】をX点回復。X=[現C/10]",null,null,null,null,null,null,null,null,null,null,null,"大業物：皆中",null,null,3,null,null,null,null,null,35,null,null,null,4,4,null,null,null,null,null,null,null,null,"近接","0-1","近",9,100,"ホワイトナイトコート",null,null,null,null,null,null,1,null,null,4,6,null,12,15,null,14,8,6,7,9,5,10,70,"スパーキー",null,null,null,null,null,null,null,null,null,null,null,null,null,null,null,null,null,3,null,null,null,null,10,21]
[null,null,null,null,null,"FM",0,0,3,3,3,5,0,10,0,15,0,0,0,0,0,0,0,0,0,0,{"$f":"\"【耐久力】-\"&(CL+1)*10&\" 感情強度合計値-2\"","v":"【耐久力】-20 感情強度合計値-2"},null,null,null,null,null,null,null,null,null,null,null,"--------近接3--------",null,null,null,null,null,null,null,null,null,null,null,null,null,null,null,null,null,null,null,null,null,null,null,null,null,null,0,"ブラックヴェーラー",null,null,null,null,1,null,1,null,2,2,4,6,8,8,-8,6,6,null,5,5,-7,7,80,"ストムルム",null,null,null,null,null,null,null,null,null,null,null,null,null,null,null,null,null,null,3,null,null,null,10,22]
[null,null,null,null,null,"BD",2,0,2,2,3,2,5,5,18,10,0,0,0,0,0,0,0,0,0,0,"5の倍数ｶｳﾝﾄ開始時、4MP ｺｽﾄ0で[ﾊﾞﾘｱ状態]の付与,解除可能。",null,null,null,null,null,null,null,null,null,null,null,"グランドハンマー",null,null,null,null,-1,null,null,-5,38,null,8,null,6,6,null,null,null,null,3,3,null,null,"近接","0-1","土",12,40,"ウェイブメイル",null,null,null,null,1,null,null,null,null,null,10,null,10,10,3,4,9,2,4,5,null,null,80,"マッドネスト",null,null,null,null,null,null,null,null,null,null,null,null,null,null,null,null,null,null,null,3,null,null,10,23]
[null,null,null,null,null,"ER",2,2,1,2,1,4,6,6,27,8,0,0,0,0,0,0,0,0,0,0,"幻獣が存在する間、判定のC値-1、F値+3。(C値下限16 F値上限9)",null,null,null,null,null,null,null,null,null,null,null,"メタルクロー",null,null,null,null,null,null,null,4,21,null,null,null,10,null,null,null,null,null,null,null,null,null,"近接","0-1","近",10,40,null,null,null,null,null,null,null,null,null,null,null,null,null,null,null,null,null,null,null,null,null,null,null,null,"シャイネア",null,null,null,null,null,null,null,null,null,null,null,null,null,null,null,null,null,null,null,null,3,null,10]
[null,null,null,null,null,"PP",1,2,1,2,3,3,4,7,20,12,0,0,0,0,0,0,0,0,0,0,"「BS：怯み(X)」のXに-1(下限値：1) 「BS：毒(X)」無効。",null,null,null,null,null,null,null,null,null,null,null,"バトルアンブレラ",null,null,null,null,null,null,null,-1,29,null,null,null,3,null,null,null,null,null,null,null,null,null,"近接","0-1","近",10,45,null,null,null,null,null,null,null,null,null,null,null,null,null,null,null,null,null,null,null,null,null,null,null,null,"シェイドゥム",null,null,null,null,null,null,null,null,null,null,null,null,null,null,null,null,null,null,null,null,null,3,10]
[null,null,null,null,null,"AW",2,2,2,2,2,4,5,5,8,8,0,0,0,0,0,0,0,0,0,0,{"$f":"\"1C開始～13C終了間MP代償無視。 & 〈炎〉〈雷〉〈闇〉耐性+\"&CL*3","v":"1C開始～13C終了間MP代償無視。 & 〈炎〉〈雷〉〈闇〉耐性+3"},null,null,null,null,null,null,null,null,null,null,null,"モーニングスター",null,null,null,null,null,null,null,null,28,null,null,null,7,8,1,1,1,1,1,1,3,12,"近接","0-2","光",10,60,null,null,null,null,null,null,null,null,null,null,null,null,null,null,null,null,null,null,null,null,null,null,null,null,"重力石",null,null,1,null,null,null,null,null,null,null,null,null,-4,-4,null,null,null,null,null,null,null,null,20]
[null,null,null,null,null,"WP",1,2,2,2,2,3,5,6,27,7,0,0,0,0,0,0,0,0,0,0,"現在のカウントが偶数の場合、全判定の達成値+1",null,null,null,null,null,null,null,null,null,null,null,"魔断チェーンソー",null,null,null,null,null,null,null,null,40,null,null,null,2,null,null,null,null,null,null,null,null,null,"近接","0-1","近",9,65,null,null,null,null,null,null,null,null,null,null,null,null,null,null,null,null,null,null,null,null,null,null,null,null,"ポインター",null,null,null,1,null,null,null,null,null,null,null,null,-4,-4,null,null,null,null,null,null,null,null,20]
[null,null,null,null,null,"IA",3,2,2,0,2,4,5,3,30,7,0,0,0,0,0,0,0,0,0,0,{"$f":"\"ｽｷﾙによって武器変更される時、【HP】+\"&ROUNDDOWN(CS!AI41/7,0) &\" 【MP】+\"&2","v":"ｽｷﾙによって武器変更される時、【HP】+19 【MP】+2"},null,null,null,null,null,null,null,null,null,null,null,"スパークスピア",null,null,-1,null,null,null,null,2,40,null,null,null,6,4,2,2,2,13,null,-7,null,null,"近接","0-1","雷",11,70,null,null,null,null,null,null,null,null,null,null,null,null,null,null,null,null,null,null,null,null,null,null,null,null,"バトルメガネ",null,null,null,null,1,null,null,null,null,null,null,null,-4,-4,null,null,null,null,null,null,null,null,20]
[null,null,null,null,null,"VM",1,1,2,3,2,2,3,7,5,13,0,0,0,0,0,0,0,0,0,0,"「種別：回」のｽｷﾙ効果で自身のHPが回復したとき、1ﾏｽ移動可能",null,null,null,null,null,null,null,null,null,null,null,"サウザンドテイル",null,null,1,null,null,null,null,2,27,null,6,null,3,2,null,null,null,null,null,null,null,null,"近接","0-1","近",10,75,null,null,null,null,null,null,null,null,null,null,null,null,null,null,null,null,null,null,null,null,null,null,null,null,"高等魔術書",null,null,null,null,null,1,null,null,null,null,null,null,-4,-4,null,null,null,null,null,null,null,null,20]
[null,null,null,null,null,"SF",2,2,1,2,1,1,7,7,32,10,0,0,0,0,0,0,0,0,0,0,"1ｾｯｼｮﾝ1回、あなたへのBS付与を無効にする。",null,null,null,null,null,null,null,null,null,null,null,"ペンタシールド",null,null,null,null,null,null,1,null,23,null,25,null,8,8,9,9,9,9,null,9,null,null,"近接","0-1","近",13,85,null,null,null,null,null,null,null,null,null,null,null,null,null,null,null,null,null,null,null,null,null,null,null,null,"ディバインピース",null,null,null,null,null,null,1,null,null,null,null,null,-4,-4,null,null,null,null,null,null,null,null,20]
[null,null,null,null,null,"DP",2,2,1,2,2,2,6,3,21,9,0,0,0,0,0,0,0,0,0,0,"1戦闘1回、判定達成値に+15する。その後、「BS：眠り」となる。",null,null,null,null,null,null,null,null,null,null,null,"名刀 -桜花-",null,null,1,null,null,null,null,null,38,null,null,null,13,null,2,2,null,null,4,3,null,null,"近接","0-1","近",11,90,null,null,null,null,null,null,null,null,null,null,null,null,null,null,null,null,null,null,null,null,null,null,null,null,"ダイスストラップ",null,null,null,null,null,null,null,null,null,null,null,null,null,null,null,null,null,null,null,null,null,null,20]
[null,null,null,null,null,"DB",2,1,3,2,3,4,4,4,23,9,0,0,0,0,0,0,0,0,0,0,"自身と同ﾏｽｷｬﾗが攻撃Dを与えた場合、【HP】+[与D/10](↓)",null,null,null,null,null,null,null,null,null,null,null,"音速槍",null,null,1,null,null,null,null,2,41,null,null,null,4,2,null,null,null,null,null,null,null,null,"近接","0-1","近",9,100,null,null,null,null,null,null,null,null,null,null,null,null,null,null,null,null,null,null,null,null,null,null,null,null,"陰陽イヤリング",null,null,null,null,null,null,null,null,null,null,null,null,null,null,null,null,null,null,null,null,8,8,20]
[null,null,null,null,null,null,null,null,null,null,null,null,null,null,null,null,null,null,null,null,null,null,null,null,null,null,null,null,null,null,null,null,null,null,null,null,null,null,"スーパーグローブ",null,null,-1,null,null,null,null,6,50,null,15,null,16,2,1,1,1,1,1,1,4,4,"近接","0-1","近",11,120,null,null,null,null,null,null,null,null,null,null,null,null,null,null,null,null,null,null,null,null,null,null,null,null,"ゴムヘルメット",null,null,null,null,null,null,null,null,null,null,null,null,null,null,null,null,null,15,null,null,null,null,20]
[null,null,null,null,null,null,null,null,null,null,null,null,null,null,null,null,null,null,null,null,null,null,null,null,null,null,null,null,null,null,null,null,null,null,null,null,null,null,"EXCALIBUR-C",null,null,1,null,1,null,1,3,36,10,15,10,12,6,5,5,3,3,3,4,4,4,"近接","0-1","光",9,140,null,null,null,null,null,null,null,null,null,null,null,null,null,null,null,null,null,null,null,null,null,null,null,null,"オリヴァイン",null,null,null,null,null,null,null,null,null,null,null,null,null,null,null,null,null,null,null,null,null,null,20]
[null,null,null,null,null,null,null,null,null,null,null,null,null,null,null,null,null,null,null,null,null,null,null,null,null,null,null,null,null,null,null,null,null,null,null,null,null,null,"--------射撃1--------",null,null,null,null,null,null,null,null,null,null,null,null,null,null,null,null,null,null,null,null,null,null,null,null,null,null,0,null,null,null,null,null,null,null,null,null,null,null,null,null,null,null,null,null,null,null,null,null,null,null,null,"四葉ストラップ",null,null,null,null,null,null,null,null,null,null,null,null,null,null,null,1,1,1,2,null,null,null,20]
[null,null,null,null,null,null,null,null,null,null,null,null,null,null,null,null,null,null,null,null,null,null,null,null,null,null,null,null,null,null,null,null,null,null,null,null,null,null,"9mm拳銃",null,null,null,null,null,null,null,1,5,null,null,null,null,null,null,null,null,null,null,null,null,null,"射撃","0-4","遠",9,10,null,null,null,null,null,null,null,null,null,null,null,null,null,null,null,null,null,null,null,null,null,null,null,null,"クリアチョーカー",null,null,null,null,null,null,null,null,null,null,null,null,null,null,null,null,null,null,null,null,15,null,20]
[null,null,null,null,null,null,null,null,null,null,null,null,null,null,null,null,null,null,null,null,null,null,null,null,null,null,null,null,null,null,null,null,null,null,null,null,null,null,"ハードボウ",null,null,null,1,null,null,null,-1,5,null,null,null,1,1,null,null,null,null,null,null,null,null,"射撃","2-4","遠","(3)→6",10,null,null,null,null,null,null,null,null,null,null,null,null,null,null,null,null,null,null,null,null,null,null,null,null,"--------アクセ3--------",null,null,null,null,null,null,null,null,null,null,null,null,null,null,null,null,null,null,null,null,null,null,0]
[null,null,null,null,null,null,null,null,null,null,null,null,null,null,null,null,null,null,null,null,null,null,null,null,null,null,null,null,null,null,null,null,null,null,null,null,null,null,"マグナム",null,null,null,null,null,null,null,1,10,null,null,null,null,null,null,null,null,null,null,null,null,null,"射撃","0-4","遠",10,20,null,null,null,null,null,null,null,null,null,null,null,null,null,null,null,null,null,null,null,null,null,null,null,null,"インカローズ",null,null,null,null,null,null,null,null,null,null,null,null,null,null,null,null,null,null,null,null,null,null,20]
[null,null,null,null,null,null,null,null,null,null,null,null,null,null,null,null,null,null,null,null,null,null,null,null,null,null,null,null,null,null,null,null,null,null,null,null,null,null,"ハードボウ弐式",null,null,null,1,null,null,null,-2,10,null,null,null,null,null,null,null,null,null,null,null,null,null,"射撃","2-4","遠","(3)→6",20,null,null,null,null,null,null,null,null,null,null,null,null,null,null,null,null,null,null,null,null,null,null,null,null,"レピドライト",null,null,null,null,null,null,null,null,null,null,null,null,2,null,null,null,null,null,null,null,null,null,20]
[null,null,null,null,null,null,null,null,null,null,null,null,null,null,null,null,null,null,null,null,null,null,null,null,null,null,null,null,null,null,null,null,null,null,null,null,null,null,"エッジヨーヨー",null,null,null,null,null,null,null,1,16,null,null,null,null,null,null,null,null,null,null,null,null,null,"射撃","0-2","遠",9,25,null,null,null,null,null,null,null,null,null,null,null,null,null,null,null,null,null,null,null,null,null,null,null,null,"アイアングローブ",null,null,null,null,null,null,null,-1,null,null,null,null,8,3,null,null,null,null,3,null,null,null,20]
[null,null,null,null,null,null,null,null,null,null,null,null,null,null,null,null,null,null,null,null,null,null,null,null,null,null,null,null,null,null,null,null,null,null,null,null,null,null,"マジック砲 -MC2-",null,null,null,null,null,null,null,null,15,null,null,null,2,2,null,null,null,null,null,null,null,null,"射撃","3-4","遠",10,35,null,null,null,null,null,null,null,null,null,null,null,null,null,null,null,null,null,null,null,null,null,null,null,null,"アイアンヘルム",null,null,null,null,null,null,null,-1,null,null,null,null,8,null,3,3,null,null,null,3,null,null,20]
[null,null,null,null,null,null,null,null,null,null,null,null,null,null,null,null,null,null,null,null,null,null,null,null,null,null,null,null,null,null,null,null,null,null,null,null,null,null,"Mスーパーボール",null,null,null,null,null,null,null,null,16,null,null,null,1,1,null,null,null,null,null,null,null,null,"射撃","0-2","遠",9,40,null,null,null,null,null,null,null,null,null,null,null,null,null,null,null,null,null,null,null,null,null,null,null,null,"アイアンシューズ",null,null,null,null,null,null,null,-1,null,null,null,null,3,8,null,null,3,3,null,null,null,null,20]
[null,null,null,null,null,null,null,null,null,null,null,null,null,null,null,null,null,null,null,null,null,null,null,null,null,null,null,null,null,null,null,null,null,null,null,null,null,null,"魔法手裏剣",null,null,null,1,null,null,null,1,18,null,null,null,null,null,null,null,null,null,3,null,null,null,"射撃","0-3","風",9,60,null,null,null,null,null,null,null,null,null,null,null,null,null,null,null,null,null,null,null,null,null,null,null,null,"フェザーハット",null,null,null,null,null,null,null,null,null,null,null,null,5,5,null,null,null,5,null,null,null,null,20]
[null,null,null,null,null,null,null,null,null,null,null,null,null,null,null,null,null,null,null,null,null,null,null,null,null,null,null,null,null,null,null,null,null,null,null,null,null,null,"小型電磁砲",null,null,null,1,-1,null,null,-1,24,null,null,null,3,3,1,1,1,-5,null,null,null,null,"射撃","2-3","遠",10,70,null,null,null,null,null,null,null,null,null,null,null,null,null,null,null,null,null,null,null,null,null,null,null,null,"パワーベルト",null,null,null,null,null,null,null,null,2,null,null,null,null,null,null,null,null,null,null,null,null,null,20]
[null,null,null,null,null,null,null,null,null,null,null,null,null,null,null,null,null,null,null,null,null,null,null,null,null,null,null,null,null,null,null,null,null,null,null,null,null,null,"SMG",null,null,null,1,null,null,null,null,21,null,null,null,2,2,null,null,null,null,null,null,null,null,"射撃","0-3","遠",9,80,null,null,null,null,null,null,null,null,null,null,null,null,null,null,null,null,null,null,null,null,null,null,null,null,"マジックジュエル",null,null,null,null,null,null,null,null,null,2,null,null,null,null,null,null,null,null,null,null,null,null,20]
[null,null,null,null,null,null,null,null,null,null,null,null,null,null,null,null,null,null,null,null,null,null,null,null,null,null,null,null,null,null,null,null,null,null,null,null,null,null,"レーザーガン.prot",null,null,null,null,null,null,null,null,37,null,null,null,2,null,null,null,null,null,null,null,null,null,"射撃","2-4","遠",10,125,null,null,null,null,null,null,null,null,null,null,null,null,null,null,null,null,null,null,null,null,null,null,null,null,"暗黒の呪石",null,null,null,null,null,null,null,null,null,null,null,2,3,3,null,null,null,null,null,null,12,null,30]
[null,null,null,null,null,null,null,null,null,null,null,null,null,null,null,null,null,null,null,null,null,null,null,null,null,null,null,null,null,null,null,null,null,null,null,null,null,null,"ロケットランチャー",null,null,null,null,-1,null,-1,-3,48,null,null,null,2,2,2,null,null,null,null,null,null,null,"射撃","2-4","遠",12,160,null,null,null,null,null,null,null,null,null,null,null,null,null,null,null,null,null,null,null,null,null,null,null,null,"光翼の指輪",null,null,null,null,null,null,null,null,null,null,null,2,3,3,null,null,null,null,null,null,null,12,30]
[null,null,null,null,null,null,null,null,null,null,null,null,null,null,null,null,null,null,null,null,null,null,null,null,null,null,null,null,null,null,null,null,null,null,null,null,null,null,"--------射撃2--------",null,null,null,null,null,null,null,null,null,null,null,null,null,null,null,null,null,null,null,null,null,null,null,null,null,null,null,null,null,null,null,null,null,null,null,null,null,null,null,null,null,null,null,null,null,null,null,null,null,null,null,"ヴォルテックス",null,null,null,null,null,null,null,null,null,null,null,2,3,3,null,null,null,null,12,null,null,null,30]
[null,null,null,null,null,null,null,null,null,null,null,null,null,null,null,null,null,null,null,null,null,null,null,null,null,null,null,null,null,null,null,null,null,null,null,null,null,null,"スローイングダガー",null,null,null,null,null,null,null,null,8,null,null,null,null,null,null,null,null,null,null,null,null,null,"射撃","0-2","遠",9,10,null,null,null,null,null,null,null,null,null,null,null,null,null,null,null,null,null,null,null,null,null,null,null,null,"スカイヘルム",null,null,null,null,null,null,null,null,null,null,null,null,8,8,4,null,null,null,null,4,null,null,30]
[null,null,null,null,null,null,null,null,null,null,null,null,null,null,null,null,null,null,null,null,null,null,null,null,null,null,null,null,null,null,null,null,null,null,null,null,null,null,"スリングショット",null,null,null,null,null,null,null,null,13,null,null,null,null,null,null,null,null,null,null,null,null,null,"射撃","0-3","遠","(2)→7",10,null,null,null,null,null,null,null,null,null,null,null,null,null,null,null,null,null,null,null,null,null,null,null,null,"スカイグローブ",null,null,null,null,null,null,null,null,null,null,null,null,8,8,null,4,null,4,null,null,null,null,30]
[null,null,null,null,null,null,null,null,null,null,null,null,null,null,null,null,null,null,null,null,null,null,null,null,null,null,null,null,null,null,null,null,null,null,null,null,null,null,"散弾銃",null,null,null,1,-1,null,null,-2,12,null,null,null,null,null,null,null,null,null,null,null,null,null,"射撃","0-4","遠",10,20,null,null,null,null,null,null,null,null,null,null,null,null,null,null,null,null,null,null,null,null,null,null,null,null,"スカイブーツ",null,null,null,null,null,null,null,null,null,null,null,null,8,8,null,null,4,null,4,null,null,null,30]
[null,null,null,null,null,null,null,null,null,null,null,null,null,null,null,null,null,null,null,null,null,null,null,null,null,null,null,null,null,null,null,null,null,null,null,null,null,null,"チャクラム",null,null,null,null,null,null,null,null,14,null,null,null,null,null,null,null,null,null,null,null,null,null,"射撃","0-3","遠","(2)→7",20,null,null,null,null,null,null,null,null,null,null,null,null,null,null,null,null,null,null,null,null,null,null,null,null,"フェアリーガード",null,null,null,null,null,null,null,null,null,null,null,null,null,null,5,5,5,5,5,5,5,4,40]
[null,null,null,null,null,null,null,null,null,null,null,null,null,null,null,null,null,null,null,null,null,null,null,null,null,null,null,null,null,null,null,null,null,null,null,null,null,null,"ワイヤースタンガン",null,null,null,null,null,null,null,null,14,null,null,null,2,2,null,null,null,3,null,null,null,null,"射撃","0-2","雷",10,25,null,null,null,null,null,null,null,null,null,null,null,null,null,null,null,null,null,null,null,null,null,null,null,null,"レッドアンバー",null,null,null,null,null,null,null,null,null,null,null,null,null,null,8,null,null,null,null,null,null,null,40]
[null,null,null,null,null,null,null,null,null,null,null,null,null,null,null,null,null,null,null,null,null,null,null,null,null,null,null,null,null,null,null,null,null,null,null,null,null,null,"飛苦無",null,null,null,1,null,null,null,null,11,null,null,null,4,null,null,null,null,null,null,null,null,null,"射撃","0-2","遠",9,30,null,null,null,null,null,null,null,null,null,null,null,null,null,null,null,null,null,null,null,null,null,null,null,null,"オニキス",null,null,null,null,null,null,null,null,null,null,null,4,null,null,null,null,null,null,null,null,null,8,40]
[null,null,null,null,null,null,null,null,null,null,null,null,null,null,null,null,null,null,null,null,null,null,null,null,null,null,null,null,null,null,null,null,null,null,null,null,null,null,"四方手裏剣",null,null,null,null,null,null,null,null,17,null,null,null,-3,-3,null,null,null,null,null,null,null,null,"射撃","0-3","遠",9,30,null,null,null,null,null,null,null,null,null,null,null,null,null,null,null,null,null,null,null,null,null,null,null,null,"タンザナイト",null,null,null,null,null,null,null,null,null,null,null,null,null,null,null,null,8,null,null,null,null,null,40]
[null,null,null,null,null,null,null,null,null,null,null,null,null,null,null,null,null,null,null,null,null,null,null,null,null,null,null,null,null,null,null,null,null,null,null,null,null,null,"マジック砲 -MC5-",null,null,null,1,null,null,null,null,8,null,null,null,4,4,null,null,null,null,null,null,null,null,"射撃","0-3","風",10,45,null,null,null,null,null,null,null,null,null,null,null,null,null,null,null,null,null,null,null,null,null,null,null,null,"八卦ブレスレット",null,null,null,null,null,null,null,null,null,null,null,null,5,5,5,null,5,5,5,null,null,null,40]
[null,null,null,null,null,null,null,null,null,null,null,null,null,null,null,null,null,null,null,null,null,null,null,null,null,null,null,null,null,null,null,null,null,null,null,null,null,null,"ハイドロガン",null,null,null,null,null,null,null,-1,20,null,null,null,3,3,14,3,3,-5,null,null,null,null,"射撃","0-3","水",10,60,null,null,null,null,null,null,null,null,null,null,null,null,null,null,null,null,null,null,null,null,null,null,null,null,"--------アクセ4--------",null,null,null,null,null,null,null,null,null,null,null,null,null,null,null,null,null,null,null,null,null,null,0]
[null,null,null,null,null,null,null,null,null,null,null,null,null,null,null,null,null,null,null,null,null,null,null,null,null,null,null,null,null,null,null,null,null,null,null,null,null,null,"スナイパーライフル",null,null,null,1,null,null,null,-3,26,null,null,null,3,3,null,null,null,null,null,null,null,null,"射撃","1-4","遠","(4)→8",70,null,null,null,null,null,null,null,null,null,null,null,null,null,null,null,null,null,null,null,null,null,null,null,null,"タロットストラップ",null,null,null,null,null,null,null,null,null,null,null,null,null,null,2,2,2,2,2,2,null,null,50]
[null,null,null,null,null,null,null,null,null,null,null,null,null,null,null,null,null,null,null,null,null,null,null,null,null,null,null,null,null,null,null,null,null,null,null,null,null,null,"対物ライフル",null,null,null,1,-1,null,null,-3,31,null,null,null,-4,-4,null,null,null,null,null,null,null,null,"射撃","0-4","遠",11,80,null,null,null,null,null,null,null,null,null,null,null,null,null,null,null,null,null,null,null,null,null,null,null,null,"不吉な呪符",null,null,null,null,null,null,null,null,null,10,null,null,null,null,null,null,null,null,null,null,null,12,50]
[null,null,null,null,null,null,null,null,null,null,null,null,null,null,null,null,null,null,null,null,null,null,null,null,null,null,null,null,null,null,null,null,null,null,null,null,null,null,"火炎放射器",null,null,null,null,null,null,null,-2,35,null,null,null,3,3,5,5,null,null,null,null,null,null,"射撃","0-2","炎",11,85,null,null,null,null,null,null,null,null,null,null,null,null,null,null,null,null,null,null,null,null,null,null,null,null,"ローラーシューズ",null,null,null,null,null,null,null,null,null,null,null,null,6,3,null,null,null,null,3,null,null,null,60]
[null,null,null,null,null,null,null,null,null,null,null,null,null,null,null,null,null,null,null,null,null,null,null,null,null,null,null,null,null,null,null,null,null,null,null,null,null,null,"--------魔法1--------",null,null,null,null,null,null,null,null,null,null,null,null,null,null,null,null,null,null,null,null,null,null,null,null,null,null,null,null,null,null,null,null,null,null,null,null,null,null,null,null,null,null,null,null,null,null,null,null,null,null,null,"アームブースター",null,null,1,null,null,null,null,null,null,null,null,null,null,null,null,null,null,null,null,null,null,null,60]
[null,null,null,null,null,null,null,null,null,null,null,null,null,null,null,null,null,null,null,null,null,null,null,null,null,null,null,null,null,null,null,null,null,null,null,null,null,null,"スタッフ",null,null,null,null,null,null,null,null,null,8,null,null,null,null,1,1,1,1,1,1,null,null,"魔法","0-3","遠","(3)→7",10,null,null,null,null,null,null,null,null,null,null,null,null,null,null,null,null,null,null,null,null,null,null,null,null,"ロックコンタクト",null,null,null,1,null,null,null,null,null,null,null,null,null,null,null,null,null,null,null,null,null,null,60]
[null,null,null,null,null,null,null,null,null,null,null,null,null,null,null,null,null,null,null,null,null,null,null,null,null,null,null,null,null,null,null,null,null,null,null,null,null,null,"マジカルワンド",null,null,null,null,null,1,null,null,null,5,null,null,null,null,1,1,1,1,1,1,null,null,"魔法","0-3","遠","(3)→7",10,null,null,null,null,null,null,null,null,null,null,null,null,null,null,null,null,null,null,null,null,null,null,null,null,"フロートギア",null,null,null,null,1,null,null,null,null,null,null,null,null,null,null,null,null,null,null,null,null,null,60]
[null,null,null,null,null,null,null,null,null,null,null,null,null,null,null,null,null,null,null,null,null,null,null,null,null,null,null,null,null,null,null,null,null,null,null,null,null,null,"ファイアロッド",null,null,null,null,null,1,null,null,null,10,null,null,null,null,8,-4,1,1,1,null,null,null,"魔法","0-3","炎","(4)→6",20,null,null,null,null,null,null,null,null,null,null,null,null,null,null,null,null,null,null,null,null,null,null,null,null,"ペンタグラム",null,null,null,null,null,1,null,null,null,null,null,null,null,null,2,null,2,2,2,2,null,null,60]
[null,null,null,null,null,null,null,null,null,null,null,null,null,null,null,null,null,null,null,null,null,null,null,null,null,null,null,null,null,null,null,null,null,null,null,null,null,null,"フリーズロッド",null,null,null,null,null,1,null,null,null,10,null,null,null,null,-4,8,1,1,1,null,null,null,"魔法","0-3","氷","(4)→6",20,null,null,null,null,null,null,null,null,null,null,null,null,null,null,null,null,null,null,null,null,null,null,null,null,"アンチマジック",null,null,null,null,null,null,1,null,null,null,null,null,1,1,null,null,null,null,null,null,3,4,60]
[null,null,null,null,null,null,null,null,null,null,null,null,null,null,null,null,null,null,null,null,null,null,null,null,null,null,null,null,null,null,null,null,null,null,null,null,null,null,"祝福の杖",null,null,null,null,null,null,null,null,null,16,null,4,null,null,3,3,3,3,3,3,null,null,"魔法","0-2","光","(2)→8",35,null,null,null,null,null,null,null,null,null,null,null,null,null,null,null,null,null,null,null,null,null,null,null,null,"タングステンヘルム",null,null,null,null,null,null,null,null,null,null,null,null,10,10,4,2,3,5,2,4,2,2,70]
[null,null,null,null,null,null,null,null,null,null,null,null,null,null,null,null,null,null,null,null,null,null,null,null,null,null,null,null,null,null,null,null,null,null,null,null,null,null,"ガードロッド",null,null,null,null,null,1,null,-2,null,12,null,null,3,3,4,2,3,1,2,2,1,1,"魔法","0-3","遠","(4)→6",40,null,null,null,null,null,null,null,null,null,null,null,null,null,null,null,null,null,null,null,null,null,null,null,null,"太陽の首輪",null,null,null,null,null,null,null,null,7,null,null,null,null,null,14,null,null,null,null,null,null,null,80]
[null,null,null,null,null,null,null,null,null,null,null,null,null,null,null,null,null,null,null,null,null,null,null,null,null,null,null,null,null,null,null,null,null,null,null,null,null,null,"アンプリファー",null,null,null,null,-1,null,null,null,null,21,null,null,1,1,-2,-2,-2,-2,-2,-2,-3,-3,"魔法","0-3","近","(3)→11",50,null,null,null,null,null,null,null,null,null,null,null,null,null,null,null,null,null,null,null,null,null,null,null,null,"満月の首輪",null,null,null,null,null,null,null,null,null,7,null,null,null,null,null,14,null,null,null,null,null,null,80]
[null,null,null,null,null,null,null,null,null,null,null,null,null,null,null,null,null,null,null,null,null,null,null,null,null,null,null,null,null,null,null,null,null,null,null,null,null,null,"天雷杖",null,null,null,null,null,null,null,2,null,16,null,null,null,null,null,null,null,10,null,-5,null,null,"魔法","3-3","雷","(3)→8",60,null,null,null,null,null,null,null,null,null,null,null,null,null,null,null,null,null,null,null,null,null,null,null,null,"流星の首輪",null,null,null,null,null,null,null,4,null,null,null,null,null,null,null,null,null,null,null,null,10,10,80]
[null,null,null,null,null,null,null,null,null,null,null,null,null,null,null,null,null,null,null,null,null,null,null,null,null,null,null,null,null,null,null,null,null,null,null,null,null,null,"WPリング",null,null,null,null,1,1,null,2,null,22,null,null,3,null,1,1,1,1,6,null,null,null,"魔法","0-3","風","(2)→11",75,null,null,null,null,null,null,null,null,null,null,null,null,null,null,null,null,null,null,null,null,null,null,null,null,"竜王の指輪",null,null,null,null,null,null,null,null,null,null,23,null,null,null,null,null,null,null,null,null,null,null,100]
[null,null,null,null,null,null,null,null,null,null,null,null,null,null,null,null,null,null,null,null,null,null,null,null,null,null,null,null,null,null,null,null,null,null,null,null,null,null,"スターティンクル",null,null,null,null,null,1,null,1,null,31,null,3,1,1,2,2,2,2,4,null,7,null,"魔法","0-2","光","(4)→9",85,null,null,null,null,null,null,null,null,null,null,null,null,null,null,null,null,null,null,null,null,null,null,null,null,"大魔女の指輪",null,null,null,null,null,null,null,null,null,null,null,12,null,null,null,null,null,null,null,null,null,null,100]
[null,null,null,null,null,null,null,null,null,null,null,null,null,null,null,null,null,null,null,null,null,null,null,null,null,null,null,null,null,null,null,null,null,null,null,null,null,null,"アーススタッフ",null,null,null,null,null,1,null,null,null,35,null,null,3,1,2,2,2,null,null,5,null,null,"魔法","0-3","土","(5)→9",90,null,null,null,null,null,null,null,null,null,null,null,null,null,null,null,null,null,null,null,null,null,null,null,null,"混沌の呪印",null,null,null,null,null,null,null,null,11,null,null,null,6,6,null,null,null,null,null,null,10,4,120]
[null,null,null,null,null,null,null,null,null,null,null,null,null,null,null,null,null,null,null,null,null,null,null,null,null,null,null,null,null,null,null,null,null,null,null,null,null,null,"ディープロッド",null,null,null,null,1,1,1,null,null,48,null,3,2,2,8,4,8,-10,null,null,null,null,"魔法","0-4","水","(4)→10",130,null,null,null,null,null,null,null,null,null,null,null,null,null,null,null,null,null,null,null,null,null,null,null,null,"ヘキサグラム",null,null,null,null,null,null,null,null,null,11,null,null,null,null,7,5,6,6,5,6,null,null,120]
[null,null,null,null,null,null,null,null,null,null,null,null,null,null,null,null,null,null,null,null,null,null,null,null,null,null,null,null,null,null,null,null,null,null,null,null,null,null,"--------魔法2--------",null,null,null,null,null,null,null,null,null,null,null,null,null,null,null,null,null,null,null,null,null,null,null,null,null,null,null,null,null,null,null,null,null,null,null,null,null,null,null,null,null,null,null,null,null,null,null,null,null,null,null,"レインボーガード",null,null,null,null,null,null,null,null,null,null,null,18,6,6,6,null,6,6,6,6,null,null,150]
[null,null,null,null,null,null,null,null,null,null,null,null,null,null,null,null,null,null,null,null,null,null,null,null,null,null,null,null,null,null,null,null,null,null,null,null,null,null,"マジックグローブ",null,null,null,null,null,null,null,null,null,10,null,null,null,null,null,null,null,null,null,null,null,null,"魔法","0-3","遠","(2)→8",10,null,null,null,null,null,null,null,null,null,null,null,null,null,null,null,null,null,null,null,null,null,null,null,null,"デビルグローブ",null,null,null,null,null,null,null,null,null,null,null,null,8,8,null,null,4,6,null,4,7,null,150]
[null,null,null,null,null,null,null,null,null,null,null,null,null,null,null,null,null,null,null,null,null,null,null,null,null,null,null,null,null,null,null,null,null,null,null,null,null,null,"スペルオーブ",null,null,null,null,null,null,null,null,null,7,null,null,-3,-3,1,1,1,1,1,1,null,null,"魔法","0-3","遠","(3)→6",10,null,null,null,null,null,null,null,null,null,null,null,null,null,null,null,null,null,null,null,null,null,null,null,null,"大いなる加護印",null,null,null,null,null,null,null,null,null,null,null,null,null,null,null,6,null,6,6,null,6,13,150]
[null,null,null,null,null,null,null,null,null,null,null,null,null,null,null,null,null,null,null,null,null,null,null,null,null,null,null,null,null,null,null,null,null,null,null,null,null,null,"サンダーロッド",null,null,null,null,null,1,null,null,null,10,null,null,null,null,null,1,1,8,1,-4,null,null,"魔法","0-3","雷","(4)→6",20,null,null,null,null,null,null,null,null,null,null,null,null,null,null,null,null,null,null,null,null,null,null,null,null,"--------限定アクセ--------",null,null,null,null,null,null,null,null,null,null,null,null,null,null,null,null,null,null,null,null,null,null,0]
[null,null,null,null,null,null,null,null,null,null,null,null,null,null,null,null,null,null,null,null,null,null,null,null,null,null,null,null,null,null,null,null,null,null,null,null,null,null,"ウェイブロッド",null,null,null,null,null,1,null,null,null,10,null,null,null,null,null,1,8,-4,1,1,null,null,"魔法","0-3","水","(4)→6",20,null,null,null,null,null,null,null,null,null,null,null,null,null,null,null,null,null,null,null,null,null,null,null,null,"高性能ZPC",null,null,null,null,null,null,null,null,null,null,null,10,null,null,4,null,4,null,4,4,null,null,50]
[null,null,null,null,null,null,null,null,null,null,null,null,null,null,null,null,null,null,null,null,null,null,null,null,null,null,null,null,null,null,null,null,null,null,null,null,null,null,"ホーリーワンド",null,null,null,null,null,null,1,null,null,10,null,3,2,2,null,null,null,null,null,null,null,null,"魔法","0-2","光","(4)→6",40,null,null,null,null,null,null,null,null,null,null,null,null,null,null,null,null,null,null,null,null,null,null,null,null,"聖なる光輪",null,null,null,null,null,null,2,null,null,null,null,null,9,9,null,null,null,null,null,null,18,null,50]
[null,null,null,null,null,null,null,null,null,null,null,null,null,null,null,null,null,null,null,null,null,null,null,null,null,null,null,null,null,null,null,null,null,null,null,null,null,null,"イービルワンド",null,null,null,null,null,null,null,null,null,18,null,null,null,null,null,null,null,null,null,null,-16,8,"魔法","0-3","闇","(3)→7",40,null,null,null,null,null,null,null,null,null,null,null,null,null,null,null,null,null,null,null,null,null,null,null,null,"漆黒のグローブ",null,null,null,null,null,null,2,null,null,null,null,null,5,5,3,3,3,3,null,null,null,18,50]
[null,null,null,null,null,null,null,null,null,null,null,null,null,null,null,null,null,null,null,null,null,null,null,null,null,null,null,null,null,null,null,null,null,null,null,null,null,null,"ジュエルスタッフ",null,null,null,null,null,2,null,null,null,10,null,null,null,null,null,null,null,null,null,null,null,null,"魔法","0-3","近","(3)→9",55,null,null,null,null,null,null,null,null,null,null,null,null,null,null,null,null,null,null,null,null,null,null,null,null,"フェアリーバングル",null,null,null,null,null,null,null,null,null,null,null,null,null,null,5,5,5,5,5,5,3,3,50]
[null,null,null,null,null,null,null,null,null,null,null,null,null,null,null,null,null,null,null,null,null,null,null,null,null,null,null,null,null,null,null,null,null,null,null,null,null,null,"氷華杖",null,null,null,null,null,null,1,-1,null,19,null,null,2,2,-10,14,6,null,null,null,null,null,"魔法","2-3","氷","(3)→7",60,null,null,null,null,null,null,null,null,null,null,null,null,null,null,null,null,null,null,null,null,null,null,null,null,"ソニックフェザー",null,null,null,null,null,null,null,3,null,null,null,null,2,2,null,null,null,null,16,null,null,null,50]
[null,null,null,null,null,null,null,null,null,null,null,null,null,null,null,null,null,null,null,null,null,null,null,null,null,null,null,null,null,null,null,null,null,null,null,null,null,null,"魔法剣",null,null,null,null,null,null,null,null,15,20,null,null,6,6,2,2,2,2,2,2,null,null,"魔法","0-3","近",12,70,null,null,null,null,null,null,null,null,null,null,null,null,null,null,null,null,null,null,null,null,null,null,null,null,"先祖の竜爪",null,null,null,null,null,null,null,null,null,null,null,null,4,4,4,4,4,4,4,4,4,4,50]
[null,null,null,null,null,null,null,null,null,null,null,null,null,null,null,null,null,null,null,null,null,null,null,null,null,null,null,null,null,null,null,null,null,null,null,null,null,null,"ディバインロッド",null,null,null,null,null,1,2,null,null,17,null,3,3,3,null,null,null,null,null,null,4,16,"魔法","0-2","光","(4)→6",90,null,null,null,null,null,null,null,null,null,null,null,null,null,null,null,null,null,null,null,null,null,null,null,null,"スピアピアス",null,null,null,null,null,null,null,null,null,null,15,null,3,3,null,null,null,null,5,5,null,null,50]
[null,null,null,null,null,null,null,null,null,null,null,null,null,null,null,null,null,null,null,null,null,null,null,null,null,null,null,null,null,null,null,null,null,null,null,null,null,null,"クリスタルロッド",null,null,null,null,null,1,null,null,null,30,null,null,null,null,3,3,3,3,3,3,3,3,"魔法","0-3","遠","(2)→8",90,null,null,null,null,null,null,null,null,null,null,null,null,null,null,null,null,null,null,null,null,null,null,null,null,"紅の宝玉",null,null,null,null,null,null,null,null,null,null,20,null,null,null,null,null,null,null,null,null,null,10,50]
[null,null,null,null,null,null,null,null,null,null,null,null,null,null,null,null,null,null,null,null,null,null,null,null,null,null,null,null,null,null,null,null,null,null,null,null,null,null,"エクリプスデイ",null,null,null,null,null,2,2,null,null,40,null,10,5,5,3,3,3,3,3,3,8,8,"魔法","0-4","※","(4)→8",120,null,null,null,null,null,null,null,null,null,null,null,null,null,null,null,null,null,null,null,null,null,null,null,null,"真なる証",null,null,null,null,null,null,null,null,null,null,null,null,null,null,null,null,null,null,null,null,null,null,50]
[null,null,null,null,null,null,null,null,null,null,null,null,null,null,null,null,null,null,null,null,null,null,null,null,null,null,null,null,null,null,null,null,null,null,null,null,null,null,"--------限定--------",null,null,null,null,null,null,null,null,null,null,null,null,null,null,null,null,null,null,null,null,null,null,null,null,null,null,null,null,null,null,null,null,null,null,null,null,null,null,null,null,null,null,null,null,null,null,null,null,null,null,null,"人造装甲",null,null,null,null,null,null,null,null,null,null,null,null,9,9,5,5,5,5,3,3,3,3,50]
[null,null,null,null,null,null,null,null,null,null,null,null,null,null,null,null,null,null,null,null,null,null,null,null,null,null,null,null,null,null,null,null,null,null,null,null,null,null,"灼炎剣 -焔-",null,null,1,null,null,null,null,null,28,null,null,null,null,null,8,8,-5,null,null,-3,null,null,"近接","0-1","炎",9,60,null,null,null,null,null,null,null,null,null,null,null,null,null,null,null,null,null,null,null,null,null,null,null,null,"デスサイズウェイト",null,null,null,null,null,null,null,null,5,5,null,null,null,null,3,3,3,3,null,null,null,5,50]
[null,null,null,null,null,null,null,null,null,null,null,null,null,null,null,null,null,null,null,null,null,null,null,null,null,null,null,null,null,null,null,null,null,null,null,null,null,null,"アイスサーベル",null,null,null,null,1,null,null,null,30,null,3,null,2,2,-6,12,6,null,null,null,null,null,"近接","0-1","氷",10,60,null,null,null,null,null,null,null,null,null,null,null,null,null,null,null,null,null,null,null,null,null,null,null,null,"神聖神器",null,null,null,null,null,null,null,null,null,null,null,6,null,null,2,2,2,2,2,2,11,11,50]
[null,null,null,null,null,null,null,null,null,null,null,null,null,null,null,null,null,null,null,null,null,null,null,null,null,null,null,null,null,null,null,null,null,null,null,null,null,null,"風魔槍 -鎌鼬-",null,null,null,null,1,null,null,1,34,null,null,null,null,null,null,null,null,null,12,null,null,null,"近接","0-1","風",10,60,null,null,null,null,null,null,null,null,null,null,null,null,null,null,null,null,null,null,null,null,null,null,null,null,"妖懐石",null,null,null,null,null,null,null,null,null,null,null,null,3,3,3,3,3,3,3,3,3,3,50]
[null,null,null,null,null,null,null,null,null,null,null,null,null,null,null,null,null,null,null,null,null,null,null,null,null,null,null,null,null,null,null,null,null,null,null,null,null,null,"電流警棒",null,null,null,null,null,null,null,3,31,null,null,null,-5,-5,5,null,5,null,null,5,null,null,"近接","0-1","雷",9,60,null,null,null,null,null,null,null,null,null,null,null,null,null,null,null,null,null,null,null,null,null,null,null,null,"Fアリスバンド",null,null,null,null,null,null,null,null,null,null,null,null,null,4,-5,3,3,3,3,3,5,null,50]
[null,null,null,null,null,null,null,null,null,null,null,null,null,null,null,null,null,null,null,null,null,null,null,null,null,null,null,null,null,null,null,null,null,null,null,null,null,null,"隕鉄拳",null,null,-1,null,null,null,null,2,32,null,null,null,-5,-5,3,3,null,null,1,3,null,null,"近接","0-1","土",9,60,null,null,null,null,null,null,null,null,null,null,null,null,null,null,null,null,null,null,null,null,null,null,null,null,"複眼ゴーグル",null,null,null,null,1,null,null,null,null,null,null,null,5,5,8,null,null,null,-6,-6,null,null,50]
[null,null,null,null,null,null,null,null,null,null,null,null,null,null,null,null,null,null,null,null,null,null,null,null,null,null,null,null,null,null,null,null,null,null,null,null,null,null,"アシッドウィップ",null,null,2,null,null,null,null,null,28,null,null,null,3,3,null,null,10,null,null,null,null,null,"近接","0-1","水",9,60,null,null,null,null,null,null,null,null,null,null,null,null,null,null,null,null,null,null,null,null,null,null,null,null,"ルーンマスク",null,null,null,null,null,null,null,null,null,null,null,13,11,11,6,null,null,6,null,null,5,5,50]
[null,null,null,null,null,null,null,null,null,null,null,null,null,null,null,null,null,null,null,null,null,null,null,null,null,null,null,null,null,null,null,null,null,null,null,null,null,null,"ミステリーハンマー",null,null,1,null,null,null,null,null,21,null,null,null,null,null,4,4,4,4,4,4,null,null,"近接","0-1","近",8,60,null,null,null,null,null,null,null,null,null,null,null,null,null,null,null,null,null,null,null,null,null,null,null,null,"アクアリング",null,null,null,null,null,null,null,null,null,null,null,7,null,null,7,7,7,-5,5,5,null,null,50]
[null,null,null,null,null,null,null,null,null,null,null,null,null,null,null,null,null,null,null,null,null,null,null,null,null,null,null,null,null,null,null,null,null,null,null,null,null,null,"パワーグローブ",null,null,-1,null,null,null,null,3,37,null,null,null,-6,-6,null,null,null,null,null,null,null,null,"近接","0-1","近",9,60,null,null,null,null,null,null,null,null,null,null,null,null,null,null,null,null,null,null,null,null,null,null,null,null,"マジカルハット",null,null,null,null,null,null,null,null,null,null,null,6,null,null,3,3,3,3,3,3,6,6,50]
[null,null,null,null,null,null,null,null,null,null,null,null,null,null,null,null,null,null,null,null,null,null,null,null,null,null,null,null,null,null,null,null,null,null,null,null,null,null,"ライダーランス",null,null,1,null,null,null,null,-2,38,null,null,null,4,4,null,null,null,null,null,null,null,null,"近接","0-1","近",10,60,null,null,null,null,null,null,null,null,null,null,null,null,null,null,null,null,null,null,null,null,null,null,null,null,"付喪根付",null,null,null,null,null,null,null,null,null,null,null,null,6,6,2,2,2,2,2,2,null,null,50]
[null,null,null,null,null,null,null,null,null,null,null,null,null,null,null,null,null,null,null,null,null,null,null,null,null,null,null,null,null,null,null,null,null,null,null,null,null,null,"バンブースピア",null,null,1,null,1,null,null,2,28,null,null,null,null,null,-17,null,null,null,3,3,3,null,"近接","0-1","土",9,60,null,null,null,null,null,null,null,null,null,null,null,null,null,null,null,null,null,null,null,null,null,null,null,null,"メモリーレリック",null,null,null,null,null,null,null,null,null,null,null,10,4,4,2,2,2,2,2,2,2,2,50]
[null,null,null,null,null,null,null,null,null,null,null,null,null,null,null,null,null,null,null,null,null,null,null,null,null,null,null,null,null,null,null,null,null,null,null,null,null,null,"ヴァリアブルスピア",null,null,1,null,null,null,null,null,18,null,6,8,3,3,null,null,null,null,null,null,null,null,"近接","0-1","近",10,60,null,null,null,null,null,null,null,null,null,null,null,null,null,null,null,null,null,null,null,null,null,null,null,null,"--------ｸﾗｽ限定ｱｸｾ--------",null,null,null,null,null,null,null,null,null,null,null,null,null,null,null,null,null,null,null,null,null,null,0]
[null,null,null,null,null,null,null,null,null,null,null,null,null,null,null,null,null,null,null,null,null,null,null,null,null,null,null,null,null,null,null,null,null,null,null,null,null,null,"マジカルヌンチャク",null,null,-1,null,1,null,null,1,33,null,null,null,5,null,null,null,null,null,null,null,null,null,"近接","0-1","近",9,60,null,null,null,null,null,null,null,null,null,null,null,null,null,null,null,null,null,null,null,null,null,null,null,null,"ファイアローズ",null,null,null,null,null,null,null,null,null,null,null,null,4,4,9,7,-5,null,null,null,5,null,40]
[null,null,null,null,null,null,null,null,null,null,null,null,null,null,null,null,null,null,null,null,null,null,null,null,null,null,null,null,null,null,null,null,null,null,null,null,null,null,"カースライフル",null,null,null,1,null,null,null,-1,18,null,null,null,null,null,null,null,null,null,null,null,null,3,"射撃","0-4","遠","(1)→9",60,null,null,null,null,null,null,null,null,null,null,null,null,null,null,null,null,null,null,null,null,null,null,null,null,"スノークリスタル",null,null,null,null,1,null,1,null,null,null,null,null,2,2,-4,8,3,null,null,null,null,null,40]
[null,null,null,null,null,null,null,null,null,null,null,null,null,null,null,null,null,null,null,null,null,null,null,null,null,null,null,null,null,null,null,null,null,null,null,null,null,null,"ブラックバズーカ",null,null,null,null,null,null,null,null,22,null,null,2,3,3,null,null,null,null,null,null,10,10,"射撃","0-3","闇",10,60,null,null,null,null,null,null,null,null,null,null,null,null,null,null,null,null,null,null,null,null,null,null,null,null,"アルカナカード",null,null,null,null,null,null,null,null,null,null,null,null,-4,-4,null,null,null,null,null,null,null,null,40]
[null,null,null,null,null,null,null,null,null,null,null,null,null,null,null,null,null,null,null,null,null,null,null,null,null,null,null,null,null,null,null,null,null,null,null,null,null,null,"デリンジャー",null,null,null,1,null,null,null,1,16,null,null,null,-3,-3,null,null,null,null,null,null,null,null,"射撃","0-3","遠",9,60,null,null,null,null,null,null,null,null,null,null,null,null,null,null,null,null,null,null,null,null,null,null,null,null,"タイフーンリスト",null,null,null,null,null,null,null,2,null,null,null,null,null,null,null,null,null,null,10,2,null,null,40]
[null,null,null,null,null,null,null,null,null,null,null,null,null,null,null,null,null,null,null,null,null,null,null,null,null,null,null,null,null,null,null,null,null,null,null,null,null,null,"コントロールロッド",null,null,null,1,null,null,null,-1,23,null,null,null,3,3,9,-5,-5,null,null,null,2,4,"射撃","0-3","炎","(2)→7",60,null,null,null,null,null,null,null,null,null,null,null,null,null,null,null,null,null,null,null,null,null,null,null,null,"ブラッディリング",null,null,null,null,null,null,null,null,null,null,null,null,null,10,null,null,null,null,null,null,null,4,40]
[null,null,null,null,null,null,null,null,null,null,null,null,null,null,null,null,null,null,null,null,null,null,null,null,null,null,null,null,null,null,null,null,null,null,null,null,null,null,"ライトスナイパー",null,null,null,1,null,null,null,-3,27,null,null,null,3,3,null,null,null,null,null,null,14,null,"射撃","0-4","光","(3)→7",60,null,null,null,null,null,null,null,null,null,null,null,null,null,null,null,null,null,null,null,null,null,null,null,null,"ブラックピアス",null,null,null,null,null,null,null,null,null,null,null,null,null,null,null,null,null,null,null,null,null,8,40]
[null,null,null,null,null,null,null,null,null,null,null,null,null,null,null,null,null,null,null,null,null,null,null,null,null,null,null,null,null,null,null,null,null,null,null,null,null,null,"スーパーメガホン",null,null,null,1,null,null,1,null,21,null,null,null,3,3,null,null,null,null,null,null,null,null,"射撃","0-4","遠",10,60,null,null,null,null,null,null,null,null,null,null,null,null,null,null,null,null,null,null,null,null,null,null,null,null,"ロンバスリング",null,null,null,null,null,null,null,null,null,null,null,5,null,null,null,null,null,null,null,null,null,null,40]
[null,null,null,null,null,null,null,null,null,null,null,null,null,null,null,null,null,null,null,null,null,null,null,null,null,null,null,null,null,null,null,null,null,null,null,null,null,null,"ホールドワイヤー",null,null,null,null,null,null,null,null,25,null,null,null,3,3,null,null,null,null,null,null,null,null,"射撃","0-4","遠",9,60,null,null,null,null,null,null,null,null,null,null,null,null,null,null,null,null,null,null,null,null,null,null,null,null,"トリックキット",null,null,null,null,null,null,null,null,null,null,null,null,6,6,null,null,null,null,null,null,null,null,40]
[null,null,null,null,null,null,null,null,null,null,null,null,null,null,null,null,null,null,null,null,null,null,null,null,null,null,null,null,null,null,null,null,null,null,null,null,null,null,"レーザーガン改",null,null,null,1,null,null,null,null,21,null,null,null,null,null,null,null,null,null,null,null,5,5,"射撃","2-3","光",8,60,null,null,null,null,null,null,null,null,null,null,null,null,null,null,null,null,null,null,null,null,null,null,null,null,"プラズマコード",null,null,null,null,null,null,null,null,null,null,null,null,4,4,2,2,2,10,-3,2,2,2,40]
[null,null,null,null,null,null,null,null,null,null,null,null,null,null,null,null,null,null,null,null,null,null,null,null,null,null,null,null,null,null,null,null,null,null,null,null,null,null,"カースクロスボウ",null,null,null,1,null,null,null,-2,23,null,null,null,-4,null,null,null,null,null,null,null,5,5,"射撃","2-4","闇","(3)→6",60,null,null,null,null,null,null,null,null,null,null,null,null,null,null,null,null,null,null,null,null,null,null,null,null,"アトミックウォッチ",null,null,null,null,null,null,null,null,null,null,null,null,null,null,9,null,null,null,null,null,7,null,40]
[null,null,null,null,null,null,null,null,null,null,null,null,null,null,null,null,null,null,null,null,null,null,null,null,null,null,null,null,null,null,null,null,null,null,null,null,null,null,"バリアキャノン",null,null,null,null,null,null,null,null,15,null,null,null,7,7,3,3,3,3,3,3,4,4,"射撃","0-3","近","(3)→6",60,null,null,null,null,null,null,null,null,null,null,null,null,null,null,null,null,null,null,null,null,null,null,null,null,"リーダーズバッジ",null,null,null,null,null,null,null,3,3,null,null,null,3,3,null,null,null,null,null,null,null,null,40]
[null,null,null,null,null,null,null,null,null,null,null,null,null,null,null,null,null,null,null,null,null,null,null,null,null,null,null,null,null,null,null,null,null,null,null,null,null,null,"アンブレラガン",null,null,null,1,null,null,1,null,18,null,3,null,3,3,1,1,1,1,1,1,null,null,"射撃","0-3","遠",11,60,null,null,null,null,null,null,null,null,null,null,null,null,null,null,null,null,null,null,null,null,null,null,null,null,"パルスセンサー",null,null,null,null,null,null,null,null,null,null,null,null,2,2,2,2,2,2,2,2,2,2,40]
[null,null,null,null,null,null,null,null,null,null,null,null,null,null,null,null,null,null,null,null,null,null,null,null,null,null,null,null,null,null,null,null,null,null,null,null,null,null,"テレスコープガン",null,null,null,1,null,null,null,null,25,null,8,6,3,3,null,null,null,null,null,null,null,null,"射撃","0-3","遠",10,60,null,null,null,null,null,null,null,null,null,null,null,null,null,null,null,null,null,null,null,null,null,null,null,null,"アルカナクラスタ",null,null,null,null,null,null,null,null,null,null,null,null,null,null,2,2,2,2,2,2,null,null,40]
[null,null,null,null,null,null,null,null,null,null,null,null,null,null,null,null,null,null,null,null,null,null,null,null,null,null,null,null,null,null,null,null,null,null,null,null,null,null,"アルカナ-22",null,null,null,null,null,null,null,null,null,17,null,2,null,null,2,2,2,2,2,2,1,1,"魔法","0-2","遠","(3)→7",60,null,null,null,null,null,null,null,null,null,null,null,null,null,null,null,null,null,null,null,null,null,null,null,null,"ヴィジョナルフィスト",null,null,null,null,null,null,null,null,null,null,null,null,null,null,null,null,null,null,3,3,null,null,40]
[null,null,null,null,null,null,null,null,null,null,null,null,null,null,null,null,null,null,null,null,null,null,null,null,null,null,null,null,null,null,null,null,null,null,null,null,null,null,"人工エリクシル",null,null,null,null,null,1,1,null,null,17,null,null,null,null,6,null,6,null,6,6,null,null,"魔法","0-3","※","(4)→6",60,null,null,null,null,null,null,null,null,null,null,null,null,null,null,null,null,null,null,null,null,null,null,null,null,"レインボーオーブ",null,null,null,null,null,null,null,null,null,null,null,null,null,null,4,null,4,4,4,4,4,4,40]
[null,null,null,null,null,null,null,null,null,null,null,null,null,null,null,null,null,null,null,null,null,null,null,null,null,null,null,null,null,null,null,null,null,null,null,null,null,null,"アルカナセッター",null,null,null,null,null,1,null,1,null,15,null,null,3,3,null,null,null,null,null,null,null,null,"魔法","1-3","遠","(5)→6",60,null,null,null,null,null,null,null,null,null,null,null,null,null,null,null,null,null,null,null,null,null,null,null,null,"アクアシールド",null,null,null,null,null,null,null,null,null,null,null,null,null,null,null,-5,20,null,null,null,null,null,40]
[null,null,null,null,null,null,null,null,null,null,null,null,null,null,null,null,null,null,null,null,null,null,null,null,null,null,null,null,null,null,null,null,null,null,null,null,null,null,"セブンスワンド",null,null,null,null,null,null,null,null,null,16,null,null,null,null,2,null,2,2,2,2,2,2,"魔法","0-4","光","(2)→8",60,null,null,null,null,null,null,null,null,null,null,null,null,null,null,null,null,null,null,null,null,null,null,null,null,"ドーマンセーマン",null,null,null,null,null,null,null,null,null,null,null,null,2,2,2,2,2,2,2,2,10,10,40]
[null,null,null,null,null,null,null,null,null,null,null,null,null,null,null,null,null,null,null,null,null,null,null,null,null,null,null,null,null,null,null,null,null,null,null,null,null,null,"陰陽符",null,null,null,null,null,null,null,null,null,19,null,null,1,1,null,null,null,null,null,null,4,4,"魔法","1-4","※","(3)→8",60,null,null,null,null,null,null,null,null,null,null,null,null,null,null,null,null,null,null,null,null,null,null,null,null,"クロックガジェット",null,null,null,null,null,null,null,null,null,null,null,null,-7,-7,-5,-5,-5,-5,-5,-5,-5,-5,40]
[null,null,null,null,null,null,null,null,null,null,null,null,null,null,null,null,null,null,null,null,null,null,null,null,null,null,null,null,null,null,null,null,null,null,null,null,null,null,"マジカルウォッチ",null,null,null,null,null,null,1,null,null,23,null,null,null,null,null,null,null,null,null,null,null,3,"魔法","0-1","闇",11,60,null,null,null,null,null,null,null,null,null,null,null,null,null,null,null,null,null,null,null,null,null,null,null,null,"パワーゲイナー",null,null,null,null,null,null,null,null,null,null,null,null,8,8,null,null,null,null,null,null,null,null,40]
[null,null,null,null,null,null,null,null,null,null,null,null,null,null,null,null,null,null,null,null,null,null,null,null,null,null,null,null,null,null,null,null,null,null,null,null,null,null,"クレイジーアイ",null,null,null,null,null,null,null,null,null,17,null,5,7,7,null,null,null,null,null,null,null,null,"魔法","0-4","遠","(3)→8",60,null,null,null,null,null,null,null,null,null,null,null,null,null,null,null,null,null,null,null,null,null,null,null,null,"カオスシール",null,null,null,null,null,null,null,null,null,null,null,null,3,3,null,null,null,null,null,null,null,null,40]
[null,null,null,null,null,null,null,null,null,null,null,null,null,null,null,null,null,null,null,null,null,null,null,null,null,null,null,null,null,null,null,null,null,null,null,null,null,null,"忍術大全",null,null,null,null,null,2,null,null,null,10,null,null,null,null,2,2,2,2,2,2,null,null,"魔法","0-4","遠","(3)→8",60,null,null,null,null,null,null,null,null,null,null,null,null,null,null,null,null,null,null,null,null,null,null,null,null,"パニックマーク",null,null,null,null,null,null,null,null,null,null,null,null,null,null,6,6,null,null,null,null,null,null,40]
[null,null,null,null,null,null,null,null,null,null,null,null,null,null,null,null,null,null,null,null,null,null,null,null,null,null,null,null,null,null,null,null,null,null,null,null,null,null,"人形強化の書",null,null,1,null,null,1,null,null,null,11,null,null,3,3,null,null,null,null,null,null,3,3,"魔法","0-3","遠","(5)→5",60,null,null,null,null,null,null,null,null,null,null,null,null,null,null,null,null,null,null,null,null,null,null,null,null,"パラフェルナリア",null,null,null,null,null,null,null,null,null,null,null,null,2,2,2,2,2,2,2,2,2,2,40]
[null,null,null,null,null,null,null,null,null,null,null,null,null,null,null,null,null,null,null,null,null,null,null,null,null,null,null,null,null,null,null,null,null,null,null,null,null,null,"禁じられた書物",null,null,null,null,null,null,null,null,null,25,-15,5,null,null,2,2,2,2,2,2,2,2,"魔法","0-3","遠","(4)→6",60,null,null,null,null,null,null,null,null,null,null,null,null,null,null,null,null,null,null,null,null,null,null,null,null,"レーザーサイト",null,null,null,1,null,null,null,null,4,4,null,null,3,3,null,null,null,null,null,null,3,8,40]
[null,null,null,null,null,null,null,null,null,null,null,null,null,null,null,null,null,null,null,null,null,null,null,null,null,null,null,null,null,null,null,null,null,null,null,null,null,null,"スターダストロッド",null,null,null,null,null,1,null,2,null,15,null,4,null,null,3,3,3,3,3,3,3,3,"魔法","0-3","光","(4)→7",60,null,null,null,null,null,null,null,null,null,null,null,null,null,null,null,null,null,null,null,null,null,null,null,null,"ニンジャブーツ",null,null,null,null,2,null,null,null,null,null,null,null,-2,-2,null,null,null,null,null,null,null,null,40]
[null,null,null,null,null,null,null,null,null,null,null,null,null,null,null,null,null,null,null,null,null,null,null,null,null,null,null,null,null,null,null,null,null,null,null,null,null,null,"クリアウィングリスト",null,null,null,null,null,1,null,null,null,21,null,4,2,4,3,1,3,1,3,1,null,null,"魔法","0-3","近","(4)→8",60,null,null,null,null,null,null,null,null,null,null,null,null,null,null,null,null,null,null,null,null,null,null,null,null,"パートナードール",null,null,null,null,null,null,null,null,null,null,null,null,4,4,null,null,null,null,null,null,null,null,40]
[null,null,null,null,null,null,null,null,null,null,null,null,null,null,null,null,null,null,null,null,null,null,null,null,null,null,null,null,null,null,null,null,null,null,null,null,null,null,"黎明の聖剣：近",null,null,null,null,1,null,1,null,30,null,-10,null,2,null,-5,null,2,2,2,null,5,5,"近接","0-1","光",9,60,null,null,null,null,null,null,null,null,null,null,null,null,null,null,null,null,null,null,null,null,null,null,null,null,"イマジナリィボウ",null,null,null,null,null,null,null,null,null,null,null,null,null,null,2,2,2,2,2,2,null,10,40]
[null,null,null,null,null,null,null,null,null,null,null,null,null,null,null,null,null,null,null,null,null,null,null,null,null,null,null,null,null,null,null,null,null,null,null,null,null,null,"黎明の聖剣：射",null,null,null,null,1,null,1,null,30,null,-10,null,2,null,-5,null,2,2,2,null,5,5,"射撃","0-1","光",9,60,null,null,null,null,null,null,null,null,null,null,null,null,null,null,null,null,null,null,null,null,null,null,null,null,"禁断の栞",null,null,null,null,null,null,null,null,null,null,null,null,6,6,6,6,6,6,6,6,6,6,40]
[null,null,null,null,null,null,null,null,null,null,null,null,null,null,null,null,null,null,null,null,null,null,null,null,null,null,null,null,null,null,null,null,null,null,null,null,null,null,"黎明の聖剣：魔",null,null,null,null,1,null,1,null,null,30,-10,null,2,null,-5,null,2,2,2,null,5,5,"魔法","0-1","光",9,60,null,null,null,null,null,null,null,null,null,null,null,null,null,null,null,null,null,null,null,null,null,null,null,null,"マジックバリアー",null,null,null,null,null,null,null,null,null,null,null,null,5,5,3,3,3,3,3,3,3,3,40]
[null,null,null,null,null,null,null,null,null,null,null,null,null,null,null,null,null,null,null,null,null,null,null,null,null,null,null,null,null,null,null,null,null,null,null,null,null,null,"--------スキル--------",null,null,null,null,null,null,null,null,null,null,null,null,null,null,null,null,null,null,null,null,null,null,null,null,null,null,null,null,null,null,null,null,null,null,null,null,null,null,null,null,null,null,null,null,null,null,null,null,null,null,null,"アイドロンセーバー",null,null,null,null,null,null,null,null,null,null,null,null,null,null,null,null,null,null,null,null,null,null,40]
[null,null,null,null,null,null,null,null,null,null,null,null,null,null,null,null,null,null,null,null,null,null,null,null,null,null,null,null,null,null,null,null,null,null,null,null,null,null,"イービルスレイヤー",null,null,1,null,null,null,null,null,{"$f":"(SL+CL)*5+15","v":20},null,null,null,null,null,null,null,null,null,null,null,null,{"$f":"20+CL*2","v":22},"近接","0-1","光",8,0,null,null,null,null,null,null,null,null,null,null,null,null,null,null,null,null,null,null,null,null,null,null,null,null,"エターナルリーフ",null,null,null,null,null,null,null,null,null,null,null,null,-3,-3,-10,-5,5,null,5,5,12,-7,40]
[null,null,null,null,null,null,null,null,null,null,null,null,null,null,null,null,null,null,null,null,null,null,null,null,null,null,null,null,null,null,null,null,null,null,null,null,null,null,"死神の鎌",null,null,null,null,null,null,null,null,{"$f":"CL*8+30","v":38},null,null,null,{"$f":"CL*8","v":8},{"$f":"CL*8","v":8},null,null,null,null,null,null,null,null,"近接","0-1","闇",8,0,null,null,null,null,null,null,null,null,null,null,null,null,null,null,null,null,null,null,null,null,null,null,null,null,"ミニチュア天球儀",null,null,null,null,null,null,null,null,null,null,null,null,4,4,8,null,null,8,null,null,null,8,40]
[null,null,null,null,null,null,null,null,null,null,null,null,null,null,null,null,null,null,null,null,null,null,null,null,null,null,null,null,null,null,null,null,null,null,null,null,null,null,"LAEVATEINN",null,null,null,null,null,null,2,null,{"$f":"15+SL*6","v":15},null,null,null,null,null,{"$f":"SL*2+CL","v":1},null,null,{"$f":"SL*2+CL","v":1},null,null,{"$f":"SL*2+CL","v":1},null,"近接","0-1","炎",11,0,null,null,null,null,null,null,null,null,null,null,null,null,null,null,null,null,null,null,null,null,null,null,null,null,"てるてる魔坊主",null,null,null,null,null,null,null,null,null,null,null,null,5,5,6,null,6,null,6,null,6,null,40]
[null,null,null,null,null,null,null,null,null,null,null,null,null,null,null,null,null,null,null,null,null,null,null,null,null,null,null,null,null,null,null,null,null,null,null,null,null,null,"アイストライデント",null,null,1,null,1,null,2,null,{"$f":"(SL+CL)*4","v":4},null,null,null,null,null,null,null,null,null,null,null,null,null,"近接","0-3","氷",8,0,null,null,null,null,null,null,null,null,null,null,null,null,null,null,null,null,null,null,null,null,null,null,null,null,"アーツイヤリング",null,null,null,null,null,null,null,null,null,null,null,null,null,null,null,null,null,null,null,null,null,null,40]
[null,null,null,null,null,null,null,null,null,null,null,null,null,null,null,null,null,null,null,null,null,null,null,null,null,null,null,null,null,null,null,null,null,null,null,null,null,null,"付喪武器",null,null,1,null,1,null,null,null,{"$f":"(SL+CL)*4","v":4},null,null,null,null,null,null,null,null,null,null,null,null,null,"近接","0-1","近",10,0,null,null,null,null,null,null,null,null,null,null,null,null,null,null,null,null,null,null,null,null,null,null,null,null,"命の結晶",null,null,null,null,null,null,null,null,null,null,null,null,3,3,4,4,4,4,4,4,6,6,40]
[null,null,null,null,null,null,null,null,null,null,null,null,null,null,null,null,null,null,null,null,null,null,null,null,null,null,null,null,null,null,null,null,null,null,null,null,null,null,"追憶の名剣",null,null,2,null,null,null,null,null,{"$f":"(SL+CL)*4","v":4},null,null,null,null,null,null,null,null,null,null,null,null,null,"近接","0-1","近",11,0,null,null,null,null,null,null,null,null,null,null,null,null,null,null,null,null,null,null,null,null,null,null,null,null,"ドラゴンバングル",null,null,null,null,null,null,null,1,null,null,16,null,3,3,7,7,7,7,7,7,null,null,40]
[null,null,null,null,null,null,null,null,null,null,null,null,null,null,null,null,null,null,null,null,null,null,null,null,null,null,null,null,null,null,null,null,null,null,null,null,null,null,"ツララランス",null,null,null,null,2,null,null,null,{"$f":"SL*3+15","v":15},null,null,null,null,null,null,20,null,null,null,null,null,null,"近接","0-2","氷",8,0,null,null,null,null,null,null,null,null,null,null,null,null,null,null,null,null,null,null,null,null,null,null,null,null,"ドリームレンズ",null,null,null,null,null,null,null,null,null,null,null,null,null,null,1,1,1,1,1,1,null,null,40]
[null,null,null,null,null,null,null,null,null,null,null,null,null,null,null,null,null,null,null,null,null,null,null,null,null,null,null,null,null,null,null,null,null,null,null,null,null,null,"ブラッドブレード",null,null,null,null,null,null,null,null,{"$f":"(SL+CL)*5","v":5},null,null,null,null,null,null,null,null,null,null,null,null,null,"近接","0-1","近",8,0]
[null,null,null,null,null,null,null,null,null,null,null,null,null,null,null,null,null,null,null,null,null,null,null,null,null,null,null,null,null,null,null,null,null,null,null,null,null,null,"ヌルウェポン",null,null,null,null,null,null,null,null,{"$f":"(SL*4)+10","v":10},null,null,null,null,null,null,null,null,null,null,null,{"$f":"SL+CL","v":1},{"$f":"SL+CL","v":1},"近接","0-1","無",10,0]
[null,null,null,null,null,null,null,null,null,null,null,null,null,null,null,null,null,null,null,null,null,null,null,null,null,null,null,null,null,null,null,null,null,null,null,null,null,null,"Qソード",null,null,1,null,null,null,null,null,{"$f":"(SL+CL)*4","v":4},null,null,null,null,null,{"$f":"SL*2","v":0},null,{"$f":"SL*2","v":0},null,{"$f":"SL*2","v":0},{"$f":"SL*2","v":0},null,null,"近接","0-1","炎水風土",8,0]
[null,null,null,null,null,null,null,null,null,null,null,null,null,null,null,null,null,null,null,null,null,null,null,null,null,null,null,null,null,null,null,null,null,null,null,null,null,null,"ムーンブレード",null,null,null,null,null,null,null,null,{"$f":"SL*4+18","v":18},null,null,null,null,null,null,null,null,null,null,null,{"$f":"CL*2","v":2},{"$f":"CL*2","v":2},"近接","0-1","闇",8,0]
[null,null,null,null,null,null,null,null,null,null,null,null,null,null,null,null,null,null,null,null,null,null,null,null,null,null,null,null,null,null,null,null,null,null,null,null,null,null,"ライトセーバー",null,null,2,null,null,null,2,null,{"$f":"SL*4+24","v":24},null,null,null,null,null,null,null,null,null,null,null,null,null,"近接","0-1","光",9,0]
[null,null,null,null,null,null,null,null,null,null,null,null,null,null,null,null,null,null,null,null,null,null,null,null,null,null,null,null,null,null,null,null,null,null,null,null,null,null,"彗星の剣",null,null,null,null,null,null,null,null,{"$f":"(SL+CL)*4","v":4},null,null,null,null,null,null,null,null,null,null,null,{"$f":"SL*3","v":0},{"$f":"SL*3","v":0},"近接","0-1","光",10,0]
[null,null,null,null,null,null,null,null,null,null,null,null,null,null,null,null,null,null,null,null,null,null,null,null,null,null,null,null,null,null,null,null,null,null,null,null,null,null,"Sシールド",null,null,null,null,null,null,1,-10,{"$f":"SL*4+20","v":20},null,null,null,{"$f":"SL*3","v":0},{"$f":"SL*3","v":0},null,null,null,null,null,null,null,null,"近接","0-1","近",13,0]
[null,null,null,null,null,null,null,null,null,null,null,null,null,null,null,null,null,null,null,null,null,null,null,null,null,null,null,null,null,null,null,null,null,null,null,null,null,null,"魔法双剣",null,null,null,null,null,null,null,null,{"$f":"SL*5+13","v":13},null,null,null,null,null,null,null,null,null,null,null,null,null,"近接","0-1","近",13,0]
[null,null,null,null,null,null,null,null,null,null,null,null,null,null,null,null,null,null,null,null,null,null,null,null,null,null,null,null,null,null,null,null,null,null,null,null,null,null,"雷水晶の剣",null,null,null,null,2,null,null,null,{"$f":"SL*5+18","v":18},null,null,null,null,null,null,null,null,{"$f":"CL*8","v":8},null,null,null,null,"近接","0-2","雷",8,0]
[null,null,null,null,null,null,null,null,null,null,null,null,null,null,null,null,null,null,null,null,null,null,null,null,null,null,null,null,null,null,null,null,null,null,null,null,null,null,"宵闇の氷槍",null,null,2,null,null,null,null,null,{"$f":"(SL+CL)*5","v":5},null,null,null,null,null,null,{"$f":"CL*5","v":5},{"$f":"CL*5","v":5},null,null,null,{"$f":"CL*5","v":5},{"$f":"CL*5","v":5},"近接","0-2","氷闇",9,0]
[null,null,null,null,null,null,null,null,null,null,null,null,null,null,null,null,null,null,null,null,null,null,null,null,null,null,null,null,null,null,null,null,null,null,null,null,null,null,"ABYSS",null,null,3,null,null,null,null,null,{"$f":"SL*9","v":0},null,null,null,null,null,null,null,null,null,null,null,null,null,"近接","0-1","近",10,0]
[null,null,null,null,null,null,null,null,null,null,null,null,null,null,null,null,null,null,null,null,null,null,null,null,null,null,null,null,null,null,null,null,null,null,null,null,null,null,"破天手甲",null,null,null,null,null,null,null,null,{"$f":"(SL+CL+2)*5","v":15},null,null,null,{"$f":"SL*5","v":0},null,{"$f":"CL","v":1},{"$f":"CL","v":1},null,null,null,null,null,null,"近接","0-1","近",9,0]
[null,null,null,null,null,null,null,null,null,null,null,null,null,null,null,null,null,null,null,null,null,null,null,null,null,null,null,null,null,null,null,null,null,null,null,null,null,null,"エアブレイカー",null,null,null,1,null,null,null,null,{"$f":"SL*5+15","v":15},null,null,null,null,null,null,null,null,null,null,null,null,null,"射撃","0-3","遠",10,0]
[null,null,null,null,null,null,null,null,null,null,null,null,null,null,null,null,null,null,null,null,null,null,null,null,null,null,null,null,null,null,null,null,null,null,null,null,null,null,"ノイズガン",null,null,null,2,null,null,null,null,{"$f":"(SL+CL)*4","v":4},null,null,null,null,null,null,null,null,null,null,null,null,null,"射撃","0-4","風",9,0]
[null,null,null,null,null,null,null,null,null,null,null,null,null,null,null,null,null,null,null,null,null,null,null,null,null,null,null,null,null,null,null,null,null,null,null,null,null,null,"BLR",null,null,null,null,-2,null,2,null,{"$f":"SL*3+CS!$AI$39","v":18},null,null,null,null,null,null,null,null,null,null,null,null,null,"射撃","0-5","光",8,0]
[null,null,null,null,null,null,null,null,null,null,null,null,null,null,null,null,null,null,null,null,null,null,null,null,null,null,null,null,null,null,null,null,null,null,null,null,null,null,"ブラッディアS",null,null,null,2,null,null,null,null,{"$f":"SL*4+CL*3","v":3},null,null,null,null,null,null,null,null,null,null,null,null,null,"射撃","0-5","遠",11,0]
[null,null,null,null,null,null,null,null,null,null,null,null,null,null,null,null,null,null,null,null,null,null,null,null,null,null,null,null,null,null,null,null,null,null,null,null,null,null,"特大手裏剣",null,null,null,1,null,null,null,null,{"$f":"SL*5+CL*5","v":5},null,null,null,null,null,null,null,null,null,null,null,null,null,"射撃","0-3","遠",10,0]
[null,null,null,null,null,null,null,null,null,null,null,null,null,null,null,null,null,null,null,null,null,null,null,null,null,null,null,null,null,null,null,null,null,null,null,null,null,null,"ルーンデスサイズ",null,null,null,null,null,null,null,null,null,{"$f":"CL*3","v":3},null,null,null,null,null,null,null,null,null,null,{"$f":"CL*SL","v":0},null,"魔法","2-4","闇","(3)→6",0]

{"sheet":"武器用","index":4,"n_rows":159,"n_cols":32,"rows_kept":159,"cut":false,"hidden":false,"merged":[[183,1,183,3],[161,1,161,3],[162,1,162,3],[163,1,163,3],[164,1,164,3],[165,1,165,3],[166,1,166,3],[167,1,167,3],[169,1,169,3],[170,1,170,3],[177,1,177,3],[178,1,178,3],[179,1,179,3],[180,1,180,3],[181,1,181,3],[182,1,182,3],[171,1,171,3],[172,1,172,3],[173,1,173,3],[174,1,174,3],[175,1,175,3],[176,1,176,3],[156,1,156,3],[150,1,150,3],[151,1,151,3],[134,1,134,3],[135,1,135,3],[168,1,168,3],[136,1,136,3],[139,1,139,3],[140,1,140,3],[158,1,158,3],[159,1,159,3],[160,1,160,3],[145,1,145,3],[146,1,146,3],[147,1,147,3],[153,1,153,3],[157,1,157,3],[123,1,123,3],[124,1,124,3],[125,1,125,3],[126,1,126,3],[127,1,127,3],[133,1,133,3],[155,1,155,3],[137,1,137,3],[149,1,149,3],[141,1,141,3],[142,1,142,3],[143,1,143,3],[148,1,148,3],[154,1,154,3],[144,1,144,3],[138,1,138,3],[128,1,128,3],[129,1,129,3],[152,1,152,3],[130,1,130,3],[131,1,131,3],[132,1,132,3],[115,1,115,3],[118,1,118,3],[119,1,119,3],[120,1,120,3],[121,1,121,3],[122,1,122,3],[109,1,109,3],[110,1,110,3],[111,1,111,3],[112,1,112,3],[113,1,113,3],[114,1,114,3],[116,1,116,3],[117,1,117,3],[90,1,90,3],[91,1,91,3],[92,1,92,3],[101,1,101,3],[102,1,102,3],[103,1,103,3],[106,1,106,3],[107,1,107,3],[108,1,108,3],[95,1,95,3],[96,1,96,3],[97,1,97,3],[98,1,98,3],[99,1,99,3],[100,1,100,3],[104,1,104,3],[105,1,105,3],[93,1,93,3],[94,1,94,3],[51,1,51,3],[52,1,52,3],[53,1,53,3],[67,1,67,3],[68,1,68,3],[69,1,69,3],[45,1,45,3],[46,1,46,3],[47,1,47,3],[48,1,48,3],[49,1,49,3],[50,1,50,3],[54,1,54,3],[55,1,55,3],[56,1,56,3],[57,1,57,3],[58,1,58,3],[59,1,59,3],[60,1,60,3],[61,1,61,3],[62,1,62,3],[63,1,63,3],[64,1,64,3],[65,1,65,3],[42,1,42,3],[43,1,43,3],[44,1,44,3],[7,1,7,3],[8,1,8,3],[9,1,9,3],[10,1,10,3],[11,1,11,3],[12,1,12,3],[15,1,15,3],[16,1,16,3],[17,1,17,3],[18,1,18,3],[19,1,19,3],[20,1,20,3],[21,1,21,3],[22,1,22,3],[23,1,23,3],[24,1,24,3],[25,1,25,3],[26,1,26,3],[27,1,27,3],[28,1,28,3],[29,1,29,3],[1,1,1,3],[2,1,2,3],[3,1,3,3],[4,1,4,3],[5,1,5,3],[6,1,6,3],[13,1,13,3],[14,1,14,3],[41,1,41,3],[30,1,30,3],[31,1,31,3],[32,1,32,3],[33,1,33,3],[34,1,34,3],[35,1,35,3],[36,1,36,3],[37,1,37,3],[38,1,38,3],[39,1,39,3],[40,1,40,3],[88,1,88,3],[89,1,89,3],[66,1,66,3],[80,1,80,3],[81,1,81,3],[82,1,82,3],[83,1,83,3],[84,1,84,3],[85,1,85,3],[86,1,86,3],[87,1,87,3],[76,1,76,3],[77,1,77,3],[78,1,78,3],[79,1,79,3],[70,1,70,3],[71,1,71,3],[72,1,72,3],[73,1,73,3],[74,1,74,3],[75,1,75,3]]}
[]
[null,"武器名",null,null,"近接","射撃","回避","魔術","抵抗","敏捷","物攻","魔攻","耐久","精神","近","遠","炎","氷","水","雷","風","土","光","闇","種別","射程","属性","ｺｽﾄ","効果","金額",null,"装備リスト"]
[null,"--------近接1--------",null,null,null,null,null,null,null,null,null,null,null,null,null,null,null,null,null,null,null,null,null,null,null,null,null,null,null,0,null,"---- 一般武器 ----"]
[null,"素手",null,null,-2,null,null,null,null,1,16,null,null,null,-7,-7,null,null,null,null,null,null,null,null,"近接","0-1","近",9,"効果なし",0,null,{"$f":"IF(CS!$AJ$16=\"近接\",B4,IF(CS!$AJ$16=\"射撃\",B43,IF(CS!$AJ$16=\"魔術\",B69, )))","v":"素手"}]
[null,"スタンダードソード",null,null,null,null,null,null,null,null,20,null,null,null,3,1,null,null,null,null,null,null,null,null,"近接","0-1","近",9,"効果なし",10,null,{"$f":"IF(CS!$AJ$16=\"近接\",B5,IF(CS!$AJ$16=\"射撃\",B44,IF(CS!$AJ$16=\"魔術\",B70, )))","v":"スタンダードソード"}]
[null,"レイピア",null,null,-1,null,null,null,null,1,28,null,null,null,2,null,null,null,null,null,null,null,null,null,"近接","0-1","近",9,"効果なし",10,null,{"$f":"IF(CS!$AJ$16=\"近接\",B6,IF(CS!$AJ$16=\"射撃\",B45,IF(CS!$AJ$16=\"魔術\",B71, )))","v":"レイピア"}]
[null,"バスタードソード",null,null,-2,null,-1,null,null,-1,36,null,3,null,3,2,1,1,1,null,null,null,null,null,"近接","0-1","近",10,"効果なし",10,null,{"$f":"IF(CS!$AJ$16=\"近接\",B7,IF(CS!$AJ$16=\"射撃\",B46,IF(CS!$AJ$16=\"魔術\",B72, )))","v":"バスタードソード"}]
[null,"鋼鉄剣 -玉鋼-",null,null,null,null,null,null,null,null,22,null,null,null,4,1,null,null,2,null,1,2,null,null,"近接","0-1","近",9,"スキルによらない武器攻撃ダメージに+10",20,null,{"$f":"IF(CS!$AJ$16=\"近接\",B8,IF(CS!$AJ$16=\"射撃\",B47,IF(CS!$AJ$16=\"魔術\",B73, )))","v":"鋼鉄剣 -玉鋼-"}]
[null,"ブレードシールド",null,null,-1,null,-1,null,-1,null,23,null,3,null,4,4,2,2,1,1,null,3,null,null,"近接","0-1","近",10,"効果なし",25,null,{"$f":"IF(CS!$AJ$16=\"近接\",B9,IF(CS!$AJ$16=\"射撃\",B48,IF(CS!$AJ$16=\"魔術\",B74, )))","v":"ブレードシールド"}]
[null,"マジックシールド",null,null,null,null,null,null,1,null,12,3,3,null,7,7,4,4,4,4,4,4,4,4,"近接","0-1","近",10,"効果なし",35,null,{"$f":"IF(CS!$AJ$16=\"近接\",B10,IF(CS!$AJ$16=\"射撃\",B49,IF(CS!$AJ$16=\"魔術\",B75, )))","v":"マジックシールド"}]
[null,"高周波ブレード",null,null,null,null,null,null,-1,null,26,null,null,null,4,3,4,null,null,null,3,null,null,null,"近接","0-1","風",9,"この武器で攻撃を行う度、【MP】2点消費",40,null,{"$f":"IF(CS!$AJ$16=\"近接\",B11,IF(CS!$AJ$16=\"射撃\",B50,IF(CS!$AJ$16=\"魔術\",B76, )))","v":"高周波ブレード"}]
[null,"パワードナックル",null,null,-1,null,null,null,null,1,30,null,null,null,-3,-3,null,null,null,null,null,null,null,null,"近接","0-1","近",9,"素手扱い武器",45,null,{"$f":"IF(CS!$AJ$16=\"近接\",B12,IF(CS!$AJ$16=\"射撃\",B51,IF(CS!$AJ$16=\"魔術\",B77, )))","v":"パワードナックル"}]
[null,"紫電",null,null,null,null,null,null,null,null,32,null,null,null,-5,-10,null,null,null,8,null,-8,null,null,"近接","0-1","雷",9,"スキルによらない武器攻撃ダメージに+5",65,null,{"$f":"IF(CS!$AJ$16=\"近接\",B13,IF(CS!$AJ$16=\"射撃\",B52,IF(CS!$AJ$16=\"魔術\",B78, )))","v":"紫電"}]
[null,"ウィンドブーメラン",null,null,1,null,null,null,null,2,30,null,null,null,3,1,1,1,null,2,6,null,null,null,"近接","0-2","風",10,"効果なし",90,null,{"$f":"IF(CS!$AJ$16=\"近接\",B14,IF(CS!$AJ$16=\"射撃\",B53,IF(CS!$AJ$16=\"魔術\",B79, )))","v":"ウィンドブーメラン"}]
[null,"ドラゴンズブレード",null,null,null,null,null,null,1,2,48,null,null,null,4,2,6,null,6,4,3,3,null,null,"近接","0-1","近",9,"効果なし",120,null,{"$f":"IF(CS!$AJ$16=\"近接\",B15,IF(CS!$AJ$16=\"射撃\",B54,IF(CS!$AJ$16=\"魔術\",B80, )))","v":"ドラゴンズブレード"}]
[null,"--------近接2--------",null,null,null,null,null,null,null,null,null,null,null,null,null,null,null,null,null,null,null,null,null,null,null,null,null,null,null,0,null,"---- 限定武器 ----"]
[null,"ヘヴィアックス",null,null,-2,null,null,null,null,null,33,null,null,null,3,3,null,null,null,null,null,null,null,null,"近接","0-1","近",11,"効果なし",10,null,{"$f":"IF(CS!$AJ$16=\"近接\",B95,IF(CS!$AJ$16=\"射撃\",B107,IF(CS!$AJ$16=\"魔術\",B119, )))","v":"灼炎剣 -焔-"}]
[null,"ショートソード",null,null,null,null,null,null,null,2,11,null,null,null,1,1,null,null,null,null,null,null,null,null,"近接","0-1","近",9,"効果なし",10,null,{"$f":"IF(CS!$AJ$16=\"近接\",B96,IF(CS!$AJ$16=\"射撃\",B108,IF(CS!$AJ$16=\"魔術\",B120, )))","v":"アイスサーベル"}]
[null,"アイアンシックル",null,null,null,null,-1,null,null,null,27,null,null,null,-3,-3,-3,-3,-3,-3,-3,-3,-3,-3,"近接","0-1","近",10,"効果なし",20,null,{"$f":"IF(CS!$AJ$16=\"近接\",B97,IF(CS!$AJ$16=\"射撃\",B109,IF(CS!$AJ$16=\"魔術\",B121, )))","v":"風魔槍 -鎌鼬-"}]
[null,"ロングソード",null,null,-1,null,null,null,null,-1,35,null,null,null,6,null,1,1,1,null,null,null,null,null,"近接","0-2","近",11,"効果なし",25,null,{"$f":"IF(CS!$AJ$16=\"近接\",B98,IF(CS!$AJ$16=\"射撃\",B110,IF(CS!$AJ$16=\"魔術\",B122, )))","v":"電流警棒"}]
[null,"鉄槌",null,null,-1,null,-1,null,null,-1,36,null,null,null,3,3,1,1,1,1,1,1,null,null,"近接","0-1","近",12,"この武器による攻撃の命中Ｃ値-1 (下限値：15)",35,null,{"$f":"IF(CS!$AJ$16=\"近接\",B99,IF(CS!$AJ$16=\"射撃\",B111,IF(CS!$AJ$16=\"魔術\",B123, )))","v":"隕鉄拳"}]
[null,"マン・ゴーシュ",null,null,null,null,1,null,null,1,20,null,null,null,8,null,-2,-2,-2,null,null,null,null,null,"近接","0-1","近",10,"効果なし",35,null,{"$f":"IF(CS!$AJ$16=\"近接\",B100,IF(CS!$AJ$16=\"射撃\",B112,IF(CS!$AJ$16=\"魔術\",B124, )))","v":"アシッドウィップ"}]
[null,"業物：凍河",null,null,null,null,null,null,null,null,28,null,null,null,2,2,-14,14,6,null,null,null,null,null,"近接","0-1","氷",10,"効果なし",50,null,{"$f":"IF(CS!$AJ$16=\"近接\",B101,IF(CS!$AJ$16=\"射撃\",B113,IF(CS!$AJ$16=\"魔術\",B125, )))","v":"ミステリーハンマー"}]
[null,"業物：漆黒",null,null,null,null,null,null,null,null,28,null,null,null,2,2,1,1,1,1,1,1,-14,14,"近接","0-1","闇",10,"効果なし",50,null,{"$f":"IF(CS!$AJ$16=\"近接\",B102,IF(CS!$AJ$16=\"射撃\",B114,IF(CS!$AJ$16=\"魔術\",B126, )))","v":"パワーグローブ"}]
[null,"アゾット剣",null,null,null,null,null,1,1,1,23,10,null,null,null,null,2,2,2,2,2,2,3,3,"近接","0-1","近",9,"各戦闘のBﾌｪｲｽﾞ中、最初に使用したｽｷﾙ代償-15MP",60,null,{"$f":"IF(CS!$AJ$16=\"近接\",B103,IF(CS!$AJ$16=\"射撃\",B115,IF(CS!$AJ$16=\"魔術\",B127, )))","v":"ライダーランス"}]
[null,"スターセイバー",null,null,null,null,null,null,null,null,32,null,null,null,3,3,null,null,null,null,null,null,12,12,"近接","0-1","光",9,"あなたは「BS：呪い」を受けない。",75,null,{"$f":"IF(CS!$AJ$16=\"近接\",B104,IF(CS!$AJ$16=\"射撃\",B116,IF(CS!$AJ$16=\"魔術\",B128, )))","v":"バンブースピア"}]
[null,"フレアアックス",null,null,null,null,null,null,null,-2,40,null,5,null,5,5,13,2,-5,null,null,null,null,null,"近接","0-1","炎",9,"あなたは「BS：凍結」を受けない。",75,null,"---- スキル武器 ----"]
[null,"大業物：皆中",null,null,3,null,null,null,null,null,35,null,null,null,4,4,null,null,null,null,null,null,null,null,"近接","0-1","近",9,"効果なし",100,null,{"$f":"IF(CS!$AJ$16=\"近接\",B135,IF(CS!$AJ$16=\"射撃\",B155,IF(CS!$AJ$16=\"魔術\",B169, )))&\"\"","v":"イービルスレイヤー"}]
[null,"--------近接3--------",null,null,null,null,null,null,null,null,null,null,null,null,null,null,null,null,null,null,null,null,null,null,null,null,null,null,null,0,null,{"$f":"IF(CS!$AJ$16=\"近接\",B136,IF(CS!$AJ$16=\"射撃\",B156,IF(CS!$AJ$16=\"魔術\",B170, )))&\"\"","v":"死神の鎌"}]
[null,"グランドハンマー",null,null,null,null,-1,null,null,-5,38,null,8,null,6,6,null,null,null,null,3,3,null,null,"近接","0-1","土",12,"効果なし",40,null,{"$f":"IF(CS!$AJ$16=\"近接\",B137,IF(CS!$AJ$16=\"射撃\",B159,IF(CS!$AJ$16=\"魔術\",B171, )))&\"\"","v":"LAEVATEINN"}]
[null,"メタルクロー",null,null,null,null,null,null,null,4,21,null,null,null,10,null,null,null,null,null,null,null,null,null,"近接","0-1","近",10,"効果なし",40,null,{"$f":"IF(CS!$AJ$16=\"近接\",B138,IF(CS!$AJ$16=\"射撃\",B160,IF(CS!$AJ$16=\"魔術\",B172, )))&\"\"","v":"アイストライデント"}]
[null,"バトルアンブレラ",null,null,null,null,null,null,null,-1,29,null,null,null,3,null,null,null,null,null,null,null,null,null,"近接","0-1","近",10,"効果なし",45,null,{"$f":"IF(CS!$AJ$16=\"近接\",B140,IF(CS!$AJ$16=\"射撃\",B161,IF(CS!$AJ$16=\"魔術\",B173, )))&\"\"","v":"ツララランス"}]
[null,"モーニングスター",null,null,null,null,null,null,null,null,28,null,null,null,7,8,1,1,1,1,1,1,3,12,"近接","0-2","光",10,"効果なし",60,null,{"$f":"IF(CS!$AJ$16=\"近接\",B141,IF(CS!$AJ$16=\"射撃\",B162,IF(CS!$AJ$16=\"魔術\",B174, )))&\"\"","v":"ブラッドブレード"}]
[null,"魔断チェーンソー",null,null,null,null,null,null,null,null,40,null,null,null,2,null,null,null,null,null,null,null,null,null,"近接","0-1","近",9,"命中判定のF値に+3 (上限値：10)",65,null,{"$f":"IF(CS!$AJ$16=\"近接\",B142,IF(CS!$AJ$16=\"射撃\",B163,IF(CS!$AJ$16=\"魔術\",B175, )))&\"\"","v":"ヌルウェポン"}]
[null,"スパークスピア",null,null,-1,null,null,null,null,2,40,null,null,null,6,4,2,2,2,13,null,-7,null,null,"近接","0-1","雷",11,"効果なし",70,null,{"$f":"IF(CS!$AJ$16=\"近接\",B143,IF(CS!$AJ$16=\"射撃\",B164,IF(CS!$AJ$16=\"魔術\",B176, )))&\"\"","v":"Qソード"}]
[null,"サウザンドテイル",null,null,1,null,null,null,null,2,27,null,6,null,3,2,null,null,null,null,null,null,null,null,"近接","0-1","近",10,"命中判定のF値に-1 ",75,null,{"$f":"IF(CS!$AJ$16=\"近接\",B144,IF(CS!$AJ$16=\"射撃\",B165,IF(CS!$AJ$16=\"魔術\",B177, )))&\"\"","v":"ムーンブレード"}]
[null,"ペンタシールド",null,null,null,null,null,null,1,null,23,null,25,null,8,8,9,9,9,9,null,9,null,null,"近接","0-1","近",13,"効果なし",85,null,{"$f":"IF(CS!$AJ$16=\"近接\",B145,IF(CS!$AJ$16=\"射撃\",B166,IF(CS!$AJ$16=\"魔術\",B178, )))&\"\"","v":"ライトセーバー"}]
[null,"名刀 -桜花-",null,null,1,null,null,null,null,null,38,null,null,null,13,null,2,2,null,null,4,3,null,null,"近接","0-1","近",11,{"$f":"\"自身の戦闘で最初の攻撃で与えるﾀﾞﾒｰｼﾞに+\"&CL*3+12","v":"自身の戦闘で最初の攻撃で与えるﾀﾞﾒｰｼﾞに+15"},90,null,{"$f":"IF(CS!$AJ$16=\"近接\",B149,IF(CS!$AJ$16=\"射撃\",B167,IF(CS!$AJ$16=\"魔術\",B179, )))&\"\"","v":"雷水晶の剣"}]
[null,"音速槍",null,null,1,null,null,null,null,2,41,null,null,null,4,2,null,null,null,null,null,null,null,null,"近接","0-1","近",9,"攻撃時7MP消費して、「射程：0-5」に変更可。",100,null,{"$f":"IF(CS!$AJ$16=\"近接\",B150,IF(CS!$AJ$16=\"射撃\",B168,IF(CS!$AJ$16=\"魔術\",B180, )))&\"\"","v":"宵闇の氷槍"}]
[null,"スーパーグローブ",null,null,-1,null,null,null,null,6,50,null,15,null,16,2,1,1,1,1,1,1,4,4,"近接","0-1","近",11,"素手扱い武器",120]
[null,"EXCALIBUR-C",null,null,1,null,1,null,1,3,36,10,15,10,12,6,5,5,3,3,3,4,4,4,"近接","0-1","光",9,{"$f":"\"10の倍数ｶｳﾝﾄ終了時、あなたは【HP】\"&10+CL*2&\"点回復\"","v":"10の倍数ｶｳﾝﾄ終了時、あなたは【HP】12点回復"},140]
[null,"--------射撃1--------",null,null,null,null,null,null,null,null,null,null,null,null,null,null,null,null,null,null,null,null,null,null,null,null,null,null,null,0]
[null,"9mm拳銃",null,null,null,null,null,null,null,1,5,null,null,null,null,null,null,null,null,null,null,null,null,null,"射撃","0-4","遠",9,"3ﾏｽ以上離れた対象への攻撃には命中達成値-2",10]
[null,"ハードボウ",null,null,null,1,null,null,null,-1,5,null,null,null,1,1,null,null,null,null,null,null,null,null,"射撃","2-4","遠","(3)→6","効果なし",10]
[null,"マグナム",null,null,null,null,null,null,null,1,10,null,null,null,null,null,null,null,null,null,null,null,null,null,"射撃","0-4","遠",10,"3ﾏｽ以上離れた対象への攻撃には命中達成値-2",20]
[null,"ハードボウ弐式",null,null,null,1,null,null,null,-2,10,null,null,null,null,null,null,null,null,null,null,null,null,null,"射撃","2-4","遠","(3)→6","効果なし",20]
[null,"エッジヨーヨー",null,null,null,null,null,null,null,1,16,null,null,null,null,null,null,null,null,null,null,null,null,null,"射撃","0-2","遠",9,"効果なし",35]
[null,"マジック砲 -MC2-",null,null,null,null,null,null,null,null,15,null,null,null,2,2,null,null,null,null,null,null,null,null,"射撃","3-4","遠",10,"スキルでこの武器を使用した場合ダメージ+5",45]
[null,"Mスーパーボール",null,null,null,null,null,null,null,null,16,null,null,null,1,1,null,null,null,null,null,null,null,null,"射撃","0-2","遠",9,"効果なし",50]
[null,"魔法手裏剣",null,null,null,1,null,null,null,1,18,null,null,null,null,null,null,null,null,null,3,null,null,null,"射撃","0-3","風",9,"この武器で攻撃を行う度、【MP】2点消費",60]
[null,"小型電磁砲",null,null,null,1,-1,null,null,-1,24,null,null,null,3,3,1,1,1,-5,null,null,null,null,"射撃","2-3","遠",10,"効果なし",75]
[null,"SMG",null,null,null,1,null,null,null,null,21,null,null,null,2,2,null,null,null,null,null,null,null,null,"射撃","0-3","遠",9,"効果なし",85]
[null,"レーザーガン.prot",null,null,null,null,null,null,null,null,37,null,null,null,2,null,null,null,null,null,null,null,null,null,"射撃","2-4","遠",10,"この武器を装備している時、移動コスト+2",90]
[null,"ロケットランチャー",null,null,null,null,-1,null,-1,-3,48,null,null,null,2,2,2,null,null,null,null,null,null,null,"射撃","2-4","遠",12,"攻撃時、自身より後方ﾏｽの味方に実ﾀﾞﾒｰｼﾞ30点与える。",130]
[null,"--------射撃2--------"]
[null,"スローイングダガー",null,null,null,null,null,null,null,null,8,null,null,null,null,null,null,null,null,null,null,null,null,null,"射撃",{"$f":"IF(CS!B18>=15,\"0-3\",\"0-2\")","v":"0-2"},"遠",9,"あなたの【肉体】が15以上の時、「射程：0-3」に変更。",10]
[null,"スリングショット",null,null,null,null,null,null,null,null,13,null,null,null,null,null,null,null,null,null,null,null,null,null,"射撃","0-3","遠","(2)→7","効果なし",10]
[null,"散弾銃",null,null,null,1,-1,null,null,-2,12,null,null,null,null,null,null,null,null,null,null,null,null,null,"射撃","0-4","遠",10,"3ﾏｽ以上離れた対象への攻撃には命中達成値-2",20]
[null,"チャクラム",null,null,null,null,null,null,null,null,14,null,null,null,null,null,null,null,null,null,null,null,null,null,"射撃","0-3","遠","(2)→7","効果なし",20]
[null,"ワイヤースタンガン",null,null,null,null,null,null,null,null,14,null,null,null,2,2,null,null,null,3,null,null,null,null,"射撃","0-2","雷",10,"命中判定でｸﾘﾃｨｶﾙした場合、「BS：麻痺」を付与",25]
[null,"飛苦無",null,null,null,1,null,null,null,null,11,null,null,null,4,null,null,null,null,null,null,null,null,null,"射撃","0-2","遠",9,"効果なし",30]
[null,"四方手裏剣",null,null,null,null,null,null,null,null,17,null,null,null,-3,-3,null,null,null,null,null,null,null,null,"射撃","0-3","遠",9,"効果なし",30]
[null,"マジック砲 -MC5-",null,null,null,1,null,null,null,null,8,null,null,null,4,4,null,null,null,null,null,null,null,null,"射撃","0-3","風",10,"スキルでこの武器を使用した場合ダメージ+10",45]
[null,"ハイドロガン",null,null,null,null,null,null,null,-1,20,null,null,null,3,3,14,3,3,-5,null,null,null,null,"射撃","0-3","水",10,"命中判定でｸﾘﾃｨｶﾙした場合、「BS：怯み(1)」を付与",60]
[null,"スナイパーライフル",null,null,null,1,null,null,null,-3,26,null,null,null,3,3,null,null,null,null,null,null,null,null,"射撃","1-4","遠","(4)→8","「射程：1-2」内の対象への攻撃には命中達成値-3",70]
[null,"対物ライフル",null,null,null,1,-1,null,null,-3,31,null,null,null,-4,-4,null,null,null,null,null,null,null,null,"射撃","0-4","遠",11,"ｻﾌﾞで移動した行動手番中は攻撃不可。",80]
[null,"火炎放射器",null,null,null,null,null,null,null,-2,35,null,null,null,3,3,5,5,null,null,null,null,null,null,"射撃","0-2","炎",11,"効果なし",85]
[null,"--------魔法1--------"]
[null,"スタッフ",null,null,null,null,null,null,null,null,null,8,null,null,null,null,1,1,1,1,1,1,null,null,"魔法","0-3","遠","(3)→7","スキルによらない武器攻撃ダメージに+15",10]
[null,"マジカルワンド",null,null,null,null,null,1,null,null,null,5,null,null,null,null,1,1,1,1,1,1,null,null,"魔法","0-3","遠","(3)→7","スキルによらない武器攻撃ダメージに+17",10]
[null,"ファイアロッド",null,null,null,null,null,1,null,null,null,10,null,null,null,null,8,-4,1,1,1,null,null,null,"魔法","0-3","炎","(4)→6","スキルによらない武器攻撃ダメージに+22",20]
[null,"フリーズロッド",null,null,null,null,null,1,null,null,null,10,null,null,null,null,-4,8,1,1,1,null,null,null,"魔法","0-3","氷","(4)→6","スキルによらない武器攻撃ダメージに+22",20]
[null,"祝福の杖",null,null,null,null,null,null,null,null,null,16,null,4,null,null,3,3,3,3,3,3,null,null,"魔法","0-2","光","(2)→8","効果なし",35]
[null,"ガードロッド",null,null,null,null,null,1,null,-2,null,12,null,null,3,3,4,2,3,1,2,2,1,1,"魔法","0-3","遠","(4)→6","「種別：防」のｽｷﾙ代償-1MP (下限：1MP)",45]
[null,"アンプリファー",null,null,null,null,-1,null,null,null,null,21,null,null,1,1,-2,-2,-2,-2,-2,-2,-3,-3,"魔法","0-3","近","(3)→11","スキルによらない武器攻撃ダメージに+35",50]
[null,"天雷杖",null,null,null,null,null,null,null,2,null,14,null,null,null,null,null,null,null,10,null,-5,null,null,"魔法","3-3","雷","(3)→8","スキルによらない武器攻撃ダメージに+31",60]
[null,"WPリング",null,null,null,null,1,1,null,2,null,22,null,null,3,null,1,1,1,1,6,null,null,null,"魔法","0-3","風","(2)→11","スキルによらない武器攻撃ダメージに+15",75]
[null,"スターティンクル",null,null,null,null,null,1,null,1,null,31,null,3,1,1,2,2,2,2,4,null,7,null,"魔法","0-2","光","(4)→9","スキルによらない武器攻撃ダメージに+15",85]
[null,"アーススタッフ",null,null,null,null,null,1,null,null,null,35,null,null,3,1,2,2,2,null,null,5,null,null,"魔法","0-3","土","(5)→9","スキルによらない武器攻撃ダメージに+15",90]
[null,"ディープロッド",null,null,null,null,1,1,1,null,null,48,null,3,2,2,8,4,8,-10,null,null,null,null,"魔法","0-4","水","(4)→10","スキルによらない武器攻撃ダメージに+15",130]
[null,"--------魔法2--------"]
[null,"マジックグローブ",null,null,null,null,null,null,null,null,null,10,null,null,null,null,null,null,null,null,null,null,null,null,"魔法","0-3","遠","(2)→8","スキルによらない武器攻撃ダメージに+15",10]
[null,"スペルオーブ",null,null,null,null,null,null,null,null,null,7,null,null,-3,-3,1,1,1,1,1,1,null,null,"魔法","0-3","遠","(3)→6","1ｾｯｼｮﾝに1度、自身の判定を振りなおせる(ｺｽﾄ：0)",10]
[null,"サンダーロッド",null,null,null,null,null,1,null,null,null,10,null,null,null,null,null,1,1,8,1,-4,null,null,"魔法","0-3","雷","(4)→6","スキルによらない武器攻撃ダメージに+22",20]
[null,"ウェイブロッド",null,null,null,null,null,1,null,null,null,10,null,null,null,null,null,1,8,-4,1,1,null,null,"魔法","0-3","水","(4)→6","スキルによらない武器攻撃ダメージに+22",20]
[null,"ホーリーワンド",null,null,null,null,null,null,1,null,null,10,null,3,2,2,null,null,null,null,null,null,null,null,"魔法","0-2","光","(4)→6",{"$f":"\"「種別：回」のｽｷﾙの【HP】回復量に+\"&CL+5","v":"「種別：回」のｽｷﾙの【HP】回復量に+6"},40]
[null,"イービルワンド",null,null,null,null,null,null,null,null,null,18,null,null,null,null,null,null,null,null,null,null,-16,8,"魔法","0-3","闇","(3)→7","命中判定でｸﾘﾃｨｶﾙした場合、「BS：呪い」を付与",40]
[null,"ジュエルスタッフ",null,null,null,null,null,2,null,null,null,10,null,null,null,null,null,null,null,null,null,null,null,null,"魔法","0-3","近","(3)→9","スキルによらない武器攻撃ダメージに+25",55]
[null,"氷華杖",null,null,null,null,null,null,1,-1,null,19,null,null,2,2,-10,14,6,null,null,null,null,null,"魔法","2-3","氷","(3)→7","自身の攻撃宣言時に5MP支払い、属性を〈氷〉に変更可",60]
[null,"魔法剣",null,null,null,null,null,null,null,null,15,20,null,null,6,6,2,2,2,2,2,2,null,null,"魔法","0-3","近",12,"スキルによらない武器攻撃ダメージに+30",70]
[null,"ディバインロッド",null,null,null,null,null,1,2,null,null,17,null,3,3,3,null,null,null,null,null,null,4,16,"魔法","0-2","光","(4)→6",{"$f":"\"「種別：回」のｽｷﾙの【HP】回復量に+\"&CL*2+6","v":"「種別：回」のｽｷﾙの【HP】回復量に+8"},90]
[null,"クリスタルロッド",null,null,null,null,null,1,null,null,null,30,null,null,null,null,3,3,3,3,3,3,3,3,"魔法","0-3","遠","(2)→8","全てのスキルの代償に-1MPする。(下限値：3MP)",90]
[null,"エクリプスデイ",null,null,null,null,null,2,2,null,null,40,null,10,5,5,3,3,3,3,3,3,8,8,"魔法","0-4","※","(4)→8","この武器の属性は〈光〉〈闇〉の複合属性とする。",120]
[null,"--------限定--------"]
[null,"灼炎剣 -焔-",null,null,1,null,null,null,null,null,28,null,null,null,null,null,8,8,-5,null,null,-3,null,null,"近接","0-1","炎",9,"FS専用。《火炎閃》のﾀﾞﾒｰｼﾞ+2D6",60]
[null,"アイスサーベル",null,null,null,null,1,null,null,null,30,null,3,null,2,2,-6,12,6,null,null,null,null,null,"近接","0-1","氷",10,"FC専用。",60]
[null,"風魔槍 -鎌鼬-",null,null,null,null,1,null,null,1,34,null,null,null,null,null,null,null,null,null,12,null,null,null,"近接","0-1","風",10,"WR専用。攻撃時5MP消費して、「射程：0-2」に変更可。",60]
[null,"電流警棒",null,null,null,null,null,null,null,3,31,null,null,null,-5,-5,5,null,5,null,null,5,null,null,"近接","0-1","雷",9,"EE専用。命中の出目19以上の時、「BS：麻痺」付与。",60]
[null,"隕鉄拳",null,null,-1,null,null,null,null,2,32,null,null,null,-5,-5,3,3,null,null,1,3,null,null,"近接","0-1","土",9,"EB専用。素手扱い武器。命中F値-1。",60]
[null,"アシッドウィップ",null,null,2,null,null,null,null,null,28,null,null,null,3,3,null,null,10,null,null,null,null,null,"近接","0-1","水",9,"WT専用。《水流閃》の命中C値に-1する。",60]
[null,"ミステリーハンマー",null,null,1,null,null,null,null,null,21,null,null,null,null,null,4,4,4,4,4,4,null,null,"近接","0-1","近",8,"CR専用。武器で与えるﾀﾞﾒｰｼﾞに+[6D10-30]する。",60]
[null,"パワーグローブ",null,null,-1,null,null,null,null,3,37,null,null,null,-6,-6,null,null,null,null,null,null,null,null,"近接","0-1","近",9,"BR専用。素手扱い武器。",60]
[null,"ライダーランス",null,null,1,null,null,null,null,-2,38,null,null,null,4,4,null,null,null,null,null,null,null,null,"近接","0-1","近",10,"ER専用。[騎乗戦闘]時、全判定のF値-1。",60]
[null,"バンブースピア",null,null,1,null,1,null,null,2,28,null,null,null,null,null,-6,null,null,null,3,3,3,null,"近接","0-1","土",9,"PP専用。命中判定ｸﾘﾃｨｶﾙした場合、ﾀﾞﾒｰｼﾞに+CLD6",60]
[null,"ヴァリアブルスピア",null,null,1,null,null,null,null,null,18,null,6,8,3,3,null,null,null,null,null,null,null,null,"近接","0-1","近",10,"IA専用。 武器変更スキルの武器持続カウントに+3",60]
[null,"マジカルヌンチャク",null,null,-1,null,1,null,null,1,33,null,null,null,5,null,null,null,null,null,null,null,null,null,"近接","0-1","近",9,"SF専用。素手扱い武器。",60]
[null,"カースライフル",null,null,null,1,null,null,null,-1,18,null,null,null,null,null,null,null,null,null,null,null,null,3,"射撃","0-4","遠","(1)→9","BS専用。「BS：呪印」を持つ対象への与ﾀﾞﾒｰｼﾞ+10。",60]
[null,"ブラックバズーカ",null,null,null,null,null,null,null,null,22,null,null,2,3,3,null,null,null,null,null,null,10,10,"射撃","0-3","闇",10,"VC専用。《ｳﾞｫｲﾄﾞｼｮｯﾄ》の代償に-1MPする。",60]
[null,"デリンジャー",null,null,null,1,null,null,null,1,16,null,null,null,-3,-3,null,null,null,null,null,null,null,null,"射撃","0-3","遠",9,"TM専用。戦闘開始時にﾄﾘｯｸｶｳﾝﾀｰを1つ得る。",60]
[null,"コントロールロッド",null,null,null,1,null,null,null,-1,18,null,null,null,3,3,9,-5,-5,null,null,null,2,4,"射撃","0-3","炎","(2)→7","AB専用。《ｱﾄﾐｯｸﾊﾞｽﾀｰ》と《ｼｬｲﾝﾊﾞｰｽﾄ》の代償-1MP。",60]
[null,"ライトスナイパー",null,null,null,1,null,null,null,-3,27,null,null,null,3,3,null,null,null,null,null,null,14,null,"射撃","0-4","光","(3)→7","BC専用。ｻﾌﾞで移動した行動手番中は攻撃不可。",60]
[null,"スーパーメガホン",null,null,null,1,null,null,1,null,21,null,null,null,3,3,null,null,null,null,null,null,null,null,"射撃","0-4","遠",10,"PD専用。命中の出目18以上の時、KB(1)」付与｡",60]
[null,"ホールドワイヤー",null,null,null,null,null,null,null,null,25,null,null,null,3,3,null,null,null,null,null,null,null,null,"射撃","0-4","遠",9,"TA専用。武器攻撃が命中した対象を1ﾏｽ前に配置。",60]
[null,"レーザーガン改",null,null,null,1,null,null,null,null,21,null,null,null,null,null,null,null,null,null,null,null,5,5,"射撃","2-3","光",8,"LS専用。《ﾚｰｻﾞｰｼｮｯﾄ》と《ﾃﾞﾄﾈｰｼｮﾝﾚｲ》の代償-1MP。",60]
[null,"カースクロスボウ",null,null,null,1,null,null,null,-2,23,null,null,null,-4,null,null,null,null,null,null,null,5,5,"射撃","2-4","闇","(3)→6","SA専用。武器攻撃の回避F値に+2。(上限値：11)",60]
[null,"バリアキャノン",null,null,null,null,null,null,null,null,15,null,null,null,7,7,3,3,3,3,3,3,4,4,"射撃","0-3","近","(3)→6","BD専用。1戦闘1回、常時[ﾊﾞﾘｱ状態]の付与解除可能。",60]
[null,"アンブレラガン",null,null,null,1,null,null,1,null,18,null,3,null,3,3,1,1,1,1,1,1,null,null,"射撃","0-3","遠",11,"WP専用。「種別：天」のスキルのSL上限に+1する。",60]
[null,"テレスコープガン",null,null,null,1,null,null,null,null,25,null,8,6,3,3,null,null,null,null,null,null,null,null,"射撃","0-3","遠",10,"DP専用。 命中C値-1 (下限値：15)",60]
[null,"アルカナ-22",null,null,null,null,null,null,null,null,null,17,null,2,null,null,2,2,2,2,2,2,1,1,"魔法","0-2","遠","(3)→7","AS専用。30ｶｳﾝﾄ終了時にｱﾙｶﾅｶｳﾝﾀｰを1つ得る。",60]
[null,"人工エリクシル",null,null,null,null,null,1,1,null,null,17,null,null,null,null,6,null,6,null,6,6,null,null,"魔法","0-3","※","(4)→6","TE専用。武器属性は「専攻属性」から1つ選択する。",60]
[null,"アルカナセッター",null,null,null,null,null,1,null,1,null,15,null,null,3,3,null,null,null,null,null,null,null,null,"魔法","1-3","遠","(5)→6","AG専用。《ｱﾙｶﾅｽﾄﾗｲｸ》の代償-1MP。(下限：2MP)",60]
[null,"セブンスワンド",null,null,null,null,null,null,null,null,null,16,null,null,null,null,2,null,2,2,2,2,2,2,"魔法","0-4","光","(2)→8","OK専用。「種別：宝」ｽｷﾙの代償-1MP。(下限：3MP)",60]
[null,"陰陽符",null,null,null,null,null,null,null,null,null,19,null,null,1,1,null,null,null,null,null,null,4,4,"魔法","1-4","※","(3)→8","YM専用。武器属性は「陰陽属性」となる。",60]
[null,"マジカルウォッチ",null,null,null,null,null,null,1,null,null,23,null,null,null,null,null,null,null,null,null,null,null,3,"魔法","0-1","闇",11,{"$f":"\"TD専用。ｽｷﾙによらない武器攻撃ﾀﾞﾒｰｼﾞに+\"&15+CL*3&\"する。\"","v":"TD専用。ｽｷﾙによらない武器攻撃ﾀﾞﾒｰｼﾞに+18する。"},60]
[null,"クレイジーアイ",null,null,null,null,null,null,null,null,null,17,null,5,7,7,null,null,null,null,null,null,null,null,"魔法","0-4","遠","(3)→8","MV専用。武器攻撃に対する回避C値に+1する。",60]
[null,"忍術大全",null,null,null,null,null,2,null,null,null,10,null,null,null,null,2,2,2,2,2,2,null,null,"魔法","0-4","遠","(3)→8","SN専用。ｽｷﾙの代償に-1MPする。(下限値：10MP)",60]
[null,"人形強化の書",null,null,1,null,null,1,null,null,null,11,null,null,3,3,null,null,null,null,null,null,3,3,"魔法","0-3","遠","(5)→5","CP専用。「ﾄﾞｰﾙ」と名の付く味方の【耐久力】に+20。",60]
[null,"禁じられた書物",null,null,null,null,null,null,null,null,null,25,-15,5,null,null,2,2,2,2,2,2,2,2,"魔法","0-3","遠","(4)→6","FM専用。",60]
[null,"スターダストロッド",null,null,null,null,null,1,null,2,null,15,null,4,null,null,3,3,3,3,3,3,3,3,"魔法","0-3","光","(4)→7","AW専用。クラス特典を15ｶｳﾝﾄ終了時までとする。",60]
[null,"クリアウィングリスト",null,null,null,null,null,1,null,null,null,21,null,4,2,4,3,1,3,1,3,1,null,null,"魔法","0-3","近","(4)→8",{"$f":"\"「種別：回」のｽｷﾙの【HP】回復量に+\"&CL*2+8","v":"「種別：回」のｽｷﾙの【HP】回復量に+10"},60]
[null,"黎明の聖剣：近",null,null,null,null,1,null,1,null,30,null,-10,null,2,null,-5,null,2,2,2,null,5,5,"近接","0-1","光",9,"DB専用。ｻﾌﾞで射・魔に変形可能 (ｻﾌﾞ消費なし)",60]
[null,"黎明の聖剣：射",null,null,null,null,1,null,1,null,30,null,-10,null,2,null,-5,null,2,2,2,null,5,5,"射撃","0-1","光",9,"DB専用。ｻﾌﾞで近・射に変形可能 (ｻﾌﾞ消費なし)",60]
[null,"黎明の聖剣：魔",null,null,null,null,1,null,1,null,null,30,-10,null,2,null,-5,null,2,2,2,null,5,5,"魔法","0-1","光",9,"DB専用。ｻﾌﾞで近・射に変形可能 (ｻﾌﾞ消費なし)",60]
[null,"--------スキル--------"]
[null,"イービルスレイヤー",null,null,1,null,null,null,null,null,{"$f":"(SL+CL)*5+15","v":20},null,null,null,null,null,null,null,null,null,null,null,null,{"$f":"20+CL*2","v":22},"近接","0-1","光",8,{"$f":"\"〈闇〉耐性+\"&20+CL*2","v":"〈闇〉耐性+22"}]
[null,"死神の鎌",null,null,null,null,null,null,null,null,{"$f":"CL*8+30","v":38},null,null,null,{"$f":"CL*8","v":8},{"$f":"CL*8","v":8},null,null,null,null,null,null,null,null,"近接","0-1","闇",8,{"$f":"\"BS無効。〈近〉〈遠〉耐性+\"&CL*8","v":"BS無効。〈近〉〈遠〉耐性+8"}]
[null,"LAEVATEINN",null,null,null,null,null,null,2,null,{"$f":"15+SL*6","v":15},null,null,null,null,null,{"$f":"SL*2+CL","v":1},null,null,{"$f":"SL*2+CL","v":1},null,null,{"$f":"SL*2+CL","v":1},null,"近接","0-1","炎",11,{"$f":"\"〈炎〉〈雷〉〈光〉耐性+\"&(SL*2)+CL","v":"〈炎〉〈雷〉〈光〉耐性+1"}]
[null,"アイストライデント",null,null,1,null,1,null,2,null,{"$f":"(SL+CL)*4","v":4},null,null,null,null,null,null,null,null,null,null,null,null,null,"近接","0-3","氷",8,"効果なし"]
[null,"付喪武器",null,null,1,null,1,null,null,null,{"$f":"(SL+CL)*4","v":4},null,null,null,null,null,null,null,null,null,null,null,null,null,"近接","0-1","近",10]
[null,"ツララランス",null,null,null,null,2,null,null,null,{"$f":"SL*3+15","v":15},null,null,null,null,null,null,20,null,null,null,null,null,null,"近接","0-2","氷",8,"全C値-1(下限：15) 全F値+1 〈氷〉耐性+20"]
[null,"ブラッドブレード",null,null,null,null,null,null,null,null,{"$f":"(SL+CL)*5","v":5},null,null,null,null,null,null,null,null,null,null,null,null,null,"近接","0-1","近",8,"[与えたダメージ/4](↓)点【HP】を回復する。"]
[null,"ヌルウェポン",null,null,null,null,null,null,null,null,{"$f":"(SL*4)+10","v":10},null,null,null,null,null,null,null,null,null,null,null,{"$f":"SL+CL","v":1},{"$f":"SL+CL","v":1},"近接","0-1","無",10,{"$f":"\"〈光〉〈闇〉耐性+\"&SL+CL","v":"〈光〉〈闇〉耐性+1"}]
[null,"Qソード",null,null,1,null,null,null,null,null,{"$f":"(SL+CL)*4","v":4},null,null,null,null,null,{"$f":"SL*2","v":0},null,{"$f":"SL*2","v":0},null,{"$f":"SL*2","v":0},{"$f":"SL*2","v":0},null,null,"近接","0-1","炎水風土",8,{"$f":"\"〈炎〉〈水〉〈風〉〈土〉耐性+\"&SL*2","v":"〈炎〉〈水〉〈風〉〈土〉耐性+0"}]
[null,"ムーンブレード",null,null,null,null,null,null,null,null,{"$f":"SL*4+18","v":18},null,null,null,null,null,null,null,null,null,null,null,{"$f":"CL*2","v":2},{"$f":"CL*2","v":2},"近接","0-1","闇",8,"【近接値】+N 〈光〉〈闇〉耐性+[N×CL×2] N=消費AC"]
[null,"ライトセーバー",null,null,2,null,null,null,2,null,{"$f":"SL*4+24","v":24},null,null,null,null,null,null,null,null,null,null,null,null,null,"近接","0-1","光",9,"効果なし"]
[null,"彗星の剣",null,null,null,null,null,null,null,null,{"$f":"(SL+CL)*4","v":4},null,null,null,null,null,null,null,null,null,null,null,{"$f":"SL*3","v":0},{"$f":"SL*3","v":0},"近接","0-1","光",10,"回避C値-1 (下限値：15)"]
[null,"Sシールド",null,null,null,null,null,null,1,-10,{"$f":"SL*4+20","v":20},null,null,null,{"$f":"SL*3","v":0},{"$f":"SL*3","v":0},null,null,null,null,null,null,null,null,"近接","0-1","近",13,{"$f":"\"常時、受けるダメージを\"&SL+CL*3&\"点軽減する。\"","v":"常時、受けるダメージを3点軽減する。"}]
[null,"魔法双剣",null,null,null,null,null,null,null,null,{"$f":"SL*5+13","v":13},null,null,null,null,null,null,null,null,null,null,null,null,null,"近接","0-1","近",13,{"$f":"\"「種別：魔」ｽｷﾙによる攻撃の与ﾀﾞﾒｰｼﾞに+2D10+\"&ROUNDDOWN(CS!AI37/2,0)","v":"「種別：魔」ｽｷﾙによる攻撃の与ﾀﾞﾒｰｼﾞに+2D10+24"}]
[null,"雷水晶の剣",null,null,null,null,2,null,null,null,{"$f":"SL*5+18","v":18},null,null,null,null,null,null,null,null,{"$f":"CL*8","v":8},null,null,null,null,"近接","0-2","雷",8,{"$f":"\"〈雷〉耐性+\"&CL*8&\" 全ｽｷﾙ代償-1MP。(下限：1MP)\"","v":"〈雷〉耐性+8 全ｽｷﾙ代償-1MP。(下限：1MP)"}]
[null,"宵闇の氷槍",null,null,2,null,null,null,null,null,{"$f":"(SL+CL)*5","v":5},null,null,null,null,null,null,{"$f":"CL*5","v":5},{"$f":"CL*5","v":5},null,null,null,{"$f":"CL*5","v":5},{"$f":"CL*5","v":5},"近接","0-2","氷闇",9,{"$f":"\"〈氷〉〈水〉〈光〉〈闇〉耐性+\"&CL*5","v":"〈氷〉〈水〉〈光〉〈闇〉耐性+5"}]
[null,"ABYSS",null,null,3,null,null,null,null,null,{"$f":"SL*9","v":0},null,null,null,null,null,null,null,null,null,null,null,null,null,"近接","0-1","近",10,"物攻に《ｱｰﾑｽﾞﾌｫｰｽ》のSL×4の補正が発生。"]
[null,"破天手甲",null,null,null,null,null,null,null,null,{"$f":"(SL+CL+2)*5","v":15},null,null,null,{"$f":"SL*5","v":0},null,{"$f":"CL","v":1},{"$f":"CL","v":1},null,null,null,null,null,null,"近接","0-1","近",9,"命中C値-1 (下限値：15) 1度の移動で2ﾏｽ移動可能"]
[null,"追憶の名剣",null,null,2,null,null,null,null,null,{"$f":"(SL+CL)*4","v":4},null,null,null,null,null,null,null,null,null,null,null,null,null,"近接","0-1","近",11,{"$f":"IF(SL<CL,\"効果なし\",\"攻撃によって与えるダメージに+[未使用の感情×\"&CL&\"]\")","v":"効果なし"}]
[null,"エアブレイカー",null,null,null,1,null,null,null,null,{"$f":"SL*5+15","v":15},null,null,null,null,null,null,null,null,null,null,null,null,null,"射撃","0-3","遠",10,"この武器による攻撃は耐性以外でﾀﾞﾒｰｼﾞ軽減不可。"]
[null,"ノイズガン",null,null,null,2,null,null,null,null,{"$f":"(SL+CL)*4","v":4},null,null,null,null,null,null,null,null,null,null,null,null,null,"射撃","0-4","風",9,"KB(X)無効 全ｽｷﾙに「種別：音」付与。"]
[null,"BLR",null,null,null,null,-2,null,2,null,{"$f":"SL*3+CS!$AI$39","v":18},null,null,null,null,null,null,null,null,null,null,null,null,null,"射撃","0-5","光",8]
[null,"ブラッディアS",null,null,null,2,null,null,null,null,{"$f":"SL*4+CL*3","v":3},null,null,null,null,null,null,null,null,null,null,null,null,null,"射撃","0-5","遠",11,"呪印を受けている対象に呪印付与時、怯み(2)も追加。"]
[null,"特大手裏剣",null,null,null,1,null,null,null,null,{"$f":"SL*5+CL*5","v":5},null,null,null,null,null,null,null,null,null,null,null,null,null,"射撃","0-3","遠",10,"装備時、《手裏剣術》の使用回数を1回分回復する。"]
[null,"ルーンデスサイズ",null,null,null,null,null,null,null,null,null,{"$f":"CL*3","v":3},null,null,null,null,null,null,null,null,null,null,{"$f":"CL*SL","v":0},null,"魔法","2-4","闇","(3)→6",{"$f":"\"【魔術値】判定した攻撃のﾀﾞﾒｰｼﾞ+\"&20+CL*SL*3&\"する。〈光〉耐性+\"&CL*SL","v":"【魔術値】判定した攻撃のﾀﾞﾒｰｼﾞ+20する。〈光〉耐性+0"}]